Workbook

Sheet Inputs
A1: Scenarios | B1: 1000
A2: Months | B2: 711
A3: dt | B3: 0.08333333333
A4: Initial Rate | B4: 0.0283
A5: Initial Target | B5: 0.062
A6: Alpha | B6: 2.67
A7: Beta | B7: 3
A9: Target Volatility | B9: 0.64
A10: Adjusted Volatility | B10: 0.05
A11: Mean Target | B11: 0.062
A12: Drift Base | B12: 0
A13: Reversion | B13: 0.13
A14: Barrier | B14: 0.04
A15: Cash Reserves | B15: 0
A16: Random Numbers | B16: 10

Sheet Monthly Stats
A1: Month | B1: Average | C1: Std Deviation | D1: Skewness | E1: Kurtosis | F1: 6th Moment | G1: Minimum | H1: Maximum
A2: 1 | B2: 0.0283 | C2: 0 | D2: 0 | E2: 0 | F2: 0 | G2: 0.0283 | H2: 0.0283
A3: 2 | B3: 0.02854890874 | C3: 0.0004148924868 | D3: 0.01039269091 | E3: 3.13700849 | F3: 16.98040811 | G3: 0.02690891981 | H3: 0.02980775406
A4: 3 | B4: 0.02882305565 | C4: 0.0006014705566 | D4: 0.1610489429 | E4: 3.012061699 | F4: 14.7941437 | G4: 0.0271319437 | H4: 0.03092341263
A5: 4 | B5: 0.02906298689 | C5: 0.0007487035639 | D5: 0.06765598246 | E5: 3.346641086 | F5: 20.16159316 | G5: 0.02621882509 | H5: 0.03143513536
A6: 5 | B6: 0.02932388788 | C6: 0.0008867048235 | D6: -0.02175020794 | E6: 3.271535421 | F6: 19.86676173 | G6: 0.02599268327 | H6: 0.03248744892
A7: 6 | B7: 0.02958821506 | C7: 0.0009851690504 | D7: 0.01020506773 | E7: 3.141218397 | F7: 16.47801025 | G7: 0.02656076808 | H7: 0.0330001684
A8: 7 | B8: 0.0298567611 | C8: 0.001125980024 | D8: 0.04691646969 | E8: 3.198680359 | F8: 17.41060381 | G8: 0.02633584531 | H8: 0.03375042669
A9: 8 | B9: 0.03012389693 | C9: 0.001217801383 | D9: 0.09487188409 | E9: 3.05381385 | F9: 15.56445875 | G9: 0.0267585206 | H9: 0.034265121
A10: 9 | B10: 0.03036569273 | C10: 0.001336067886 | D10: 0.200048943 | E10: 3.436878406 | F10: 24.31084966 | G10: 0.02620462131 | H10: 0.0357018489
A11: 10 | B11: 0.03061436904 | C11: 0.001438983659 | D11: 0.1114964766 | E11: 3.177360315 | F11: 18.78723197 | G11: 0.02565970665 | H11: 0.03615941739
A12: 11 | B12: 0.03087630828 | C12: 0.001528050876 | D12: 0.1407839289 | E12: 3.289488571 | F12: 22.91906986 | G12: 0.0260143384 | H12: 0.03784334321
A13: 12 | B13: 0.03113752422 | C13: 0.001631086593 | D13: 0.1721089646 | E13: 3.393495672 | F13: 26.01704961 | G13: 0.0259761131 | H13: 0.03896433705
A14: 13 | B14: 0.03137695241 | C14: 0.001761618557 | D14: 0.1937226975 | E14: 3.819807778 | F14: 36.72223528 | G14: 0.02546005865 | H14: 0.04045801952
A15: 14 | B15: 0.03163138107 | C15: 0.001863455448 | D15: 0.1862942967 | E15: 4.283468856 | F15: 54.17652008 | G15: 0.02520101967 | H15: 0.04231584745
A16: 15 | B16: 0.03187896732 | C16: 0.001978927157 | D16: 0.2956551219 | E16: 4.820494477 | F16: 74.75119494 | G16: 0.024651412 | H16: 0.04399239865
A17: 16 | B17: 0.03212110241 | C17: 0.002099506108 | D17: 0.2890377605 | E17: 4.886808177 | F17: 63.781242 | G17: 0.02360751612 | H17: 0.0441163441
A18: 17 | B18: 0.03234317487 | C18: 0.002183833732 | D18: 0.2787807331 | E18: 4.870212507 | F18: 64.64622666 | G18: 0.02395111213 | H18: 0.04501545278
A19: 18 | B19: 0.03255884682 | C19: 0.002310082348 | D19: 0.2594609446 | E19: 5.209029739 | F19: 76.94492653 | G19: 0.02402706826 | H19: 0.04640539291
A20: 19 | B20: 0.03280528875 | C20: 0.00243256393 | D20: 0.2988493691 | E20: 5.505588247 | F20: 93.17864288 | G20: 0.02346922219 | H20: 0.04814766776
A21: 20 | B21: 0.03304162835 | C21: 0.00250989239 | D21: 0.2732955993 | E21: 5.949414848 | F21: 124.9042065 | G21: 0.02285645638 | H21: 0.05001767199
A22: 21 | B22: 0.03327594207 | C22: 0.002603983944 | D22: 0.2323611158 | E22: 5.595521446 | F22: 97.15690487 | G22: 0.02267504469 | H22: 0.04987294508
A23: 22 | B23: 0.03351348529 | C23: 0.002724344137 | D23: 0.2239865774 | E23: 5.70533348 | F23: 101.2852181 | G23: 0.02223378733 | H23: 0.05099856436
A24: 23 | B24: 0.03373102168 | C24: 0.002850302672 | D24: 0.272921718 | E24: 5.928970412 | F24: 103.7276229 | G24: 0.02198041256 | H24: 0.0519479544
A25: 24 | B25: 0.03395445709 | C25: 0.003009887261 | D25: 0.3261946947 | E25: 6.414490429 | F25: 134.4854261 | G25: 0.0218220019 | H25: 0.0544409872
A26: 25 | B26: 0.03417460698 | C26: 0.003159561873 | D26: 0.4440950864 | E26: 7.340385282 | F26: 205.6828516 | G26: 0.02160843538 | H26: 0.05769047487
A27: 26 | B27: 0.03438026804 | C27: 0.003306377827 | D27: 0.4768340816 | E27: 7.530093479 | F27: 216.0317529 | G27: 0.02158416586 | H27: 0.05917126738
A28: 27 | B28: 0.03461345431 | C28: 0.003420506404 | D28: 0.4781029651 | E28: 7.797275668 | F28: 244.9973686 | G28: 0.02090597485 | H28: 0.06097067258
A29: 28 | B29: 0.0348309772 | C29: 0.003554213848 | D29: 0.4298642659 | E29: 7.321840121 | F29: 201.4883355 | G29: 0.02029634726 | H29: 0.06115395335
A30: 29 | B30: 0.03507856681 | C30: 0.003694839932 | D30: 0.4223298641 | E30: 7.114909721 | F30: 182.9320486 | G30: 0.02014801936 | H30: 0.06186139367
A31: 30 | B31: 0.03527028518 | C31: 0.003827490664 | D31: 0.3335313147 | E31: 6.671743893 | F31: 148.5005527 | G31: 0.02002304877 | H31: 0.06177680222
A32: 31 | B32: 0.03558006357 | C32: 0.003988320152 | D32: 0.4079565307 | E32: 6.776997344 | F32: 154.5020158 | G32: 0.02004659197 | H32: 0.06344622172
A33: 32 | B33: 0.03586504392 | C33: 0.004160381909 | D33: 0.3819941895 | E33: 6.660876507 | F33: 151.6731045 | G33: 0.01964690931 | H33: 0.06491477632
A34: 33 | B34: 0.03600630546 | C34: 0.00429291004 | D34: 0.4589209207 | E34: 6.926669733 | F34: 165.9613148 | G34: 0.01976891833 | H34: 0.06642642619
A35: 34 | B35: 0.03624388109 | C35: 0.004449277898 | D35: 0.4538579885 | E35: 6.8959722 | F35: 167.9867689 | G35: 0.01953648492 | H35: 0.06787653042
A36: 35 | B36: 0.03644553086 | C36: 0.004588821878 | D36: 0.4014434657 | E36: 6.888480797 | F36: 176.9887587 | G36: 0.01952859947 | H36: 0.06959047926
A37: 36 | B37: 0.03668081168 | C37: 0.004771912362 | D37: 0.4268577285 | E37: 6.780285062 | F37: 165.0871859 | G37: 0.01925006289 | H37: 0.07057886344
A38: 37 | B38: 0.03690982865 | C38: 0.004918526227 | D38: 0.4510171258 | E38: 6.825222451 | F38: 166.5990853 | G38: 0.01906400981 | H38: 0.07191209282
A39: 38 | B39: 0.03711292492 | C39: 0.005090305674 | D39: 0.4984748675 | E39: 7.028936352 | F39: 176.7364528 | G39: 0.01849608451 | H39: 0.07362752814
A40: 39 | B40: 0.03731288569 | C40: 0.005185540818 | D40: 0.4511771596 | E40: 6.568255325 | F40: 141.8836372 | G40: 0.01822967249 | H40: 0.07278024424
A41: 40 | B41: 0.0375170648 | C41: 0.005331820871 | D41: 0.4607567672 | E41: 6.670365723 | F41: 147.4971174 | G41: 0.01738038442 | H41: 0.07422161942
A42: 41 | B42: 0.03772558764 | C42: 0.005495414121 | D42: 0.470534861 | E42: 6.687078251 | F42: 148.5890564 | G42: 0.01718248297 | H42: 0.07563501628
A43: 42 | B43: 0.0379261709 | C43: 0.005678968035 | D43: 0.5100244762 | E43: 6.875174887 | F43: 165.3349353 | G43: 0.01722529678 | H43: 0.07805642376
A44: 43 | B44: 0.03814215034 | C44: 0.005818203697 | D44: 0.5344080591 | E44: 7.106615705 | F44: 178.8470486 | G44: 0.01693074782 | H44: 0.07983245286
A45: 44 | B45: 0.03834584798 | C45: 0.005975274899 | D45: 0.5528324195 | E45: 7.228025537 | F45: 190.8560597 | G45: 0.01697970943 | H45: 0.08179841951
A46: 45 | B46: 0.03855543014 | C46: 0.006153669412 | D46: 0.5772549833 | E46: 7.210528763 | F46: 188.7022144 | G46: 0.01637494394 | H46: 0.083288938
A47: 46 | B47: 0.03876214132 | C47: 0.006340237407 | D47: 0.533146637 | E47: 6.538220185 | F47: 137.3400434 | G47: 0.01653983964 | H47: 0.08182130314
A48: 47 | B48: 0.0389293928 | C48: 0.006487818315 | D48: 0.5814288643 | E48: 6.685209404 | F48: 144.96013 | G48: 0.01623601436 | H48: 0.08342908179
A49: 48 | B49: 0.03914200981 | C49: 0.006687274946 | D49: 0.5805285303 | E49: 6.533363856 | F49: 130.5638485 | G49: 0.01645336845 | H49: 0.08363997668
A50: 49 | B50: 0.03932713695 | C50: 0.006857276889 | D50: 0.6074072615 | E50: 6.493378759 | F50: 120.2657333 | G50: 0.01622643649 | H50: 0.08362974318
A51: 50 | B51: 0.03951168026 | C51: 0.007029715295 | D51: 0.6165022607 | E51: 6.584199148 | F51: 128.9688362 | G51: 0.01573692676 | H51: 0.08594762678
A52: 51 | B52: 0.03969021991 | C52: 0.007226195258 | D52: 0.6630800086 | E52: 6.687116199 | F52: 132.1283715 | G52: 0.01546242073 | H52: 0.08753377649
A53: 52 | B53: 0.03989693962 | C53: 0.007400144876 | D53: 0.7033688525 | E53: 6.991966958 | F53: 156.8229016 | G53: 0.01526409266 | H53: 0.09101111456
A54: 53 | B54: 0.04010247018 | C54: 0.007588513064 | D54: 0.8103013128 | E54: 7.511889602 | F54: 182.6684842 | G54: 0.0150272791 | H54: 0.09339754937
A55: 54 | B55: 0.04031031082 | C55: 0.007781799682 | D55: 0.8237061847 | E55: 7.465603417 | F55: 183.2667573 | G55: 0.01491993697 | H55: 0.09514175487
A56: 55 | B56: 0.04049539635 | C56: 0.007957917916 | D56: 0.8588475015 | E56: 7.631679489 | F56: 202.5366524 | G56: 0.01502969135 | H56: 0.09804189594
A57: 56 | B57: 0.04067975117 | C57: 0.008115562975 | D57: 0.8341866167 | E57: 7.313722345 | F57: 177.3144299 | G57: 0.01468324874 | H57: 0.09716876843
A58: 57 | B58: 0.04086337281 | C58: 0.008337249831 | D58: 0.8938446102 | E58: 7.50955491 | F58: 186.8792798 | G58: 0.01445198532 | H58: 0.09945706613
A59: 58 | B59: 0.04103894253 | C59: 0.008538659974 | D59: 0.9400192251 | E59: 7.68404165 | F59: 198.451586 | G59: 0.014243122 | H59: 0.1017441016
A60: 59 | B60: 0.04124568481 | C60: 0.008695426444 | D60: 0.9622781621 | E60: 7.76533491 | F60: 200.9383039 | G60: 0.01413418565 | H60: 0.1031076329
A61: 60 | B61: 0.04143777284 | C61: 0.008914053255 | D61: 1.013428858 | E61: 7.987030992 | F61: 211.8920255 | G61: 0.01438392342 | H61: 0.1044835172
A62: 61 | B62: 0.04158905613 | C62: 0.009113642273 | D62: 1.085366913 | E62: 8.52171661 | F62: 257.3433952 | G62: 0.01449236956 | H62: 0.109502
A63: 62 | B63: 0.04181432494 | C63: 0.009262028575 | D63: 1.046899341 | E63: 8.11902693 | F63: 229.1592303 | G63: 0.01433814043 | H63: 0.1094151254
A64: 63 | B64: 0.04201999614 | C64: 0.009388380697 | D64: 1.016003783 | E64: 7.931058717 | F64: 221.018802 | G64: 0.01420585433 | H64: 0.1105158161
A65: 64 | B65: 0.04222115857 | C65: 0.009582522704 | D65: 1.063624222 | E65: 8.359687998 | F65: 257.9889655 | G65: 0.01382779244 | H65: 0.1144927817
A66: 65 | B66: 0.04239910004 | C66: 0.00975350759 | D66: 1.074605156 | E66: 8.28219383 | F66: 248.7620509 | G66: 0.01356790643 | H66: 0.1152235506
A67: 66 | B67: 0.0426012944 | C67: 0.009989051673 | D67: 1.123306221 | E67: 8.65864984 | F67: 284.0490262 | G67: 0.01350838268 | H67: 0.1190562796
A68: 67 | B68: 0.04280618371 | C68: 0.01016257251 | D68: 1.147733278 | E68: 8.673107968 | F68: 281.4200482 | G68: 0.01353272603 | H68: 0.1200609858
A69: 68 | B69: 0.04299362679 | C69: 0.01031705627 | D69: 1.165023382 | E69: 8.85700131 | F69: 301.1503689 | G69: 0.01345107913 | H69: 0.1226282177
A70: 69 | B70: 0.04315208027 | C70: 0.01050842683 | D70: 1.232130145 | E70: 9.491728218 | F70: 360.1459215 | G70: 0.01315308689 | H70: 0.1271979487
A71: 70 | B71: 0.04332811748 | C71: 0.01067226153 | D71: 1.23985351 | E71: 9.478789671 | F71: 366.7621948 | G71: 0.01276173933 | H71: 0.1298545603
A72: 71 | B72: 0.04352631655 | C72: 0.01088478855 | D72: 1.272069075 | E72: 9.636039766 | F72: 379.7681966 | G72: 0.01240293231 | H72: 0.1322665148
A73: 72 | B73: 0.04369579232 | C73: 0.01106750448 | D73: 1.285850534 | E73: 9.721938319 | F73: 387.8374657 | G73: 0.01199972106 | H73: 0.1341017223
A74: 73 | B74: 0.04388097219 | C74: 0.01127263338 | D74: 1.343447047 | E74: 10.16979198 | F74: 434.4833956 | G74: 0.01173614266 | H74: 0.1382911657
A75: 74 | B75: 0.04407900875 | C75: 0.01148844183 | D75: 1.382826058 | E75: 10.47507637 | F75: 469.9890609 | G75: 0.01183556855 | H75: 0.1419607114
A76: 75 | B76: 0.04423585795 | C76: 0.01165444251 | D76: 1.404407364 | E76: 10.51766615 | F76: 462.398119 | G76: 0.01208503464 | H76: 0.1423932417
A77: 76 | B77: 0.04442047397 | C77: 0.011875284 | D77: 1.464028012 | E77: 11.09219031 | F77: 537.1021806 | G77: 0.01180262119 | H77: 0.1481433428
A78: 77 | B78: 0.04460055642 | C78: 0.01202834464 | D78: 1.433978157 | E78: 10.67302848 | F78: 489.8459478 | G78: 0.01170421592 | H78: 0.1477864068
A79: 78 | B79: 0.04476917683 | C79: 0.01227083582 | D79: 1.452926374 | E79: 10.53694426 | F79: 462.1884436 | G79: 0.01190117563 | H79: 0.1482100696
A80: 79 | B80: 0.0449697224 | C80: 0.01243251761 | D80: 1.42241011 | E80: 10.16431679 | F80: 425.3402893 | G80: 0.01207942873 | H80: 0.1481416735
A81: 80 | B81: 0.04513659534 | C81: 0.01259320632 | D81: 1.438809286 | E81: 10.3186108 | F81: 434.8400895 | G81: 0.01188509341 | H81: 0.1494094321
A82: 81 | B82: 0.04531370364 | C82: 0.01275451129 | D82: 1.462341464 | E82: 10.54300613 | F82: 462.9634367 | G82: 0.01152722368 | H82: 0.1525914229
A83: 82 | B83: 0.04550288919 | C83: 0.01300790021 | D83: 1.510469656 | E83: 10.83047769 | F83: 488.0258008 | G83: 0.01125214761 | H83: 0.1559465755
A84: 83 | B84: 0.04565397909 | C84: 0.01320032081 | D84: 1.528499181 | E84: 10.77092636 | F84: 467.0576223 | G84: 0.01143808028 | H84: 0.1556535727
A85: 84 | B85: 0.04584303574 | C85: 0.01338470779 | D85: 1.534492201 | E85: 10.6131243 | F85: 443.8631965 | G85: 0.01134266965 | H85: 0.1555747028
A86: 85 | B86: 0.04599951656 | C86: 0.01355696748 | D86: 1.544890442 | E86: 10.60931202 | F86: 441.3997666 | G86: 0.01099617545 | H86: 0.1566378504
A87: 86 | B87: 0.04617429185 | C87: 0.01380263907 | D87: 1.591904546 | E87: 10.94626526 | F87: 472.5382963 | G87: 0.01099358168 | H87: 0.1607506648
A88: 87 | B88: 0.04633063665 | C88: 0.01395578647 | D88: 1.623524112 | E88: 11.23486956 | F88: 495.3510987 | G88: 0.01097469701 | H88: 0.1623115187
A89: 88 | B89: 0.04648845537 | C89: 0.01413926058 | D89: 1.618198195 | E89: 10.92868951 | F89: 456.7658029 | G89: 0.01081152679 | H89: 0.160451481
A90: 89 | B90: 0.0465955813 | C90: 0.01429994295 | D90: 1.623017946 | E90: 10.82378153 | F90: 441.1543224 | G90: 0.01044384759 | H90: 0.1612370372
A91: 90 | B91: 0.04676364854 | C91: 0.01459677146 | D91: 1.772644664 | E91: 12.23084134 | F91: 574.6041009 | G91: 0.01036714915 | H91: 0.1705328064
A92: 91 | B92: 0.04691012688 | C92: 0.01469255862 | D92: 1.72909787 | E92: 11.71163486 | F92: 521.113828 | G92: 0.01021474062 | H92: 0.1691917661
A93: 92 | B93: 0.04707836279 | C93: 0.01485431664 | D93: 1.729482622 | E93: 11.62332454 | F93: 511.1216265 | G93: 0.009938121808 | H93: 0.1706468814
A94: 93 | B94: 0.0472345475 | C94: 0.01499412272 | D94: 1.660098164 | E94: 10.74900932 | F94: 418.2087601 | G94: 0.009834821795 | H94: 0.1661046617
A95: 94 | B95: 0.04744187542 | C95: 0.01521095847 | D95: 1.681317758 | E95: 10.74949083 | F95: 413.6663032 | G95: 0.009805726292 | H95: 0.1679501914
A96: 95 | B96: 0.04758751302 | C96: 0.01541576944 | D96: 1.705317334 | E96: 10.93763091 | F96: 428.2235809 | G96: 0.009647220732 | H96: 0.1701417205
A97: 96 | B97: 0.04767833327 | C97: 0.01560349085 | D97: 1.735567094 | E97: 11.08611961 | F97: 437.6667686 | G97: 0.009489689103 | H97: 0.1714714521
A98: 97 | B98: 0.04785526088 | C98: 0.01571677885 | D98: 1.63699166 | E98: 10.08233704 | F98: 345.832152 | G98: 0.009664075105 | H98: 0.1647209116
A99: 98 | B99: 0.04797589444 | C99: 0.01588895125 | D99: 1.626795351 | E99: 9.8233469 | F99: 319.2745715 | G99: 0.009842461274 | H99: 0.1639894168
A100: 99 | B100: 0.04809892672 | C100: 0.01606059933 | D100: 1.625330815 | E100: 9.622891738 | F100: 297.2816299 | G100: 0.009793268026 | H100: 0.1623870872
A101: 100 | B101: 0.04826015565 | C101: 0.01628883053 | D101: 1.641289821 | E101: 9.650673375 | F101: 296.151183 | G101: 0.009803063912 | H101: 0.1634183338
A102: 101 | B102: 0.04842557349 | C102: 0.01647053516 | D102: 1.613725963 | E102: 9.290452409 | F102: 269.115389 | G102: 0.009923638687 | H102: 0.1646433257
A103: 102 | B103: 0.04859427144 | C103: 0.01658319634 | D103: 1.602584861 | E103: 9.119946878 | F103: 249.6332289 | G103: 0.009854081232 | H103: 0.1621613935
A104: 103 | B104: 0.0487715629 | C104: 0.01674663362 | D104: 1.584778681 | E104: 8.911630775 | F104: 233.8146385 | G104: 0.009929635423 | H104: 0.1626024614
A105: 104 | B105: 0.04893090215 | C105: 0.01697371457 | D105: 1.622303027 | E105: 9.21353853 | F105: 256.7417882 | G105: 0.00985223679 | H105: 0.1688335094
A106: 105 | B106: 0.04912128423 | C106: 0.01714767385 | D106: 1.602527791 | E106: 8.981059764 | F106: 239.2093559 | G106: 0.00996214963 | H106: 0.167068492
A107: 106 | B107: 0.04925653701 | C107: 0.01728684351 | D107: 1.551162305 | E107: 8.480086705 | F107: 209.7460701 | G107: 0.009803178877 | H107: 0.1681924862
A108: 107 | B108: 0.04938240142 | C108: 0.01742045989 | D108: 1.551701843 | E108: 8.524630348 | F108: 215.3989876 | G108: 0.009742720792 | H108: 0.1702740843
A109: 108 | B109: 0.0494979921 | C109: 0.01762221747 | D109: 1.554359888 | E109: 8.428553063 | F109: 206.4364434 | G109: 0.009591808961 | H109: 0.1710944479
A110: 109 | B110: 0.0496286187 | C110: 0.01779711016 | D110: 1.544126534 | E110: 8.207454037 | F110: 186.1890388 | G110: 0.009418678502 | H110: 0.1679536475
A111: 110 | B111: 0.04975703427 | C111: 0.01806904821 | D111: 1.597744494 | E111: 8.501081742 | F111: 202.2312902 | G111: 0.009139279172 | H111: 0.1730885361
A112: 111 | B112: 0.04992328101 | C112: 0.01822366962 | D112: 1.599310949 | E112: 8.595479613 | F112: 216.6754538 | G112: 0.009076094236 | H112: 0.178574104
A113: 112 | B113: 0.05008637154 | C113: 0.01843324472 | D113: 1.600815129 | E113: 8.644742604 | F113: 228.7130014 | G113: 0.008994199639 | H113: 0.1834777566
A114: 113 | B114: 0.05020358812 | C114: 0.0186156876 | D114: 1.588665019 | E114: 8.340241498 | F114: 199.2116019 | G114: 0.009063916382 | H114: 0.1792032383
A115: 114 | B115: 0.05032206937 | C115: 0.01880901996 | D115: 1.598455745 | E115: 8.37242049 | F115: 203.5492494 | G115: 0.009024252071 | H115: 0.1820216101
A116: 115 | B116: 0.0504645397 | C116: 0.01896279617 | D116: 1.591100867 | E116: 8.319434648 | F116: 204.6636149 | G116: 0.009053387228 | H116: 0.1838750417
A117: 116 | B117: 0.05061114408 | C117: 0.01916861981 | D117: 1.614571406 | E117: 8.498262197 | F117: 216.399795 | G117: 0.009125792877 | H117: 0.1867455809
A118: 117 | B118: 0.05077096808 | C118: 0.01926262931 | D118: 1.581365602 | E118: 8.270330264 | F118: 206.883132 | G118: 0.009168187489 | H118: 0.1866761896
A119: 118 | B119: 0.05091339675 | C119: 0.01946483058 | D119: 1.620301958 | E119: 8.535781928 | F119: 223.5531459 | G119: 0.009327255135 | H119: 0.1904775504
A120: 119 | B120: 0.05099930176 | C120: 0.01959375166 | D120: 1.647677891 | E120: 8.726320878 | F120: 233.3281799 | G120: 0.009209733035 | H120: 0.1920206767
A121: 120 | B121: 0.05112032631 | C121: 0.01974916962 | D121: 1.672041233 | E121: 8.932142343 | F121: 251.066684 | G121: 0.009102663235 | H121: 0.1962168388
A122: 121 | B122: 0.0512863377 | C122: 0.01996952522 | D122: 1.706166404 | E122: 9.262721743 | F122: 278.9515184 | G122: 0.009139009587 | H122: 0.2016133874
A123: 122 | B123: 0.05143637387 | C123: 0.02020960411 | D123: 1.753223015 | E123: 9.687541551 | F123: 319.6754607 | G123: 0.009185516375 | H123: 0.2091232758
A124: 123 | B124: 0.05161512424 | C124: 0.02035424457 | D124: 1.768798915 | E124: 9.919307433 | F124: 345.5630736 | G124: 0.0093201041 | H124: 0.213027515
A125: 124 | B125: 0.05175984866 | C125: 0.02039865742 | D125: 1.745315617 | E125: 9.759015885 | F125: 334.7775294 | G125: 0.009239915226 | H125: 0.2125393992
A126: 125 | B126: 0.05193341414 | C126: 0.02059376655 | D126: 1.769263474 | E126: 10.0209286 | F126: 361.1838933 | G126: 0.009476769823 | H126: 0.2169705305
A127: 126 | B127: 0.05200266655 | C127: 0.02072323991 | D127: 1.786434669 | E127: 10.08142256 | F127: 360.1015991 | G127: 0.009462587872 | H127: 0.2176546762
A128: 127 | B128: 0.05210544822 | C128: 0.02085545821 | D128: 1.774387375 | E128: 9.847350773 | F128: 332.0408012 | G128: 0.009571138809 | H128: 0.2154671629
A129: 128 | B129: 0.05223646108 | C129: 0.02099550101 | D129: 1.76571626 | E129: 9.645975171 | F129: 304.9109494 | G129: 0.009498586177 | H129: 0.2119218201
A130: 129 | B130: 0.0523712679 | C130: 0.02115476069 | D130: 1.799745786 | E130: 9.975959889 | F130: 331.800076 | G130: 0.009533414519 | H130: 0.2161164267
A131: 130 | B131: 0.05250842975 | C131: 0.02132954465 | D131: 1.787474781 | E131: 9.774880451 | F131: 313.2037769 | G131: 0.009745655784 | H131: 0.2149974661
A132: 131 | B132: 0.05262780388 | C132: 0.02134486479 | D132: 1.758325575 | E132: 9.515283503 | F132: 289.0099424 | G132: 0.00954993303 | H132: 0.2112007624
A133: 132 | B133: 0.05278428149 | C133: 0.0214569463 | D133: 1.778405739 | E133: 9.815386911 | F133: 316.4553987 | G133: 0.009707980704 | H133: 0.2158412491
A134: 133 | B134: 0.05287308094 | C134: 0.0215668732 | D134: 1.769486777 | E134: 9.699265389 | F134: 303.2517642 | G134: 0.009684506613 | H134: 0.2136442359
A135: 134 | B135: 0.05298133973 | C135: 0.02173067361 | D135: 1.791488577 | E135: 9.868641015 | F135: 311.3291803 | G135: 0.009629505698 | H135: 0.2134836009
A136: 135 | B136: 0.05307601118 | C136: 0.02175229162 | D136: 1.755625777 | E136: 9.567079703 | F136: 288.9901318 | G136: 0.009579191509 | H136: 0.2078472929
A137: 136 | B137: 0.053166105 | C137: 0.02189972003 | D137: 1.753953547 | E137: 9.48326582 | F137: 276.5402612 | G137: 0.009518639803 | H137: 0.2016628525
A138: 137 | B138: 0.05330356606 | C138: 0.02205192605 | D138: 1.765533459 | E138: 9.593659777 | F138: 285.8088776 | G138: 0.009492049232 | H138: 0.2048661379
A139: 138 | B139: 0.05338158727 | C139: 0.0221611595 | D139: 1.760298721 | E139: 9.518633903 | F139: 279.7229593 | G139: 0.009358969857 | H139: 0.2059733959
A140: 139 | B140: 0.05352994676 | C140: 0.02229026737 | D140: 1.743983519 | E140: 9.350678993 | F140: 267.6699044 | G140: 0.009149468854 | H140: 0.2011773407
A141: 140 | B141: 0.05360019753 | C141: 0.02247783095 | D141: 1.754576033 | E141: 9.388588661 | F141: 268.1475775 | G141: 0.009026855546 | H141: 0.2019696664
A142: 141 | B142: 0.05369523969 | C142: 0.02263840896 | D142: 1.776145779 | E142: 9.545522184 | F142: 277.9685599 | G142: 0.009116399893 | H142: 0.2045769765
A143: 142 | B143: 0.05382558583 | C143: 0.02282963155 | D143: 1.809668649 | E143: 9.847466335 | F143: 300.2611919 | G143: 0.009033315537 | H143: 0.2091709311
A144: 143 | B144: 0.0539435951 | C144: 0.02300531113 | D144: 1.823604362 | E144: 9.996240839 | F144: 312.2575601 | G144: 0.008788632418 | H144: 0.2089230051
A145: 144 | B145: 0.05401693882 | C145: 0.0230835744 | D145: 1.806676694 | E145: 9.85886473 | F145: 303.3090938 | G145: 0.008722350084 | H145: 0.2081689046
A146: 145 | B146: 0.0540973809 | C146: 0.02313461756 | D146: 1.779735546 | E146: 9.584020174 | F146: 282.6782842 | G146: 0.008680290391 | H146: 0.2113933791
A147: 146 | B147: 0.05419762126 | C147: 0.02314560759 | D147: 1.734458556 | E147: 9.208927673 | F147: 258.8987853 | G147: 0.00865562813 | H147: 0.2124710604
A148: 147 | B148: 0.054294677 | C148: 0.02326592252 | D148: 1.726643333 | E148: 9.112569905 | F148: 251.777638 | G148: 0.00857975923 | H148: 0.2144801982
A149: 148 | B149: 0.05439422139 | C149: 0.02335698964 | D149: 1.752853208 | E149: 9.399334727 | F149: 275.1114156 | G149: 0.008665479015 | H149: 0.2201929602
A150: 149 | B150: 0.05448796519 | C150: 0.02339378382 | D150: 1.723434524 | E150: 9.114100189 | F150: 252.9326736 | G150: 0.008602548237 | H150: 0.2168695453
A151: 150 | B151: 0.05458243659 | C151: 0.02344474593 | D151: 1.718805238 | E151: 9.171173218 | F151: 264.524825 | G151: 0.00878332905 | H151: 0.2219069277
A152: 151 | B152: 0.05465349234 | C152: 0.02350640346 | D152: 1.697132898 | E152: 9.014800538 | F152: 258.730007 | G152: 0.008809843081 | H152: 0.223350696
A153: 152 | B153: 0.05475556074 | C153: 0.02359791595 | D153: 1.680794418 | E153: 8.836512656 | F153: 248.117304 | G153: 0.008809178223 | H153: 0.2240279112
A154: 153 | B154: 0.05484713956 | C154: 0.02366416384 | D154: 1.66419307 | E154: 8.678120854 | F154: 240.3502481 | G154: 0.008808488668 | H154: 0.2247908531
A155: 154 | B155: 0.05494943259 | C155: 0.02371606424 | D155: 1.640036827 | E155: 8.520110137 | F155: 233.5418672 | G155: 0.008993109275 | H155: 0.2252726938
A156: 155 | B156: 0.05503173711 | C156: 0.02375703856 | D156: 1.633553792 | E156: 8.491717588 | F156: 234.3114578 | G156: 0.00926923779 | H156: 0.2265607528
A157: 156 | B157: 0.05511996301 | C157: 0.02379766821 | D157: 1.603236717 | E157: 8.264876004 | F157: 220.5077529 | G157: 0.009635724142 | H157: 0.2250019647
A158: 157 | B158: 0.05518256157 | C158: 0.02378874114 | D158: 1.580684902 | E158: 8.007010863 | F158: 198.6189304 | G158: 0.009876022033 | H158: 0.2199866485
A159: 158 | B159: 0.05529488199 | C159: 0.02389153681 | D159: 1.56768868 | E159: 7.871310936 | F159: 189.0372515 | G159: 0.01011707067 | H159: 0.2186022205
A160: 159 | B160: 0.05534880198 | C160: 0.02393899618 | D160: 1.563702544 | E160: 7.906764789 | F160: 197.393472 | G160: 0.01026340504 | H160: 0.2224285495
A161: 160 | B161: 0.05538184523 | C161: 0.02392407525 | D161: 1.546834697 | E161: 7.794687541 | F161: 192.753025 | G161: 0.01084537909 | H161: 0.2221150119
A162: 161 | B162: 0.05548743024 | C162: 0.02406120935 | D162: 1.583587544 | E162: 8.18798505 | F162: 224.5947906 | G162: 0.01110405511 | H162: 0.2301908802
A163: 162 | B163: 0.05558023914 | C163: 0.02420333879 | D163: 1.599756223 | E163: 8.21473705 | F163: 221.6579056 | G163: 0.01161565183 | H163: 0.2300700773
A164: 163 | B164: 0.05565141205 | C164: 0.02429869006 | D164: 1.592355206 | E164: 8.149508288 | F164: 218.9584576 | G164: 0.01172575567 | H164: 0.2306037874
A165: 164 | B165: 0.05570463166 | C165: 0.02434887317 | D165: 1.592225283 | E165: 8.180967152 | F165: 222.0147025 | G165: 0.01197181973 | H165: 0.2315964529
A166: 165 | B166: 0.05576405248 | C166: 0.02439226697 | D166: 1.574467674 | E166: 8.04702265 | F166: 214.870849 | G166: 0.01201706327 | H166: 0.2310974354
A167: 166 | B167: 0.05575641999 | C167: 0.02436366531 | D167: 1.562386587 | E167: 8.069637055 | F167: 227.8333045 | G167: 0.01225639112 | H167: 0.2348883599
A168: 167 | B168: 0.05583245737 | C168: 0.02439947804 | D168: 1.559515143 | E168: 8.05714026 | F168: 226.9158991 | G168: 0.01228883575 | H168: 0.234739898
A169: 168 | B169: 0.05589939796 | C169: 0.02455662247 | D169: 1.605436436 | E169: 8.475185984 | F169: 258.578146 | G169: 0.01249954702 | H169: 0.240449379
A170: 169 | B170: 0.05595478907 | C170: 0.0246481651 | D170: 1.603131422 | E170: 8.468460732 | F170: 263.6888764 | G170: 0.01269322585 | H170: 0.2428048068
A171: 170 | B171: 0.0560163849 | C171: 0.02471505186 | D171: 1.623939382 | E171: 8.62428178 | F171: 273.4928845 | G171: 0.0126359241 | H171: 0.2444276787
A172: 171 | B172: 0.05607134764 | C172: 0.0247406934 | D172: 1.609978747 | E172: 8.490740521 | F172: 265.251397 | G172: 0.01234242238 | H172: 0.2439841924
A173: 172 | B173: 0.05611346914 | C173: 0.02475711671 | D173: 1.623049537 | E173: 8.693511262 | F173: 285.6883038 | G173: 0.01228110862 | H173: 0.2471876526
A174: 173 | B174: 0.05616063583 | C174: 0.02472518816 | D174: 1.61133993 | E174: 8.704652244 | F174: 293.4594211 | G174: 0.01206750904 | H174: 0.248695721
A175: 174 | B175: 0.0562416542 | C175: 0.02477772363 | D175: 1.602248163 | E175: 8.625987066 | F175: 288.4569013 | G175: 0.01191453383 | H175: 0.2485320197
A176: 175 | B176: 0.0563033648 | C176: 0.02486105962 | D176: 1.61727679 | E176: 8.723940303 | F176: 294.0164591 | G176: 0.01199528526 | H176: 0.2496356607
A177: 176 | B177: 0.0563873799 | C177: 0.02490530012 | D177: 1.594465766 | E177: 8.43263709 | F177: 267.4786628 | G177: 0.01184651296 | H177: 0.2460211239
A178: 177 | B178: 0.05643348837 | C178: 0.02491423285 | D178: 1.559470267 | E178: 8.052448187 | F178: 233.7078275 | G178: 0.01180554412 | H178: 0.2400090091
A179: 178 | B179: 0.0565138705 | C179: 0.02495683292 | D179: 1.565995327 | E179: 8.154328377 | F179: 242.1682365 | G179: 0.01171265939 | H179: 0.2420592846
A180: 179 | B180: 0.05653401063 | C180: 0.02498316001 | D180: 1.554187059 | E180: 7.998163334 | F180: 226.8297922 | G180: 0.01177437133 | H180: 0.2387687763
A181: 180 | B181: 0.0565706157 | C181: 0.02499902332 | D181: 1.566079073 | E181: 8.134527249 | F181: 235.5862636 | G181: 0.01181000165 | H181: 0.2399191585
A182: 181 | B182: 0.05664861716 | C182: 0.02509106967 | D182: 1.54550518 | E182: 7.792699765 | F182: 201.0720257 | G182: 0.01151115482 | H182: 0.233138069
A183: 182 | B183: 0.05675808825 | C183: 0.0251792077 | D183: 1.537929941 | E183: 7.665251302 | F183: 188.7354476 | G183: 0.01149029389 | H183: 0.2296213695
A184: 183 | B184: 0.05680101591 | C184: 0.02513961015 | D184: 1.489415172 | E184: 7.205695018 | F184: 156.9052499 | G184: 0.01173471661 | H184: 0.2212527189
A185: 184 | B185: 0.05681377328 | C185: 0.02511768953 | D185: 1.464786066 | E185: 6.99397341 | F185: 144.6615796 | G185: 0.01185802652 | H185: 0.2178735788
A186: 185 | B186: 0.05684741737 | C186: 0.0251355978 | D186: 1.454634644 | E186: 6.823709668 | F186: 130.0091334 | G186: 0.01194139295 | H186: 0.211668317
A187: 186 | B187: 0.05685590942 | C187: 0.02513859901 | D187: 1.44297018 | E187: 6.68632341 | F187: 120.702959 | G187: 0.01218665292 | H187: 0.2067850315
A188: 187 | B188: 0.05689839971 | C188: 0.02517105396 | D188: 1.43821738 | E188: 6.678705289 | F188: 120.9922967 | G188: 0.01206146664 | H188: 0.2060899163
A189: 188 | B189: 0.05688918816 | C189: 0.02514662805 | D189: 1.438586379 | E189: 6.682004421 | F189: 119.6757458 | G189: 0.01206846659 | H189: 0.2036902356
A190: 189 | B190: 0.05696131038 | C190: 0.02522771057 | D190: 1.422589407 | E190: 6.532310614 | F190: 111.9274048 | G190: 0.01235215744 | H190: 0.2009838511
A191: 190 | B191: 0.05700709201 | C191: 0.0252755874 | D191: 1.416041237 | E191: 6.423200259 | F191: 104.4649241 | G191: 0.01243886117 | H191: 0.1974320282
A192: 191 | B192: 0.05704273217 | C192: 0.02528347419 | D192: 1.416943507 | E192: 6.429244132 | F192: 104.6125669 | G192: 0.01273973068 | H192: 0.196550436
A193: 192 | B193: 0.05708296942 | C193: 0.02531049099 | D193: 1.410402964 | E193: 6.389369325 | F193: 103.2396891 | G193: 0.01268166515 | H193: 0.1952673292
A194: 193 | B194: 0.05706991453 | C194: 0.02529421694 | D194: 1.389546912 | E194: 6.231841242 | F194: 95.96935518 | G194: 0.01257653465 | H194: 0.1879796078
A195: 194 | B195: 0.05711689492 | C195: 0.02543980199 | D195: 1.394948641 | E195: 6.224932727 | F195: 95.32699682 | G195: 0.0127734041 | H195: 0.1881781871
A196: 195 | B196: 0.0571493537 | C196: 0.02551382705 | D196: 1.41383871 | E196: 6.348347129 | F196: 100.4653582 | G196: 0.01300960536 | H196: 0.1892882971
A197: 196 | B197: 0.05720508671 | C197: 0.0256148716 | D197: 1.414411486 | E197: 6.311190894 | F197: 98.51089839 | G197: 0.01300712347 | H197: 0.1896151072
A198: 197 | B198: 0.05719486204 | C198: 0.02569216108 | D198: 1.438498524 | E198: 6.512392139 | F198: 108.0127484 | G198: 0.01326273169 | H198: 0.1948180444
A199: 198 | B199: 0.05717736357 | C199: 0.02565319968 | D199: 1.432231986 | E199: 6.493785883 | F199: 107.5785247 | G199: 0.01290072133 | H199: 0.1939916604
A200: 199 | B200: 0.05723150125 | C200: 0.02570979596 | D200: 1.433847945 | E200: 6.522587715 | F200: 109.9459185 | G200: 0.01272012207 | H200: 0.1943004637
... 512 more rows

Sheet Ln Monthly Stats
A1: Month | B1: Average | C1: Std Deviation | D1: Skewness | E1: Kurtosis | F1: 6th Moment | G1: Minimum | H1: Maximum
A2: 1 | B2: -3.564893474 | C2: 0 | D2: 0 | E2: 0 | F2: 0 | G2: -3.564893474 | H2: -3.564893474
A3: 2 | B3: -3.55624219 | C3: 0.01453563344 | D3: -0.03637743495 | E3: 3.153006012 | F3: 11.95688588 | G3: -3.615297456 | H3: -3.512986716
A4: 3 | B4: -3.546797053 | C4: 0.02084392456 | D4: 0.09919789143 | E4: 2.98353129 | F4: 14.30582565 | G4: -3.607043511 | H4: -3.476241692
A5: 4 | B5: -3.538621652 | C5: 0.02576313329 | D5: -0.02364717349 | E5: 3.381234831 | F5: 21.51112259 | G5: -3.641277611 | H5: -3.459829051
A6: 5 | B6: -3.529810877 | C6: 0.03028660917 | D6: -0.1259607534 | E6: 3.330725874 | F6: 21.46119473 | G6: -3.649940193 | H6: -3.426901451
A7: 6 | B7: -3.52093429 | C7: 0.0333389565 | D7: -0.09681290231 | E7: 3.152107586 | F7: 16.5084349 | G7: -3.628320036 | H7: -3.411242615
A8: 7 | B8: -3.51205586 | C8: 0.03775098701 | D8: -0.0764762315 | E8: 3.177249159 | F8: 16.77167094 | G8: -3.636824328 | H8: -3.388762219
A9: 8 | B9: -3.503253584 | C9: 0.04043223603 | D9: -0.02765165996 | E9: 3.007924679 | F9: 14.5386944 | G9: -3.620902329 | H9: -3.373627323
A10: 9 | B10: -3.495407265 | C10: 0.04392552406 | D10: 0.04640192495 | E10: 3.298217097 | F10: 20.62950746 | G10: -3.641819498 | H10: -3.332552802
A11: 10 | B11: -3.48739046 | C11: 0.04701750792 | D11: -0.04033923517 | E11: 3.155661988 | F11: 18.31056716 | G11: -3.662833352 | H11: -3.319817856
A12: 11 | B12: -3.478989871 | C12: 0.04948117926 | D12: -0.02400143217 | E12: 3.198886922 | F12: 19.64785198 | G12: -3.649107416 | H12: -3.274300187
A13: 12 | B13: -3.470711615 | C13: 0.05234702352 | D13: -0.008210817472 | E13: 3.265692112 | F13: 21.101722 | G13: -3.65057789 | H13: -3.245108486
A14: 13 | B14: -3.463255468 | C14: 0.05611538913 | D14: -0.03111754757 | E14: 3.622356147 | F14: 28.08372475 | G14: -3.670644382 | H14: -3.207490398
A15: 14 | B15: -3.45534055 | C15: 0.05894677291 | D15: -0.08490487892 | E15: 3.994770289 | F15: 37.22520288 | G15: -3.680870822 | H15: -3.162593619
A16: 15 | B16: -3.447728759 | C16: 0.06196971403 | D16: -0.02556439882 | E16: 4.330977799 | F16: 46.13746275 | G16: -3.702921098 | H16: -3.123738418
A17: 16 | B17: -3.440372587 | C17: 0.06530613815 | D17: -0.06770788937 | E17: 4.601339844 | F17: 48.61126007 | G17: -3.746190138 | H17: -3.120924951
A18: 17 | B18: -3.433627206 | C18: 0.06749700038 | D18: -0.08363675493 | E18: 4.50551463 | F18: 45.01718646 | G18: -3.731740521 | H18: -3.100749453
A19: 18 | B19: -3.427223501 | C19: 0.07105692589 | D19: -0.1522045292 | E19: 4.778413778 | F19: 51.00595208 | G19: -3.72857424 | H19: -3.0703396
A20: 19 | B20: -3.419912884 | C20: 0.07423198177 | D20: -0.1508979741 | E20: 4.910866657 | F20: 55.51842162 | G20: -3.75206541 | H20: -3.033482579
A21: 20 | B21: -3.412877746 | C21: 0.07621087602 | D21: -0.2230099898 | E21: 5.180739375 | F21: 66.66729889 | G21: -3.778521646 | H21: -2.995378896
A22: 21 | B22: -3.405994713 | C22: 0.07863481761 | D22: -0.2587913321 | E22: 5.103788398 | F22: 60.59790774 | G22: -3.786490312 | H22: -2.998276606
A23: 22 | B23: -3.399130132 | C23: 0.08180414421 | D23: -0.3003357478 | E23: 5.252211149 | F23: 64.93435253 | G23: -3.806142195 | H23: -2.975957797
A24: 23 | B24: -3.392923611 | C24: 0.08498563716 | D24: -0.2963465443 | E24: 5.448425396 | F24: 68.43663339 | G24: -3.81760356 | H24: -2.957512939
A25: 24 | B25: -3.386679041 | C25: 0.08914180134 | D25: -0.3066888302 | E25: 5.644451082 | F25: 74.28218454 | G25: -3.824836557 | H25: -2.910637968
A26: 25 | B26: -3.380545898 | C26: 0.09274791889 | D26: -0.2752451926 | E26: 5.888212451 | F26: 84.62014034 | G26: -3.834671514 | H26: -2.852663199
A27: 26 | B27: -3.374894204 | C27: 0.09647142752 | D27: -0.2835938135 | E27: 5.952991104 | F27: 85.15187416 | G27: -3.835795295 | H27: -2.827319203
A28: 27 | B28: -3.36840004 | C28: 0.09926999883 | D28: -0.3223766336 | E28: 6.057581735 | F28: 90.08800626 | G28: -3.867720283 | H28: -2.797362308
A29: 28 | B29: -3.362475286 | C29: 0.1027562002 | D29: -0.3662076686 | E29: 5.997329634 | F29: 86.36399377 | G29: -3.897314347 | H29: -2.794360769
A30: 29 | B30: -3.355739752 | C30: 0.1061593598 | D30: -0.3785308636 | E30: 5.903422096 | F30: 82.0892357 | G30: -3.90464929 | H30: -2.782858982
A31: 30 | B31: -3.350668934 | C31: 0.1098949606 | D31: -0.4555643158 | E31: 5.780022453 | F31: 75.50098412 | G31: -3.91087123 | H31: -2.784227354
A32: 31 | B32: -3.342297898 | C32: 0.1132080805 | D32: -0.4081214643 | E32: 5.748987326 | F32: 73.63837361 | G32: -3.909696116 | H32: -2.757562634
A33: 32 | B33: -3.334789382 | C33: 0.1174433275 | D33: -0.446013552 | E33: 5.68774793 | F33: 72.68317637 | G33: -3.92983524 | H33: -2.734680003
A34: 33 | B34: -3.331212873 | C34: 0.1203835955 | D34: -0.4054138893 | E34: 5.682659679 | F34: 71.29853449 | G34: -3.923644356 | H34: -2.711660317
A35: 34 | B35: -3.325078279 | C35: 0.1241255982 | D35: -0.4271588193 | E35: 5.651613931 | F35: 70.97254784 | G35: -3.93547154 | H35: -2.690064953
A36: 35 | B36: -3.319970152 | C36: 0.1278826703 | D36: -0.4947415878 | E36: 5.630425534 | F36: 71.0772003 | G36: -3.935875248 | H36: -2.665127513
A37: 36 | B37: -3.314070018 | C37: 0.1320758747 | D37: -0.4842489042 | E37: 5.576095797 | F37: 68.85107596 | G37: -3.950240951 | H37: -2.651024564
A38: 37 | B38: -3.308263221 | C38: 0.1352766938 | D38: -0.484694395 | E38: 5.594016368 | F38: 68.7929684 | G38: -3.959953025 | H38: -2.632310839
A39: 38 | B39: -3.303294931 | C39: 0.1391438437 | D39: -0.483155228 | E39: 5.673166254 | F39: 70.56390345 | G39: -3.990196217 | H39: -2.608736299
A40: 39 | B40: -3.29820287 | C40: 0.1412712541 | D40: -0.4976091587 | E40: 5.522012767 | F40: 64.97225176 | G40: -4.004704656 | H40: -2.620310731
A41: 40 | B41: -3.293206337 | C41: 0.1446596199 | D41: -0.5211889141 | E41: 5.599640667 | F41: 68.64666105 | G41: -4.052413041 | H41: -2.600699804
A42: 41 | B42: -3.288189763 | C42: 0.1483968745 | D42: -0.5304001898 | E42: 5.570271311 | F42: 67.70439561 | G42: -4.063864846 | H42: -2.581835925
A43: 42 | B43: -3.283479822 | C43: 0.1524177635 | D43: -0.516824149 | E43: 5.486325559 | F43: 65.14368121 | G43: -4.061376233 | H43: -2.550323332
A44: 43 | B44: -3.278235441 | C44: 0.1553870348 | D44: -0.5343268615 | E44: 5.565503485 | F44: 67.38228616 | G44: -4.078623913 | H44: -2.52782518
A45: 44 | B45: -3.273424784 | C45: 0.1588019712 | D45: -0.5392838232 | E45: 5.536677182 | F45: 66.26642792 | G45: -4.075736211 | H45: -2.503497357
A46: 45 | B46: -3.268568724 | C46: 0.1626250304 | D46: -0.540063903 | E46: 5.577318196 | F46: 68.07652507 | G46: -4.112002921 | H46: -2.485439536
A47: 46 | B47: -3.263901236 | C47: 0.1669227537 | D47: -0.5379615946 | E47: 5.372492159 | F47: 60.67758074 | G47: -4.101983285 | H47: -2.50321764
A48: 47 | B48: -3.260070124 | C48: 0.1697440047 | D48: -0.5192176159 | E48: 5.386127264 | F48: 60.81387395 | G48: -4.120523396 | H48: -2.483758328
A49: 48 | B49: -3.255355099 | C49: 0.1741963761 | D49: -0.5260360731 | E49: 5.315853683 | F49: 57.43744301 | G49: -4.107225054 | H49: -2.481233683
A50: 49 | B50: -3.251231168 | C50: 0.1776749512 | D50: -0.5234364432 | E50: 5.35361141 | F50: 57.42501659 | G50: -4.121113485 | H50: -2.481356042
A51: 50 | B51: -3.247203764 | C51: 0.1815493885 | D51: -0.5421134991 | E51: 5.380801093 | F51: 58.88410551 | G51: -4.151745306 | H51: -2.454017159
A52: 51 | B52: -3.243398847 | C52: 0.1854186067 | D52: -0.5224313664 | E52: 5.349280322 | F52: 57.41632056 | G52: -4.169342668 | H52: -2.435730543
A53: 52 | B53: -3.238807716 | C53: 0.1887215963 | D53: -0.5142130226 | E53: 5.30844901 | F53: 57.35286299 | G53: -4.182252093 | H53: -2.396773642
A54: 53 | B54: -3.234230604 | C54: 0.1914968259 | D54: -0.4728819008 | E54: 5.365421202 | F54: 59.11216486 | G54: -4.197888123 | H54: -2.370890172
A55: 54 | B55: -3.229768567 | C55: 0.1952155237 | D55: -0.4597636204 | E55: 5.270235685 | F55: 57.17701795 | G55: -4.205056908 | H55: -2.352387343
A56: 55 | B56: -3.225805139 | C56: 0.1983238185 | D56: -0.4369349286 | E56: 5.184118468 | F56: 55.54581631 | G56: -4.197727611 | H56: -2.322360382
A57: 56 | B57: -3.221889235 | C57: 0.2016305588 | D57: -0.4448021461 | E57: 5.122003394 | F57: 54.34454212 | G57: -4.221047977 | H57: -2.331305932
A58: 57 | B58: -3.218192712 | C58: 0.2055351332 | D58: -0.4190088583 | E58: 5.109225172 | F58: 54.06164807 | G58: -4.236923482 | H58: -2.308029224
A59: 58 | B59: -3.214645212 | C59: 0.2090561075 | D59: -0.3972287881 | E59: 5.072054292 | F59: 53.35323461 | G59: -4.251481155 | H59: -2.285294426
A60: 59 | B60: -3.210168664 | C60: 0.2117559144 | D60: -0.4018448399 | E60: 5.109503912 | F60: 53.71250876 | G60: -4.259158902 | H60: -2.271981857
A61: 60 | B61: -3.206320974 | C61: 0.2154020176 | D61: -0.3735825639 | E61: 5.022503913 | F61: 51.14948378 | G61: -4.241644125 | H61: -2.25872595
A62: 61 | B62: -3.203419388 | C62: 0.2187785108 | D62: -0.3595477589 | E62: 5.044026957 | F62: 51.49615136 | G62: -4.234133005 | H62: -2.211812465
A63: 62 | B63: -3.198589379 | C63: 0.2215308586 | D63: -0.3652153074 | E63: 4.953789014 | F63: 49.52835022 | G63: -4.244832129 | H63: -2.21260614
A64: 63 | B64: -3.194192126 | C64: 0.2240820526 | D64: -0.3874318276 | E64: 4.929126556 | F64: 49.09071473 | G64: -4.254101123 | H64: -2.202596636
A65: 64 | B65: -3.190147506 | C65: 0.2274325235 | D65: -0.392526981 | E65: 4.979247361 | F65: 51.09814373 | G65: -4.281074767 | H65: -2.1672435
A66: 65 | B66: -3.186602125 | C66: 0.2303822731 | D66: -0.3905967528 | E66: 4.986062073 | F66: 51.24729526 | G66: -4.300048096 | H66: -2.160881119
A67: 66 | B67: -3.182756611 | C67: 0.2342774715 | D67: -0.3721846921 | E67: 4.911466332 | F67: 50.03612071 | G67: -4.304444847 | H67: -2.12815896
A68: 67 | B68: -3.178551732 | C68: 0.2367296016 | D68: -0.3571849938 | E68: 4.8923957 | F68: 49.4050983 | G68: -4.302644377 | H68: -2.11975545
A69: 68 | B69: -3.174763573 | C69: 0.2392605569 | D69: -0.3584915034 | E69: 4.859848523 | F69: 48.50727997 | G69: -4.308695943 | H69: -2.098598121
A70: 69 | B70: -3.171805008 | C70: 0.2422464145 | D70: -0.3523750879 | E70: 4.885633857 | F70: 50.04349391 | G70: -4.331098803 | H70: -2.062010755
A71: 70 | B71: -3.168373123 | C71: 0.2449335775 | D71: -0.3513831083 | E71: 4.879544497 | F71: 50.16826435 | G71: -4.3613037 | H71: -2.041340221
A72: 71 | B72: -3.164631957 | C72: 0.2482979989 | D72: -0.347204556 | E72: 4.902386454 | F72: 51.35346734 | G72: -4.389822358 | H72: -2.022936341
A73: 72 | B73: -3.16150358 | C73: 0.2514230847 | D73: -0.3476913105 | E73: 4.885406705 | F73: 51.88477088 | G73: -4.422871875 | H73: -2.009156645
A74: 73 | B74: -3.158011676 | C74: 0.2542518304 | D74: -0.3348113203 | E74: 4.904096205 | F74: 52.91844387 | G74: -4.445082083 | H74: -1.97839392
A75: 74 | B75: -3.154331814 | C75: 0.2574333566 | D75: -0.3239067957 | E75: 4.873952071 | F75: 51.79887048 | G75: -4.436645998 | H75: -1.95220494
A76: 75 | B76: -3.151410472 | C76: 0.2598442569 | D76: -0.3162421761 | E76: 4.858192157 | F76: 50.60285059 | G76: -4.415787399 | H76: -1.949162741
A77: 76 | B77: -3.148069288 | C77: 0.2629113616 | D77: -0.3046045881 | E77: 4.871093184 | F77: 51.9150711 | G77: -4.439433637 | H77: -1.909574942
A78: 77 | B78: -3.144695049 | C78: 0.2656351665 | D78: -0.3134253396 | E78: 4.845000371 | F78: 50.76649023 | G78: -4.447806167 | H78: -1.911987245
A79: 78 | B79: -3.141904434 | C79: 0.2690955749 | D79: -0.2836279998 | E79: 4.7364807 | F79: 47.38806113 | G79: -4.431118091 | H79: -1.909124622
A80: 79 | B80: -3.138137628 | C80: 0.2718756025 | D80: -0.2908375609 | E80: 4.686409916 | F80: 45.55236275 | G80: -4.416251378 | H80: -1.90958621
A81: 80 | B81: -3.135086748 | C81: 0.2743768516 | D81: -0.2956700549 | E81: 4.682921756 | F81: 46.03194967 | G81: -4.432470319 | H81: -1.901064875
A82: 81 | B82: -3.131774833 | C82: 0.2766379898 | D82: -0.299588507 | E82: 4.721794425 | F82: 47.66556619 | G82: -4.463043764 | H82: -1.879991368
A83: 82 | B83: -3.128583965 | C83: 0.2799665489 | D83: -0.2802171531 | E83: 4.704238041 | F83: 47.75951166 | G83: -4.48719627 | H83: -1.858241795
A84: 83 | B84: -3.126025082 | C84: 0.282509148 | D84: -0.2627908169 | E84: 4.646526572 | F84: 45.6931677 | G84: -4.470807115 | H84: -1.860122429
A85: 84 | B85: -3.122562752 | C85: 0.2847503261 | D85: -0.249662928 | E85: 4.629003238 | F85: 45.3985955 | G85: -4.47918359 | H85: -1.860629259
A86: 85 | B86: -3.119856906 | C86: 0.2872374232 | D86: -0.250603379 | E86: 4.653573549 | F86: 46.46603958 | G86: -4.510207753 | H86: -1.853818823
A87: 86 | B87: -3.117032659 | C87: 0.2904356299 | D87: -0.2354426497 | E87: 4.624243967 | F87: 45.49885504 | G87: -4.51044366 | H87: -1.82790078
A88: 87 | B88: -3.114210405 | C88: 0.2923802643 | D88: -0.2376194753 | E88: 4.643950573 | F88: 45.99116356 | G88: -4.512162928 | H88: -1.818237835
A89: 88 | B89: -3.111515964 | C89: 0.2945721038 | D89: -0.2174600605 | E89: 4.601271183 | F89: 45.47829213 | G89: -4.527142418 | H89: -1.829763681
A90: 89 | B90: -3.10992374 | C90: 0.296943229 | D90: -0.2139877304 | E90: 4.609365689 | F90: 46.2790994 | G90: -4.561742221 | H90: -1.824879716
A91: 90 | B91: -3.107242837 | C91: 0.2995295231 | D91: -0.1857498878 | E91: 4.672126168 | F91: 48.19556982 | G91: -4.569113207 | H91: -1.768827588
A92: 91 | B92: -3.104569058 | C92: 0.3012529502 | D92: -0.1981208081 | E92: 4.671475036 | F92: 48.3899353 | G92: -4.583923443 | H92: -1.776722497
A93: 92 | B93: -3.101625212 | C93: 0.3033797375 | D93: -0.1985962762 | E93: 4.674697484 | F93: 48.7676033 | G93: -4.611377229 | H93: -1.768158879
A94: 93 | B94: -3.09907168 | C94: 0.3060730193 | D94: -0.2045235845 | E94: 4.601797402 | F94: 46.64677598 | G94: -4.621825947 | H94: -1.795137197
A95: 94 | B95: -3.095419777 | C95: 0.3081822289 | D95: -0.1857878364 | E95: 4.581888134 | F95: 45.97489389 | G95: -4.624788748 | H95: -1.784087823
A96: 95 | B96: -3.093235204 | C96: 0.311022764 | D96: -0.184692045 | E96: 4.581461037 | F96: 46.5966716 | G96: -4.641085412 | H96: -1.771123539
A97: 96 | B97: -3.092106704 | C97: 0.3133200216 | D97: -0.1727799387 | E97: 4.590899872 | F97: 46.96286019 | G97: -4.657549427 | H97: -1.763338486
A98: 97 | B98: -3.089183225 | C98: 0.3162856286 | D98: -0.1929393133 | E98: 4.485652739 | F98: 43.47799084 | G98: -4.639339866 | H98: -1.803502682
A99: 98 | B99: -3.087464234 | C99: 0.318765473 | D99: -0.1873292586 | E99: 4.454117515 | F99: 42.24850343 | G99: -4.62104947 | H99: -1.807953385
A100: 99 | B100: -3.085636791 | C100: 0.3209650057 | D100: -0.1805137131 | E100: 4.454246396 | F100: 42.06863501 | G100: -4.626060066 | H100: -1.817772366
A101: 100 | B101: -3.083258828 | C101: 0.3238558757 | D101: -0.1714129666 | E101: 4.427501382 | F101: 41.17267353 | G101: -4.625060298 | H101: -1.811441901
A102: 101 | B102: -3.080676408 | C102: 0.3263997355 | D102: -0.1628142887 | E102: 4.353009592 | F102: 39.20946404 | G102: -4.612835622 | H102: -1.803973807
A103: 102 | B103: -3.07762618 | C103: 0.3278903919 | D103: -0.1737216317 | E103: 4.370170324 | F103: 39.60890127 | G103: -4.619869571 | H103: -1.819163184
A104: 103 | B104: -3.074709218 | C104: 0.33017534 | D104: -0.1740225005 | E104: 4.324862534 | F104: 38.33754151 | G104: -4.612231516 | H104: -1.816446944
A105: 104 | B105: -3.07234583 | C105: 0.3327341731 | D105: -0.1644242778 | E105: 4.309544984 | F105: 37.92605469 | G105: -4.620056764 | H105: -1.778842201
A106: 105 | B106: -3.069226578 | C106: 0.3350918014 | D106: -0.1636170232 | E106: 4.259391835 | F106: 36.53280823 | G106: -4.608962404 | H106: -1.789351419
A107: 106 | B107: -3.067291419 | C107: 0.3377231808 | D107: -0.17000503 | E107: 4.226865301 | F107: 36.04023691 | G107: -4.625048571 | H107: -1.782646204
A108: 107 | B108: -3.065358238 | C108: 0.3396555616 | D108: -0.1731682848 | E108: 4.206044918 | F108: 35.72821972 | G108: -4.631234858 | H108: -1.77034588
A109: 108 | B109: -3.06399243 | C109: 0.3424861252 | D109: -0.1707373699 | E109: 4.208065309 | F109: 35.78445197 | G109: -4.646845778 | H109: -1.765539548
A110: 109 | B110: -3.062169184 | C110: 0.3448159697 | D110: -0.1663942081 | E110: 4.192867422 | F110: 35.67108487 | G110: -4.665060487 | H110: -1.784067245
A111: 110 | B111: -3.060624818 | C111: 0.3474143287 | D111: -0.1482085938 | E111: 4.231764625 | F111: 36.96894684 | G111: -4.695173762 | H111: -1.753952046
A112: 111 | B112: -3.057965932 | C112: 0.3494877776 | D112: -0.1525143098 | E112: 4.208239573 | F112: 36.64511794 | G112: -4.702111329 | H112: -1.722751615
A113: 112 | B113: -3.055712688 | C113: 0.3524481294 | D113: -0.153912079 | E113: 4.182453903 | F113: 36.33189714 | G113: -4.711175394 | H113: -1.695661836
A114: 113 | B114: -3.054177231 | C114: 0.3544608212 | D114: -0.1377581631 | E114: 4.147041867 | F114: 35.57567663 | G114: -4.703453981 | H114: -1.719234708
A115: 114 | B115: -3.052669207 | C115: 0.356646248 | D115: -0.124771717 | E115: 4.107015924 | F115: 34.74813554 | G115: -4.707839651 | H115: -1.703629862
A116: 115 | B116: -3.050530784 | C116: 0.3585522868 | D116: -0.1206188357 | E116: 4.072790167 | F116: 34.28890199 | G116: -4.704616312 | H116: -1.693498873
A117: 116 | B117: -3.048482676 | C117: 0.3608346211 | D117: -0.1161460632 | E117: 4.065173837 | F117: 34.03591178 | G117: -4.696650493 | H117: -1.678008118
A118: 117 | B118: -3.045788956 | C118: 0.3622956277 | D118: -0.1210678558 | E118: 4.028503653 | F118: 33.72064787 | G118: -4.692015669 | H118: -1.678379769
A119: 118 | B119: -3.043651027 | C119: 0.3638154355 | D119: -0.1079915245 | E119: 4.037284849 | F119: 33.97148983 | G119: -4.674814505 | H119: -1.658220937
A120: 119 | B120: -3.042417687 | C120: 0.3649417209 | D120: -0.1044783076 | E120: 4.053421021 | F120: 34.31947158 | G120: -4.687494416 | H120: -1.650152222
A121: 120 | B121: -3.040576697 | C121: 0.3661854392 | D121: -0.09510953468 | E121: 4.048161136 | F121: 34.46534612 | G121: -4.699188245 | H121: -1.628534911
A122: 121 | B122: -3.038142032 | C122: 0.3681432731 | D122: -0.08289502235 | E122: 4.020815703 | F122: 34.27935921 | G122: -4.69520326 | H122: -1.601403339
A123: 122 | B123: -3.036072048 | C123: 0.3701147604 | D123: -0.06924540198 | E123: 4.022011562 | F123: 34.35136764 | G123: -4.690127343 | H123: -1.564831365
A124: 123 | B124: -3.033037264 | C124: 0.3712197399 | D124: -0.06481095172 | E124: 3.995262421 | F124: 33.87053909 | G124: -4.675581481 | H124: -1.546333943
A125: 124 | B125: -3.030379154 | C125: 0.3718516635 | D125: -0.07510432805 | E125: 3.994205412 | F125: 34.26700379 | G125: -4.684222568 | H125: -1.5486279
A126: 125 | B126: -3.027718754 | C126: 0.3735114725 | D126: -0.06463259128 | E126: 3.94893878 | F126: 33.17677762 | G126: -4.658911757 | H126: -1.527993739
A127: 126 | B127: -3.026872916 | C127: 0.37463969 | D127: -0.05888251583 | E127: 3.964870222 | F127: 33.50889442 | G127: -4.660409374 | H127: -1.524845526
A128: 127 | B128: -3.025493551 | C128: 0.3761301302 | D128: -0.05255497573 | E128: 3.929915114 | F128: 32.50237271 | G128: -4.649003083 | H128: -1.534946757
A129: 128 | B129: -3.023556778 | C129: 0.3776432562 | D129: -0.05268767011 | E129: 3.934738895 | F129: 32.57184387 | G129: -4.656612315 | H129: -1.551537845
A130: 129 | B130: -3.021411567 | C130: 0.378459371 | D130: -0.0368362533 | E130: 3.894171538 | F130: 31.64478954 | G130: -4.652952334 | H130: -1.531938004
A131: 130 | B131: -3.019550128 | C131: 0.3802211432 | D131: -0.02263800406 | E131: 3.824117129 | F131: 29.8725544 | G131: -4.630933654 | H131: -1.537129036
A132: 131 | B132: -3.017313252 | C132: 0.3805522073 | D132: -0.03127233906 | E132: 3.811396406 | F132: 29.88431848 | G132: -4.651221137 | H132: -1.554946117
A133: 132 | B133: -3.014711587 | C133: 0.3817347752 | D133: -0.04184841892 | E133: 3.814106757 | F133: 29.8099627 | G133: -4.634806979 | H133: -1.533212099
A134: 133 | B134: -3.013560355 | C134: 0.3831035221 | D134: -0.03929219766 | E134: 3.786500586 | F134: 29.2004588 | G134: -4.637227927 | H134: -1.543443097
A135: 134 | B135: -3.012150211 | C135: 0.3846337191 | D135: -0.03471558285 | E135: 3.780489253 | F135: 29.09149583 | G135: -4.642923384 | H135: -1.54419526
A136: 135 | B136: -3.010535957 | C136: 0.3852861339 | D136: -0.04022135312 | E136: 3.749355832 | F136: 28.50932451 | G136: -4.648162084 | H136: -1.570951638
A137: 136 | B137: -3.009596643 | C137: 0.3873068475 | D137: -0.04275784993 | E137: 3.739868386 | F137: 28.13319701 | G137: -4.654503318 | H137: -1.601158023
A138: 137 | B138: -3.007560242 | C138: 0.3885950759 | D138: -0.03685402047 | E138: 3.719130369 | F138: 27.80860554 | G138: -4.657300754 | H138: -1.585398499
A139: 138 | B139: -3.006628236 | C139: 0.3899431424 | D139: -0.03543757586 | E139: 3.706755223 | F139: 27.59137972 | G139: -4.671420053 | H139: -1.580008265
A140: 139 | B140: -3.004440882 | C140: 0.3915872651 | D140: -0.0405959913 | E140: 3.702201797 | F140: 27.64342356 | G140: -4.69405945 | H140: -1.603568468
A141: 140 | B141: -3.00408624 | C141: 0.393944304 | D141: -0.03802167134 | E141: 3.700455219 | F141: 27.66935461 | G141: -4.707551195 | H141: -1.599637759
A142: 141 | B142: -3.00292565 | C142: 0.3952931983 | D142: -0.03004961339 | E142: 3.686388487 | F142: 27.27398818 | G142: -4.697680301 | H142: -1.586810961
A143: 142 | B143: -3.001147233 | C143: 0.39669579 | D143: -0.02220816605 | E143: 3.686229217 | F143: 27.36276687 | G143: -4.70683581 | H143: -1.564603509
A144: 143 | B144: -2.999754224 | C144: 0.3987283404 | D144: -0.02451407071 | E144: 3.690363198 | F144: 27.61697282 | G144: -4.734296163 | H144: -1.565789492
A145: 144 | B145: -2.998911674 | C145: 0.4002300111 | D145: -0.03170505304 | E145: 3.679070538 | F145: 27.45745612 | G145: -4.741866572 | H145: -1.569405488
A146: 145 | B146: -2.997741201 | C146: 0.4011560074 | D146: -0.0345948336 | E146: 3.655157449 | F146: 26.95137787 | G146: -4.746700296 | H146: -1.554034525
A147: 146 | B147: -2.996121854 | C147: 0.4021393283 | D147: -0.04749346778 | E147: 3.633615072 | F147: 26.52713091 | G147: -4.749545519 | H147: -1.548949486
A148: 147 | B148: -2.994942531 | C148: 0.4037332353 | D148: -0.04982722865 | E148: 3.624915456 | F148: 26.39005159 | G148: -4.758349428 | H148: -1.539537861
A149: 148 | B149: -2.9933076 | C149: 0.404200324 | D149: -0.05045631545 | E149: 3.63273573 | F149: 26.43764118 | G149: -4.748408076 | H149: -1.513251025
A150: 149 | B150: -2.991820159 | C150: 0.4049966229 | D150: -0.05696316116 | E150: 3.620096984 | F150: 26.25373558 | G150: -4.755696813 | H150: -1.52845928
A151: 150 | B151: -2.990299767 | C151: 0.4056555413 | D151: -0.06000239929 | E151: 3.594811614 | F151: 25.62579694 | G151: -4.73489978 | H151: -1.50549723
A152: 151 | B152: -2.989426324 | C152: 0.4068568667 | D152: -0.06266834209 | E152: 3.565880851 | F152: 25.06970882 | G152: -4.731885651 | H152: -1.499012115
A153: 152 | B153: -2.988000107 | C153: 0.4080252343 | D153: -0.06490679391 | E153: 3.556932672 | F153: 24.74011175 | G153: -4.731961121 | H153: -1.495984631
A154: 153 | B154: -2.986620091 | C154: 0.408794339 | D154: -0.06595351324 | E154: 3.55109964 | F154: 24.6071284 | G154: -4.732039401 | H154: -1.492584851
A155: 154 | B155: -2.985094239 | C155: 0.4098523451 | D155: -0.07131531038 | E155: 3.518124526 | F155: 23.83269501 | G155: -4.711296631 | H155: -1.490443638
A156: 155 | B156: -2.983723277 | C156: 0.4102104428 | D156: -0.07106425225 | E156: 3.491468457 | F156: 23.13057123 | G156: -4.681054126 | H156: -1.484742146
A157: 156 | B157: -2.982478127 | C157: 0.411357571 | D157: -0.07750243365 | E157: 3.454167846 | F157: 22.24626967 | G157: -4.642277822 | H157: -1.491646145
A158: 157 | B158: -2.981246684 | C158: 0.4112381451 | D158: -0.08136680083 | E158: 3.452875152 | F158: 21.94271123 | G158: -4.617645476 | H158: -1.514188423
A159: 158 | B159: -2.979692896 | C159: 0.4124704437 | D159: -0.08160470571 | E159: 3.432014616 | F159: 21.43788507 | G159: -4.593531116 | H159: -1.520501546
A160: 159 | B160: -2.978995174 | C160: 0.4132451347 | D160: -0.08361038305 | E160: 3.415488566 | F160: 21.19121373 | G160: -4.579170619 | H160: -1.503149355
A161: 160 | B161: -2.978362329 | C161: 0.4132335076 | D161: -0.08357430972 | E161: 3.384328701 | F161: 20.5105499 | G161: -4.52401618 | H161: -1.50455996
A162: 161 | B162: -2.976912022 | C162: 0.4143356626 | D162: -0.08479479433 | E162: 3.390257842 | F162: 20.57085422 | G162: -4.500444912 | H162: -1.4688464
A163: 162 | B163: -2.975626198 | C163: 0.4148887053 | D163: -0.07070486186 | E163: 3.379434679 | F163: 20.17628093 | G163: -4.455401794 | H163: -1.469371333
A164: 163 | B164: -2.974905149 | C164: 0.4164178694 | D164: -0.07734630098 | E164: 3.385806974 | F164: 20.10475966 | G164: -4.445967517 | H164: -1.467054247
A165: 164 | B165: -2.974210789 | C165: 0.4171542329 | D165: -0.08036389114 | E165: 3.377762019 | F165: 19.98582741 | G165: -4.425199747 | H165: -1.462758849
A166: 165 | B166: -2.973459358 | C166: 0.4180778648 | D166: -0.08494471363 | E166: 3.370425247 | F166: 19.90499345 | G166: -4.4214277 | H166: -1.464915859
A167: 166 | B167: -2.973629321 | C167: 0.418304959 | D167: -0.08769912802 | E167: 3.346784183 | F167: 19.55216498 | G167: -4.401707754 | H167: -1.448644942
A168: 167 | B168: -2.972330465 | C168: 0.4185072514 | D168: -0.08927756868 | E168: 3.347490794 | F168: 19.60790485 | G168: -4.399064091 | H168: -1.449277195
A169: 168 | B169: -2.97161497 | C169: 0.4193626118 | D169: -0.07972824228 | E169: 3.350862567 | F169: 19.71606638 | G169: -4.382062874 | H169: -1.425245694
A170: 169 | B170: -2.97104331 | C170: 0.4201965073 | D170: -0.07127618811 | E170: 3.325164968 | F170: 19.35393645 | G170: -4.366686825 | H170: -1.415497422
A171: 170 | B171: -2.969988922 | C171: 0.4201175959 | D171: -0.06582219312 | E171: 3.33227668 | F171: 19.43073038 | G171: -4.371211403 | H171: -1.408835806
A172: 171 | B172: -2.969105642 | C172: 0.4203841986 | D172: -0.06649598903 | E172: 3.332090383 | F172: 19.42271784 | G172: -4.394712977 | H172: -1.410651841
A173: 172 | B173: -2.96833367 | C173: 0.4203882004 | D173: -0.06836546683 | E173: 3.328438687 | F173: 19.44589991 | G173: -4.399693082 | H173: -1.397607504
A174: 173 | B174: -2.967397131 | C174: 0.4204570364 | D174: -0.07807085485 | E174: 3.324456241 | F174: 19.52164483 | G174: -4.417238641 | H174: -1.391525134
A175: 174 | B175: -2.966119506 | C175: 0.4208042026 | D175: -0.07454417205 | E175: 3.305178899 | F175: 19.24225918 | G175: -4.429996294 | H175: -1.39218359
A176: 175 | B176: -2.965240464 | C176: 0.4211989738 | D176: -0.07120875884 | E176: 3.313520001 | F176: 19.34078345 | G176: -4.423241602 | H176: -1.387752781
A177: 176 | B177: -2.963851457 | C177: 0.4213359401 | D177: -0.06557168375 | E177: 3.297511031 | F177: 19.06532154 | G177: -4.435721719 | H177: -1.402337877
A178: 177 | B178: -2.963161938 | C178: 0.4216574041 | D178: -0.06285079841 | E178: 3.268141887 | F178: 18.57875248 | G178: -4.439186017 | H178: -1.427078819
A179: 178 | B179: -2.961848235 | C179: 0.4220749064 | D179: -0.06870292787 | E179: 3.270980031 | F179: 18.66599445 | G179: -4.447085023 | H179: -1.418572605
A180: 179 | B180: -2.961724949 | C180: 0.4227980765 | D180: -0.07554667519 | E180: 3.285757537 | F180: 18.73649663 | G180: -4.441830031 | H180: -1.432259659
A181: 180 | B181: -2.961058966 | C181: 0.4228277175 | D181: -0.07883286602 | E181: 3.289721583 | F181: 18.79436117 | G181: -4.438808509 | H181: -1.427453252
A182: 181 | B182: -2.960119045 | C182: 0.4238584697 | D182: -0.07843239492 | E182: 3.295843008 | F182: 18.84613721 | G182: -4.464438729 | H182: -1.45612443
A183: 182 | B183: -2.958471894 | C183: 0.4245111502 | D183: -0.0772861854 | E183: 3.292761222 | F183: 18.73347946 | G183: -4.46625261 | H183: -1.471323546
A184: 183 | B184: -2.957679204 | C184: 0.4245825869 | D184: -0.07896364862 | E184: 3.260335087 | F184: 18.08207963 | G184: -4.445203599 | H184: -1.508449707
A185: 184 | B185: -2.957483842 | C185: 0.4248059572 | D185: -0.08313255264 | E185: 3.254596561 | F185: 17.92138087 | G185: -4.434750298 | H185: -1.523840298
A186: 185 | B186: -2.956935586 | C186: 0.4249310107 | D186: -0.08437588074 | E186: 3.260722043 | F186: 17.82860887 | G186: -4.427744515 | H186: -1.552734772
A187: 186 | B187: -2.956772344 | C187: 0.4247287828 | D187: -0.07607904689 | E187: 3.234122873 | F187: 17.43671579 | G187: -4.407413949 | H187: -1.57607552
A188: 187 | B188: -2.956214367 | C188: 0.4252505488 | D188: -0.07737692839 | E188: 3.223718349 | F188: 17.43153466 | G188: -4.417739483 | H188: -1.579442719
A189: 188 | B189: -2.956256313 | C189: 0.4250040776 | D189: -0.07874768377 | E189: 3.223119119 | F189: 17.44931202 | G189: -4.417159295 | H189: -1.591154892
A190: 189 | B190: -2.955475662 | C190: 0.426249584 | D190: -0.08009808467 | E190: 3.207468403 | F190: 17.1079338 | G190: -4.39392454 | H190: -1.604530717
A191: 190 | B191: -2.954845075 | C191: 0.4265812757 | D191: -0.07659986839 | E191: 3.198053224 | F191: 16.87274435 | G191: -4.386929742 | H191: -1.622360915
A192: 191 | B192: -2.954096839 | C192: 0.4261245678 | D192: -0.06938440271 | E192: 3.178564535 | F192: 16.61587389 | G192: -4.363029769 | H192: -1.626836209
A193: 192 | B193: -2.953524012 | C193: 0.4264595364 | D193: -0.06883161463 | E193: 3.165801947 | F193: 16.41750226 | G193: -4.367598018 | H193: -1.633385741
A194: 193 | B194: -2.953897652 | C194: 0.4269655188 | D194: -0.07306778003 | E194: 3.157474033 | F194: 16.26643318 | G194: -4.375922531 | H194: -1.671421791
A195: 194 | B195: -2.953784956 | C195: 0.4283924527 | D195: -0.06279934444 | E195: 3.13747178 | F195: 16.01116247 | G195: -4.360390074 | H195: -1.670365961
A196: 195 | B196: -2.953368881 | C196: 0.4284713467 | D196: -0.05356019041 | E196: 3.135443927 | F196: 16.04097045 | G196: -4.342067321 | H196: -1.664484045
A197: 196 | B197: -2.952820881 | C197: 0.4293023033 | D197: -0.04704632731 | E197: 3.128798888 | F197: 15.94435958 | G197: -4.342258112 | H197: -1.662759013
A198: 197 | B198: -2.953356441 | C198: 0.4299624769 | D198: -0.04083027289 | E198: 3.118898136 | F198: 15.87686886 | G198: -4.322797306 | H198: -1.635689262
A199: 198 | B199: -2.953569453 | C199: 0.429874755 | D199: -0.04482165344 | E199: 3.11661522 | F199: 15.91194512 | G199: -4.350472052 | H199: -1.639940109
A200: 199 | B200: -2.952879265 | C200: 0.4305305269 | D200: -0.04643271492 | E200: 3.113436764 | F200: 15.87738136 | G200: -4.364570124 | H200: -1.638349536
... 512 more rows

Sheet Scenario Stats
A1: Scenario | B1: Average | C1: Std Deviation | D1: Skewness | E1: Kurtosis | F1: 6th Moment | G1: Ave dln_rt | H1: Std dln_rt
A2: 1 | B2: 0.06205967494 | C2: 0.02055193679 | D2: 0.280405372 | E2: 2.118842866 | F2: 6.72948482 | G2: 0.001923302956 | H2: 0.01535845151
A3: 2 | B3: 0.08535760952 | C3: 0.03472815706 | D3: 0.7687802062 | E3: 2.844468434 | F3: 12.39741665 | G3: 0.00063167436 | H3: 0.0164924452
A4: 3 | B4: 0.0506869607 | C4: 0.01435499258 | D4: 0.682756284 | E4: 2.518920837 | F4: 9.959750684 | G4: 0.000728643351 | H4: 0.01523748078
A5: 4 | B5: 0.06246478365 | C5: 0.01123925917 | D5: -0.8306175899 | E5: 3.445363325 | F5: 20.27583078 | G5: 0.0009402835567 | H5: 0.0150645727
A6: 5 | B6: 0.04580695712 | C6: 0.01262490304 | D6: -0.1907298591 | E6: 2.06736461 | F6: 5.256648744 | G6: 0.0007270032493 | H6: 0.01450190812
A7: 6 | B7: 0.07429781965 | C7: 0.03302587003 | D7: 0.3970984492 | E7: 1.586978866 | F7: 3.016213878 | G7: 0.001781173204 | H7: 0.01588052392
A8: 7 | B8: 0.06495308537 | C8: 0.036259364 | D8: 0.5779889231 | E8: 1.879055437 | F8: 4.34770766 | G8: 0.0004590088604 | H8: 0.01648588023
A9: 8 | B9: 0.0683260966 | C9: 0.01624431354 | D9: -0.04331608647 | E9: 2.287297491 | F9: 8.037004701 | G9: 0.001383376619 | H9: 0.01551518995
A10: 9 | B10: 0.06073088472 | C10: 0.02116352512 | D10: 0.5198897056 | E10: 2.144413839 | F10: 7.366659052 | G10: 0.0006356816546 | H10: 0.01580551151
A11: 10 | B11: 0.04871403656 | C11: 0.00856104357 | D11: -0.3550969655 | E11: 2.161813217 | F11: 6.348064511 | G11: 0.0007957429738 | H11: 0.01396756359
A12: 11 | B12: 0.03860232487 | C12: 0.007656796392 | D12: 0.485045826 | E12: 2.044220389 | F12: 5.80307133 | G12: 3.99167527e-05 | H12: 0.01528432245
A13: 12 | B13: 0.07292763085 | C13: 0.02833516043 | D13: 0.4829288549 | E13: 2.623546935 | F13: 12.7812307 | G13: 0.002498778427 | H13: 0.01607396467
A14: 13 | B14: 0.04609388873 | C14: 0.01822512133 | D14: 1.023125177 | E14: 3.46292571 | F14: 17.59750526 | G14: 0.000326887174 | H14: 0.01519983891
A15: 14 | B15: 0.05316522401 | C15: 0.03321141957 | D15: 1.918462675 | E15: 5.672575135 | F15: 47.05391703 | G15: 0.002494996886 | H15: 0.01549429928
A16: 15 | B16: 0.06586071736 | C16: 0.0154338719 | D16: -0.418243824 | E16: 2.302541894 | F16: 7.224637562 | G16: 0.000389051817 | H16: 0.01485669803
A17: 16 | B17: 0.04104522148 | C17: 0.008191227114 | D17: 0.4052182555 | E17: 2.25223253 | F17: 8.402517986 | G17: 0.001110195967 | H17: 0.01441557991
A18: 17 | B18: 0.06415240445 | C18: 0.01215240273 | D18: -1.029589626 | E18: 4.281240161 | F18: 26.22385392 | G18: 0.00106760703 | H18: 0.01581951195
A19: 18 | B19: 0.05294054185 | C19: 0.01616767244 | D19: 0.3358944471 | E19: 2.147017228 | F19: 5.678889753 | G19: 0.0007739171548 | H19: 0.0147678066
A20: 19 | B20: 0.05506131511 | C20: 0.0158932083 | D20: 0.1982749669 | E20: 2.262422732 | F20: 7.142141587 | G20: 0.001056480658 | H20: 0.01534389005
A21: 20 | B21: 0.0447112725 | C21: 0.01502135228 | D21: 1.091507978 | E21: 2.793695672 | F21: 11.7043824 | G21: 0.0002513384228 | H21: 0.01500243803
A22: 21 | B22: 0.0476818159 | C22: 0.02427596311 | D22: 0.9390608915 | E22: 2.386075366 | F22: 8.249106133 | G22: 0.0006025670384 | H22: 0.01472758709
A23: 22 | B23: 0.03714978006 | C23: 0.01056447951 | D23: 0.7801485157 | E23: 3.310333175 | F23: 17.78464594 | G23: 4.788595066e-05 | H23: 0.01493713199
A24: 23 | B24: 0.04736684703 | C24: 0.01109458469 | D24: -0.4546000037 | E24: 1.88438067 | F24: 4.764929183 | G24: 0.0009795109439 | H24: 0.0156414631
A25: 24 | B25: 0.08546689855 | C25: 0.04847422327 | D25: 0.8585010502 | E25: 2.497605574 | F25: 8.784746038 | G25: 0.0001834656553 | H25: 0.01524212666
A26: 25 | B26: 0.04808268338 | C26: 0.0160224391 | D26: 1.831222961 | E26: 7.285399427 | F26: 98.99763412 | G26: 0.002073771641 | H26: 0.01555631128
A27: 26 | B27: 0.07203848751 | C27: 0.02464951054 | D27: 0.9690138278 | E27: 3.710600414 | F27: 18.26597506 | G27: 0.001162233876 | H27: 0.01627748305
A28: 27 | B28: 0.06320224186 | C28: 0.02065080207 | D28: 0.3542207331 | E28: 1.744060585 | F28: 3.657949194 | G28: 0.001531631992 | H28: 0.01372365481
A29: 28 | B29: 0.06556988628 | C29: 0.0138296625 | D29: -0.201785424 | E29: 3.645738938 | F29: 18.43596782 | G29: 0.001364127019 | H29: 0.01549322827
A30: 29 | B30: 0.06467545545 | C30: 0.02198118059 | D30: 0.3004093461 | E30: 1.803079215 | F30: 4.403689053 | G30: 0.0006363256533 | H30: 0.01463789105
A31: 30 | B31: 0.0389929142 | C31: 0.0152725082 | D31: 1.319909904 | E31: 4.866340506 | F31: 35.90958922 | G31: -0.0007276123943 | H31: 0.01623898733
A32: 31 | B32: 0.1134407992 | C32: 0.03404640652 | D32: -0.4642381971 | E32: 4.002084687 | F32: 21.31162965 | G32: 0.002128152782 | H32: 0.01681660103
A33: 32 | B33: 0.03891325945 | C33: 0.01288796567 | D33: 0.8942101072 | E33: 2.750900677 | F33: 10.50101286 | G33: -0.0003118645823 | H33: 0.01489857543
A34: 33 | B34: 0.04467334111 | C34: 0.0185332395 | D34: 0.2617867991 | E34: 1.931507253 | F34: 5.12072021 | G34: 0.0007224966492 | H34: 0.01582291077
A35: 34 | B35: 0.05602779774 | C35: 0.01794737186 | D35: 0.01365198509 | E35: 1.881186261 | F35: 4.683109112 | G35: 0.001014539671 | H35: 0.01466411121
A36: 35 | B36: 0.04800388401 | C36: 0.01360318808 | D36: 0.4939003454 | E36: 1.984428197 | F36: 4.74795831 | G36: 0.0007461182785 | H36: 0.01549185137
A37: 36 | B37: 0.09396107123 | C37: 0.02728509455 | D37: -0.4598890608 | E37: 3.482280878 | F37: 14.63096273 | G37: 0.002153788697 | H37: 0.01541632283
A38: 37 | B38: 0.05578226599 | C38: 0.02050124749 | D38: 0.294106506 | E38: 2.008327119 | F38: 5.407944247 | G38: 0.000791288519 | H38: 0.01531855382
A39: 38 | B39: 0.08373752428 | C39: 0.06342496958 | D39: 1.694819064 | E39: 4.83170048 | F39: 35.2006468 | G39: 0.002110354798 | H39: 0.01567451026
A40: 39 | B40: 0.06399964138 | C40: 0.01575342027 | D40: 0.7053979 | E40: 3.831167868 | F40: 23.95128197 | G40: 0.001319040301 | H40: 0.01510765464
A41: 40 | B41: 0.04993902694 | C41: 0.01099961074 | D41: 0.1431596467 | E41: 2.007411939 | F41: 5.474809623 | G41: 0.0007884959643 | H41: 0.01429465661
A42: 41 | B42: 0.03505957891 | C42: 0.008042700404 | D42: 0.3759600458 | E42: 1.968619987 | F42: 5.110787862 | G42: 0.0007723699884 | H42: 0.01460497692
A43: 42 | B43: 0.05552476655 | C43: 0.01832127147 | D43: 0.1912679578 | E43: 2.434305212 | F43: 8.208448714 | G43: -0.0002000003885 | H43: 0.01516111242
A44: 43 | B44: 0.07810314911 | C44: 0.02566588969 | D44: -0.4331598232 | E44: 2.280724449 | F44: 6.694095921 | G44: -0.0001752910912 | H44: 0.01620043527
A45: 44 | B45: 0.03720549214 | C45: 0.01456463078 | D45: 0.2229363625 | E45: 2.294919078 | F45: 6.743917487 | G45: 0.0002463578708 | H45: 0.01566177751
A46: 45 | B46: 0.06231742155 | C46: 0.02045600274 | D46: 0.3496509169 | E46: 2.120861642 | F46: 6.260730402 | G46: 6.398716082e-05 | H46: 0.0156013188
A47: 46 | B47: 0.06421872483 | C47: 0.01669590598 | D47: 0.1094019384 | E47: 1.959431608 | F47: 5.216422642 | G47: 0.0007011702332 | H47: 0.01458701666
A48: 47 | B48: 0.05022205455 | C48: 0.0155191528 | D48: 0.7936086018 | E48: 3.124379682 | F48: 15.71614287 | G48: -5.095147543e-05 | H48: 0.01513776417
A49: 48 | B49: 0.05242102866 | C49: 0.02513009232 | D49: 2.321008021 | E49: 7.794052837 | F49: 83.07323419 | G49: 0.002260813377 | H49: 0.01506535866
A50: 49 | B50: 0.07299678085 | C50: 0.03322292969 | D50: 0.6251007973 | E50: 2.218573223 | F50: 6.850537671 | G50: 0.0003560180226 | H50: 0.01603745393
A51: 50 | B51: 0.04207889315 | C51: 0.009723293526 | D51: -0.2149060514 | E51: 1.570321772 | F51: 2.907398005 | G51: 0.0002487622918 | H51: 0.01428148714
A52: 51 | B52: 0.06070826903 | C52: 0.01362855116 | D52: 0.01403791172 | E52: 1.971312793 | F52: 5.592737988 | G52: 0.001132988611 | H52: 0.0145649595
A53: 52 | B53: 0.04267069767 | C53: 0.009606540165 | D53: 1.359236228 | E53: 4.179386559 | F53: 28.10272118 | G53: 0.0006516981665 | H53: 0.01577293384
A54: 53 | B54: 0.07073897375 | C54: 0.02056637338 | D54: 0.6274848958 | E54: 3.851821753 | F54: 23.86125318 | G54: 0.001251558491 | H54: 0.01587231554
A55: 54 | B55: 0.06018853682 | C55: 0.05683898544 | D55: 1.497239494 | E55: 3.959625504 | F55: 24.15090442 | G55: 0.0008147329021 | H55: 0.01661210878
A56: 55 | B56: 0.0382754042 | C56: 0.007094260884 | D56: 0.6858237265 | E56: 2.64714414 | F56: 11.91687535 | G56: 0.0004756532613 | H56: 0.01620061053
A57: 56 | B57: 0.07437262903 | C57: 0.03934148844 | D57: 0.7634882844 | E57: 2.422144455 | F57: 9.038993665 | G57: 0.0009938288866 | H57: 0.0150690605
A58: 57 | B58: 0.06523842954 | C58: 0.03072432969 | D58: 1.23153142 | E58: 3.079885378 | F58: 13.21358934 | G58: 0.00220996446 | H58: 0.01427621774
A59: 58 | B59: 0.07973995833 | C59: 0.04823641227 | D59: 0.902282691 | E59: 2.678383542 | F59: 11.14790381 | G59: 0.001284536507 | H59: 0.0156176081
A60: 59 | B60: 0.06473130654 | C60: 0.01397094042 | D60: -0.6203684873 | E60: 2.80670361 | F60: 11.13872155 | G60: 0.001109607329 | H60: 0.01392204927
A61: 60 | B61: 0.04165505271 | C61: 0.006420259098 | D61: 0.6885185227 | E61: 3.230524408 | F61: 13.79016791 | G61: 0.000449940425 | H61: 0.01433665866
A62: 61 | B62: 0.06498142453 | C62: 0.01581728983 | D62: -0.3142180365 | E62: 2.14134245 | F62: 6.62070948 | G62: 0.0007575724137 | H62: 0.01509459996
A63: 62 | B63: 0.04422336857 | C63: 0.01231283554 | D63: 0.3371269563 | E63: 1.855490464 | F63: 4.284571114 | G63: 0.001039661765 | H63: 0.01488932474
A64: 63 | B64: 0.07440311416 | C64: 0.01961932517 | D64: -0.06052331548 | E64: 2.672059638 | F64: 9.843036443 | G64: 0.001172605467 | H64: 0.01490036884
A65: 64 | B65: 0.04873305443 | C65: 0.01680934883 | D65: 0.6136164097 | E65: 3.021066819 | F65: 13.77137043 | G65: 0.001215039232 | H65: 0.01607055068
A66: 65 | B66: 0.0921940081 | C66: 0.03626703121 | D66: -0.1771853178 | E66: 1.618704781 | F66: 3.24310754 | G66: 0.002295960685 | H66: 0.01529312107
A67: 66 | B67: 0.03656524477 | C67: 0.01027629418 | D67: 1.319223331 | E67: 3.352466218 | F67: 15.92802678 | G67: 0.0002952137504 | H67: 0.01456267833
A68: 67 | B68: 0.04817662597 | C68: 0.01288897366 | D68: 0.1436705435 | E68: 2.127506766 | F68: 6.432615259 | G68: 0.001408984509 | H68: 0.01515583258
A69: 68 | B69: 0.0517608346 | C69: 0.02243368373 | D69: 0.4608928769 | E69: 2.561136867 | F69: 11.75944218 | G69: 0.001905023556 | H69: 0.01549902618
A70: 69 | B70: 0.04715533107 | C70: 0.01878395959 | D70: 0.7628613902 | E70: 2.998985239 | F70: 15.43757343 | G70: 0.0003868863227 | H70: 0.01650617008
A71: 70 | B71: 0.02942369772 | C71: 0.008279232969 | D71: 0.8338393482 | E71: 2.918818229 | F71: 17.83623487 | G71: 0.001029663687 | H71: 0.01578984774
A72: 71 | B72: 0.05331104418 | C72: 0.01478917019 | D72: 0.00458072504 | E72: 2.117200956 | F72: 5.344473556 | G72: 0.0003259653697 | H72: 0.01551357789
A73: 72 | B73: 0.05927888003 | C73: 0.02965096749 | D73: 1.507579127 | E73: 4.595585409 | F73: 33.41991728 | G73: 0.0002664751264 | H73: 0.01525511402
A74: 73 | B74: 0.03991306296 | C74: 0.009296781261 | D74: 1.158271853 | E74: 3.354332457 | F74: 15.32284666 | G74: 0.0009758093416 | H74: 0.01543159297
A75: 74 | B75: 0.05889334098 | C75: 0.01770286381 | D75: -0.09484821593 | E75: 1.903112659 | F75: 4.558270261 | G75: 0.0005693993673 | H75: 0.01460443893
A76: 75 | B76: 0.06533401525 | C76: 0.02923517482 | D76: 0.901173334 | E76: 2.69098925 | F76: 11.15642559 | G76: 0.0009022564446 | H76: 0.01648575946
A77: 76 | B77: 0.05599806209 | C77: 0.01898017161 | D77: 0.2906701716 | E77: 2.437793855 | F77: 7.445896015 | G77: 0.001578968451 | H77: 0.01498676346
A78: 77 | B78: 0.08221791148 | C78: 0.02226121689 | D78: -0.6387923457 | E78: 2.667879393 | F78: 9.335207491 | G78: 0.0003330742001 | H78: 0.01575267043
A79: 78 | B79: 0.09142021909 | C79: 0.03843137232 | D79: -0.4859650677 | E79: 1.739039026 | F79: 3.838002236 | G79: 0.0007485658898 | H79: 0.01657802129
A80: 79 | B80: 0.05466388948 | C80: 0.01952080251 | D80: 0.2366154294 | E80: 1.82827334 | F80: 4.249335527 | G80: 0.001602002953 | H80: 0.01443841002
A81: 80 | B81: 0.04501668907 | C81: 0.01278159164 | D81: 0.4199848367 | E81: 2.380362488 | F81: 7.939064004 | G81: 0.0002634470359 | H81: 0.01579071446
A82: 81 | B82: 0.06136032703 | C82: 0.02108035779 | D82: 0.5481722482 | E82: 1.778096831 | F82: 4.149789633 | G82: 0.001537508977 | H82: 0.01485529663
A83: 82 | B83: 0.06579733664 | C83: 0.01540341599 | D83: -0.4216344118 | E83: 2.34424827 | F83: 7.643242036 | G83: 0.0004926606413 | H83: 0.01416588268
A84: 83 | B84: 0.05919813614 | C84: 0.02289234826 | D84: 0.3682583776 | E84: 1.780496674 | F84: 4.542306636 | G84: 0.001246408953 | H84: 0.01535409375
A85: 84 | B85: 0.0457584512 | C85: 0.01369977294 | D85: 0.847414447 | E85: 2.565370344 | F85: 9.58201385 | G85: 0.00129042291 | H85: 0.01554167324
A86: 85 | B86: 0.06166358825 | C86: 0.01851872088 | D86: -0.08112869223 | E86: 1.614207366 | F86: 3.088528614 | G86: 0.0004650238991 | H86: 0.01409464164
A87: 86 | B87: 0.0474328539 | C87: 0.019141441 | D87: 0.4992347885 | E87: 1.76648937 | F87: 4.079066032 | G87: 0.00129881171 | H87: 0.01614552834
A88: 87 | B88: 0.05393706484 | C88: 0.02204570618 | D88: 1.48214918 | E88: 4.839098304 | F88: 37.58300398 | G88: 0.001163824764 | H88: 0.01520913907
A89: 88 | B89: 0.04005430112 | C89: 0.008452604329 | D89: 0.899755988 | E89: 5.32841146 | F89: 60.78423008 | G89: 0.001367872352 | H89: 0.01500216007
A90: 89 | B90: 0.08161367333 | C90: 0.04291145001 | D90: 0.3466932257 | E90: 1.547425392 | F90: 3.014787211 | G90: 0.0008716986464 | H90: 0.01605458436
A91: 90 | B91: 0.05783857564 | C91: 0.02211218973 | D91: 0.8639865656 | E91: 2.889522629 | F91: 13.89676203 | G91: 0.001339002246 | H91: 0.01583443392
A92: 91 | B92: 0.05078103105 | C92: 0.01927798342 | D92: 0.9532298879 | E92: 2.650498717 | F92: 9.828771873 | G92: 0.001765708877 | H92: 0.01562197593
A93: 92 | B93: 0.08380221996 | C93: 0.02203128077 | D93: -0.3879266216 | E93: 4.056411375 | F93: 19.79307889 | G93: 0.002296408235 | H93: 0.01442712546
A94: 93 | B94: 0.07389588228 | C94: 0.02652166384 | D94: -0.02061606297 | E94: 1.860043796 | F94: 4.054559405 | G94: 0.002021132853 | H94: 0.01486595102
A95: 94 | B95: 0.04925998892 | C95: 0.01537825772 | D95: 0.4126452033 | E95: 1.830137889 | F95: 4.397869755 | G95: 0.001119380673 | H95: 0.01571614251
A96: 95 | B96: 0.04746020424 | C96: 0.00896584445 | D96: 1.067148004 | E96: 4.129034667 | F96: 27.68519212 | G96: 0.0006094249737 | H96: 0.01435186416
A97: 96 | B97: 0.05521001859 | C97: 0.0177092824 | D97: 0.2962510706 | E97: 1.973831879 | F97: 5.120975612 | G97: 0.001645400777 | H97: 0.01636637478
A98: 97 | B98: 0.04800264307 | C98: 0.02904271072 | D98: 0.9996576263 | E98: 3.155701377 | F98: 13.31930647 | G98: 0.0007849182823 | H98: 0.0171837401
A99: 98 | B99: 0.0716071411 | C99: 0.0329433735 | D99: 0.4868661021 | E99: 1.614771855 | F99: 3.463566712 | G99: 0.002108096688 | H99: 0.01351113656
A100: 99 | B100: 0.04393048306 | C100: 0.01129978228 | D100: 0.3380645361 | E100: 1.880806479 | F100: 4.353196329 | G100: 0.0005312929664 | H100: 0.01567266689
A101: 100 | B101: 0.06486224451 | C101: 0.02544637416 | D101: 0.9917807456 | E101: 3.318928544 | F101: 16.39180946 | G101: 0.0009841772601 | H101: 0.01554800582
A102: 101 | B102: 0.04431452095 | C102: 0.007595349651 | D102: 0.06064877493 | E102: 2.392485238 | F102: 7.188190665 | G102: 0.0004389001636 | H102: 0.01492997748
A103: 102 | B103: 0.04827105743 | C103: 0.02547285272 | D103: 0.2116703138 | E103: 1.27243166 | F103: 1.903816733 | G103: 0.001676562483 | H103: 0.01553511325
A104: 103 | B104: 0.03987656419 | C104: 0.01024890919 | D104: 0.7509209755 | E104: 3.28186346 | F104: 19.71025276 | G104: 0.001237318171 | H104: 0.01521414749
A105: 104 | B105: 0.07986063995 | C105: 0.01721229516 | D105: -1.200847859 | E105: 4.147001185 | F105: 26.80603087 | G105: 0.001598340377 | H105: 0.01380826796
A106: 105 | B106: 0.06481618664 | C106: 0.02613452104 | D106: 0.647126133 | E106: 2.095443873 | F106: 5.717180493 | G106: 0.0004665900151 | H106: 0.01580490607
A107: 106 | B107: 0.05539901116 | C107: 0.02586892453 | D107: 0.6344527564 | E107: 2.314273183 | F107: 8.463770821 | G107: 0.00176372689 | H107: 0.01609385881
A108: 107 | B108: 0.04555262431 | C108: 0.00417307324 | D108: -1.110777754 | E108: 5.467107348 | F108: 60.60068152 | G108: 0.0006737914026 | H108: 0.01368512158
A109: 108 | B109: 0.03788333227 | C109: 0.01270061901 | D109: 1.371020463 | E109: 4.944252906 | F109: 48.78788622 | G109: 0.001595109555 | H109: 0.01568980479
A110: 109 | B110: 0.04293533198 | C110: 0.008514644684 | D110: 0.3578022958 | E110: 2.012528078 | F110: 6.374178705 | G110: 0.00112657263 | H110: 0.01494800515
A111: 110 | B111: 0.06008171361 | C111: 0.01521915893 | D111: 0.1999344432 | E111: 2.476021706 | F111: 8.424548803 | G111: 0.00160696252 | H111: 0.01398844099
A112: 111 | B112: 0.04883316116 | C112: 0.01774102288 | D112: 0.1881103928 | E112: 1.802764938 | F112: 4.153454006 | G112: 0.0008578843729 | H112: 0.01617895983
A113: 112 | B113: 0.06664996427 | C113: 0.02422480906 | D113: -0.2849403794 | E113: 2.078868768 | F113: 5.34167879 | G113: 0.001949447393 | H113: 0.0150003857
A114: 113 | B114: 0.04938412639 | C114: 0.01245857091 | D114: 0.3166945632 | E114: 1.865323091 | F114: 4.199374167 | G114: 0.001147739145 | H114: 0.01409093153
A115: 114 | B115: 0.04622764894 | C115: 0.0181835857 | D115: 1.050928853 | E115: 2.96978267 | F115: 12.63142834 | G115: 0.001656147726 | H115: 0.01547740835
A116: 115 | B116: 0.06942116851 | C116: 0.02386422337 | D116: 0.258286055 | E116: 2.035941533 | F116: 5.170616992 | G116: 0.001732615222 | H116: 0.01535808938
A117: 116 | B117: 0.04260067796 | C117: 0.01273029648 | D117: 0.0824521222 | E117: 2.430031807 | F117: 7.578883861 | G117: 0.0005646531891 | H117: 0.01572394433
A118: 117 | B118: 0.04309415536 | C118: 0.0118151892 | D118: 0.5667940662 | E118: 2.977245539 | F118: 12.2913634 | G118: 0.001175446446 | H118: 0.01579462877
A119: 118 | B119: 0.05219489313 | C119: 0.01275252616 | D119: 0.01024391979 | E119: 2.021983113 | F119: 4.953757765 | G119: 0.0009125092458 | H119: 0.01394245613
A120: 119 | B120: 0.04874355243 | C120: 0.007135932554 | D120: -0.1447291858 | E120: 3.157312388 | F120: 14.63039414 | G120: 0.001054169088 | H120: 0.01493960406
A121: 120 | B121: 0.07594950252 | C121: 0.03670541881 | D121: -0.1387833955 | E121: 1.756398354 | F121: 3.654403523 | G121: 0.001367854586 | H121: 0.01513431803
A122: 121 | B122: 0.04847217627 | C122: 0.01322514012 | D122: -0.2710209075 | E122: 2.330473186 | F122: 6.643141449 | G122: -0.0003300104919 | H122: 0.01496966417
A123: 122 | B123: 0.04885214316 | C123: 0.01402630565 | D123: 0.8976456763 | E123: 3.049605233 | F123: 14.44816256 | G123: 0.0009318399134 | H123: 0.01545521265
A124: 123 | B124: 0.06222009981 | C124: 0.01895363248 | D124: 0.8285987018 | E124: 3.166905152 | F124: 15.32645746 | G124: 0.0007874591583 | H124: 0.0151390831
A125: 124 | B125: 0.04380653917 | C125: 0.01011087725 | D125: -0.01507355734 | E125: 1.565218218 | F125: 2.926438073 | G125: 0.0001691530405 | H125: 0.01497961702
A126: 125 | B126: 0.05452753537 | C126: 0.02792213777 | D126: 1.144621295 | E126: 3.324269022 | F126: 17.44273996 | G126: 0.002149805089 | H126: 0.01614077538
A127: 126 | B127: 0.05960527193 | C127: 0.01647650097 | D127: 0.09212500604 | E127: 2.287784043 | F127: 6.341179181 | G127: 0.0003143783439 | H127: 0.0142527511
A128: 127 | B128: 0.04940686698 | C128: 0.02138878818 | D128: 0.5970983178 | E128: 2.594634637 | F128: 10.63879815 | G128: -0.0002524351163 | H128: 0.0159886768
A129: 128 | B129: 0.05814762001 | C129: 0.0185202502 | D129: 0.2225826153 | E129: 1.670051013 | F129: 3.422645826 | G129: 0.001359946852 | H129: 0.01539577292
A130: 129 | B130: 0.05316323774 | C130: 0.009052149765 | D130: -0.5579263146 | E130: 2.240355398 | F130: 7.959347569 | G130: 0.0003622291429 | H130: 0.0142409678
A131: 130 | B131: 0.0562405288 | C131: 0.03813177278 | D131: 0.7825349324 | E131: 2.155192305 | F131: 7.034109931 | G131: 0.0006494279751 | H131: 0.0159445284
A132: 131 | B132: 0.08973118437 | C132: 0.02626597377 | D132: -0.7892205117 | E132: 2.432044583 | F132: 8.362786718 | G132: 0.0009696998627 | H132: 0.01478789814
A133: 132 | B133: 0.04438608828 | C133: 0.01329078089 | D133: 1.121834527 | E133: 4.00437013 | F133: 25.2581329 | G133: -0.0003792058027 | H133: 0.01584883519
A134: 133 | B134: 0.05691996709 | C134: 0.01551566873 | D134: -0.2425567435 | E134: 1.485251085 | F134: 2.697973449 | G134: 0.001398015557 | H134: 0.01438103603
A135: 134 | B135: 0.05598284469 | C135: 0.01293876857 | D135: 0.6403297921 | E135: 3.112685616 | F135: 13.16792637 | G135: 0.0009597804781 | H135: 0.01424018777
A136: 135 | B136: 0.03923677975 | C136: 0.01118889854 | D136: 2.263338249 | E136: 9.682949263 | F136: 164.0661377 | G136: 0.001650797549 | H136: 0.01480527246
A137: 136 | B137: 0.09593505231 | C137: 0.05694551046 | D137: 0.5968649055 | E137: 2.286849355 | F137: 8.26903019 | G137: 0.002368374983 | H137: 0.0170937026
A138: 137 | B138: 0.08042101235 | C138: 0.03367833129 | D138: 0.05276482151 | E138: 1.796608805 | F138: 3.795691812 | G138: 0.002054478822 | H138: 0.0142436413
A139: 138 | B139: 0.04676689749 | C139: 0.02007211681 | D139: 1.423435805 | E139: 3.368726017 | F139: 14.59770725 | G139: 0.001510506258 | H139: 0.01555947078
A140: 139 | B140: 0.05123764521 | C140: 0.01256784111 | D140: 0.6154913027 | E140: 3.274005314 | F140: 15.71161351 | G140: 0.001240763645 | H140: 0.01552025595
A141: 140 | B141: 0.05117483062 | C141: 0.01127714543 | D141: 0.2464731911 | E141: 2.209467325 | F141: 6.32255653 | G141: 0.001065338731 | H141: 0.01411015156
A142: 141 | B142: 0.03984399767 | C142: 0.006585911339 | D142: 0.12350116 | E142: 2.197151503 | F142: 6.180406324 | G142: 0.0002182142178 | H142: 0.01496820417
A143: 142 | B143: 0.08670106209 | C143: 0.04406628931 | D143: 0.05172808822 | E143: 1.508658428 | F143: 2.523815686 | G143: 0.001646516366 | H143: 0.01733666699
A144: 143 | B144: 0.0411589374 | C144: 0.008042458136 | D144: -1.347896786 | E144: 3.919369365 | F144: 22.47275358 | G144: -0.0006152631179 | H144: 0.01416751954
A145: 144 | B145: 0.0516422639 | C145: 0.02045126992 | D145: 1.034838338 | E145: 4.08751189 | F145: 30.97924922 | G145: 0.002062120306 | H145: 0.01732532846
A146: 145 | B146: 0.04561909776 | C146: 0.01475567324 | D146: 0.02167421414 | E146: 1.986975265 | F146: 5.022477192 | G146: 0.0005732895932 | H146: 0.01491349173
A147: 146 | B147: 0.04832794421 | C147: 0.01253791036 | D147: 0.7262476045 | E147: 2.864250938 | F147: 12.69733402 | G147: 0.0009356233444 | H147: 0.0157207959
A148: 147 | B148: 0.05312229988 | C148: 0.01649995985 | D148: 0.4703229068 | E148: 1.785265324 | F148: 4.385040027 | G148: 0.0005532226526 | H148: 0.01574703695
A149: 148 | B149: 0.07385838818 | C149: 0.04196969146 | D149: 1.431795677 | E149: 3.99367626 | F149: 24.48242 | G149: 0.0003662239476 | H149: 0.01524533399
A150: 149 | B150: 0.04069821602 | C150: 0.008295107383 | D150: 0.4629983652 | E150: 1.955679174 | F150: 5.349646688 | G150: 0.0002049890125 | H150: 0.0150827389
A151: 150 | B151: 0.08151941316 | C151: 0.01929100438 | D151: -0.7993883999 | E151: 3.349095684 | F151: 17.22001825 | G151: 0.001662985823 | H151: 0.01467802634
A152: 151 | B152: 0.03902113144 | C152: 0.006253595913 | D152: 0.7254377222 | E152: 2.386893862 | F152: 8.327127743 | G152: 0.0008020871003 | H152: 0.01420545394
A153: 152 | B153: 0.08365259671 | C153: 0.03436377976 | D153: 1.187474754 | E153: 3.846088478 | F153: 23.49696689 | G153: 0.001163586924 | H153: 0.01606056092
A154: 153 | B154: 0.06872644011 | C154: 0.01687769377 | D154: -0.3676566262 | E154: 2.209019183 | F154: 6.817171265 | G154: 0.000593624778 | H154: 0.01545508348
A155: 154 | B155: 0.06335643218 | C155: 0.02565508317 | D155: -0.1910424021 | E155: 1.562496561 | F155: 2.926418761 | G155: 0.001626929847 | H155: 0.0149485197
A156: 155 | B156: 0.04736131452 | C156: 0.00793702055 | D156: -0.4987591131 | E156: 2.120960368 | F156: 6.386705727 | G156: 0.0005205537141 | H156: 0.01517019397
A157: 156 | B157: 0.05762452361 | C157: 0.03075947321 | D157: 0.8559020811 | E157: 2.128178557 | F157: 6.60174677 | G157: 0.000313248608 | H157: 0.0153028641
A158: 157 | B158: 0.04492288135 | C158: 0.008348692128 | D158: 0.6706122882 | E158: 2.75514681 | F158: 10.44709731 | G158: 0.0006008101309 | H158: 0.01474220455
A159: 158 | B159: 0.06370447363 | C159: 0.01264096003 | D159: -0.8264516719 | E159: 3.170965513 | F159: 15.037586 | G159: 0.001592485254 | H159: 0.01592364691
A160: 159 | B160: 0.05730855933 | C160: 0.01562988465 | D160: 0.4395704232 | E160: 2.310528435 | F160: 7.109138738 | G160: 0.001629911583 | H160: 0.01498929244
A161: 160 | B161: 0.06521635131 | C161: 0.02281851496 | D161: 0.1532731763 | E161: 1.787874381 | F161: 3.724663307 | G161: 0.001152861656 | H161: 0.01519769228
A162: 161 | B162: 0.04657872976 | C162: 0.008616037063 | D162: 0.5481907499 | E162: 3.25335484 | F162: 18.07663851 | G162: 0.001328235522 | H162: 0.01494199086
A163: 162 | B163: 0.07675629599 | C163: 0.04676874646 | D163: 0.62573695 | E163: 1.749310098 | F163: 4.521344925 | G163: 0.00192810719 | H163: 0.01419894164
A164: 163 | B164: 0.05891915445 | C164: 0.01872618195 | D164: 0.6713773522 | E164: 2.787122507 | F164: 11.27995632 | G164: 0.000642980198 | H164: 0.01547151737
A165: 164 | B165: 0.07635405947 | C165: 0.03515865125 | D165: 0.7657999735 | E165: 2.486166376 | F165: 8.607889874 | G165: 0.0007748011123 | H165: 0.01492382899
A166: 165 | B166: 0.03025171175 | C166: 0.009927316973 | D166: 0.6017117412 | E166: 2.277470611 | F166: 7.368212307 | G166: 0.0003852379403 | H166: 0.01532177994
A167: 166 | B167: 0.05980496412 | C167: 0.02186124538 | D167: 0.1462683515 | E167: 1.43653141 | F167: 2.271562247 | G167: 0.0009305738909 | H167: 0.01597187989
A168: 167 | B168: 0.06181637647 | C168: 0.01844199845 | D168: 0.4236515705 | E168: 2.488552139 | F168: 8.793121378 | G168: 0.001719346101 | H168: 0.01448019592
A169: 168 | B169: 0.07228706002 | C169: 0.02828878696 | D169: 0.1420589233 | E169: 1.636089716 | F169: 3.345131432 | G169: 0.001361310633 | H169: 0.01436595269
A170: 169 | B170: 0.04571275966 | C170: 0.01406267894 | D170: 0.2055453308 | E170: 1.727993581 | F170: 3.80941847 | G170: 0.0009373899689 | H170: 0.01653831919
A171: 170 | B171: 0.04407017564 | C171: 0.02200671408 | D171: 1.359357465 | E171: 3.880208041 | F171: 23.97283611 | G171: 0.0009980767423 | H171: 0.01599138243
A172: 171 | B172: 0.07010791891 | C172: 0.03521623948 | D172: 1.466165277 | E172: 4.019865041 | F172: 23.99657084 | G172: 0.002484946034 | H172: 0.01466627984
A173: 172 | B173: 0.03746989782 | C173: 0.008763219192 | D173: 0.8767686703 | E173: 2.657599636 | F173: 11.80304082 | G173: 0.0005333991511 | H173: 0.01531545287
A174: 173 | B174: 0.09029601141 | C174: 0.03120498927 | D174: -0.06630995927 | E174: 2.15663298 | F174: 6.239928225 | G174: 0.001378411108 | H174: 0.01534683575
A175: 174 | B175: 0.06759403258 | C175: 0.02307902431 | D175: 1.057617609 | E175: 3.689785593 | F175: 22.86154295 | G175: 0.0007548281976 | H175: 0.01607481663
A176: 175 | B176: 0.03451782851 | C176: 0.016434376 | D176: 1.176511986 | E176: 3.230722561 | F176: 15.16582897 | G176: 0.0002846141219 | H176: 0.01597330361
A177: 176 | B177: 0.03760301493 | C177: 0.01005852286 | D177: -0.4688184809 | E177: 2.324762942 | F177: 6.976252876 | G177: 0.0002947987009 | H177: 0.0147839039
A178: 177 | B178: 0.05586333541 | C178: 0.01211140902 | D178: 0.06998293509 | E178: 2.385653614 | F178: 8.06797315 | G178: 0.001013504402 | H178: 0.01580000931
A179: 178 | B179: 0.04207182013 | C179: 0.01097277585 | D179: -0.9064125221 | E179: 2.940039373 | F179: 13.01894615 | G179: -0.000902598566 | H179: 0.01454866954
A180: 179 | B180: 0.05075925824 | C180: 0.01344921097 | D180: 0.988963923 | E180: 3.583294376 | F180: 20.36133474 | G180: 0.001047411257 | H180: 0.01553793282
A181: 180 | B181: 0.06024601454 | C181: 0.01424971946 | D181: -0.2065776984 | E181: 2.060095396 | F181: 5.665713904 | G181: 0.0006562855241 | H181: 0.01554985625
A182: 181 | B182: 0.04588697322 | C182: 0.01048287171 | D182: 0.2158083031 | E182: 2.65256323 | F182: 9.218468965 | G182: 0.0006429266862 | H182: 0.01421164753
A183: 182 | B183: 0.04701910014 | C183: 0.009938887929 | D183: -0.3159787358 | E183: 1.952572799 | F183: 5.196044161 | G183: 9.734372926e-05 | H183: 0.01556738403
A184: 183 | B184: 0.07289232365 | C184: 0.04941079547 | D184: 1.274397883 | E184: 3.442555971 | F184: 18.99312192 | G184: 9.40903661e-05 | H184: 0.01684590671
A185: 184 | B185: 0.07461644514 | C185: 0.01839253929 | D185: -0.483673572 | E185: 3.399397866 | F185: 14.76102623 | G185: 0.001556472701 | H185: 0.01421449656
A186: 185 | B186: 0.0409551099 | C186: 0.01452693146 | D186: 1.108717877 | E186: 3.468455014 | F186: 19.17891639 | G186: 0.001503116073 | H186: 0.01568278458
A187: 186 | B187: 0.05613637025 | C187: 0.02462570706 | D187: 0.2129884337 | E187: 1.664672476 | F187: 3.334194747 | G187: 0.001056377536 | H187: 0.01486270111
A188: 187 | B188: 0.04763907166 | C188: 0.009219900545 | D188: 0.1310914673 | E188: 2.149202242 | F188: 6.631262297 | G188: 0.0005996603448 | H188: 0.01362610148
A189: 188 | B189: 0.05107860169 | C189: 0.01531859832 | D189: 0.1698114761 | E189: 2.567318483 | F189: 9.008094549 | G189: -0.0004941935286 | H189: 0.01568958289
A190: 189 | B190: 0.06126674147 | C190: 0.03043804587 | D190: 1.412203947 | E190: 3.910690439 | F190: 22.33772076 | G190: -3.901206783e-05 | H190: 0.01604785337
A191: 190 | B191: 0.04798055326 | C191: 0.01678578389 | D191: 1.509248458 | E191: 4.485446917 | F191: 28.74536944 | G191: 0.001676702455 | H191: 0.01447877864
A192: 191 | B192: 0.04092755998 | C192: 0.009734392775 | D192: 0.1721447453 | E192: 2.726584517 | F192: 10.71973991 | G192: 0.0009526861696 | H192: 0.01602593501
A193: 192 | B193: 0.0428979591 | C193: 0.007064999509 | D193: -0.4399911838 | E193: 2.306541987 | F193: 7.486515517 | G193: 0.0009775930235 | H193: 0.0140570671
A194: 193 | B194: 0.05841460176 | C194: 0.01960384114 | D194: 1.052960119 | E194: 4.410961163 | F194: 35.38733298 | G194: 0.002014690273 | H194: 0.01514221617
A195: 194 | B195: 0.04805174573 | C195: 0.02191259049 | D195: 0.07398642076 | E195: 1.875812419 | F195: 4.316104205 | G195: 0.0009449638695 | H195: 0.0167175928
A196: 195 | B196: 0.04806875346 | C196: 0.01056534989 | D196: 0.3573503565 | E196: 2.095039285 | F196: 5.940432055 | G196: 0.000398437607 | H196: 0.01379662846
A197: 196 | B197: 0.07931355281 | C197: 0.02707420001 | D197: -0.2696958097 | E197: 1.922397898 | F197: 4.590356522 | G197: 0.002111213929 | H197: 0.0163684489
A198: 197 | B198: 0.0466384067 | C198: 0.01925485228 | D198: 0.2839833789 | E198: 2.541883385 | F198: 10.54688397 | G198: 0.0006018196632 | H198: 0.01617294223
A199: 198 | B199: 0.05173007911 | C199: 0.0173010787 | D199: 1.58658 | E199: 4.763541444 | F199: 32.75287851 | G199: 0.001179702819 | H199: 0.01480989942
A200: 199 | B200: 0.0852457026 | C200: 0.04024011788 | D200: 0.7342839492 | E200: 2.857492108 | F200: 13.03895827 | G200: 0.0005014814946 | H200: 0.01609729361
... 801 more rows

Sheet freq
G1: from rt values | Q1: Rnd Scenario Drifts | R1: Rnd Scenario Rates | S1: Rnd Scenario Targets | T1: absLn | V1: drt | W1: lnrt | X1: Dlnrt | Y1: Selective Dlnrt
F2: μ= | G2: =LN('Monthly Stats'!B601)-0.5*freq!G3^2 -> -2.882626901 | Q2: -0.00108721606 | R2: 0.0283 | S2: 0.062 | T2: No. 220 | V2: =(R3-R2) -> 0.0002622956079 | W2: =LN(R2) -> -3.564893474 | X2: =(W3-W2) -> 0.00922570802
F3: σ= | G3: =LN(('Monthly Stats'!C601/'Monthly Stats'!B601)^2+1)^0.5 -> 0.4428121575 | Q3: -0.0007815399474 | R3: 0.02856229561 | S3: 0.062 | T3: 0.008463933586 | V3: =(R4-R3) -> 0.0004581554913 | W3: =LN(R3) -> -3.555667766 | X3: =(W4-W3) -> 0.01591327909
F4: comparable | G4: E= | H4: =EXP(G2+0.5*G3^2) -> 0.06175467501 | Q4: -0.0004829729964 | R4: 0.0290204511 | S4: 0.062 | T4: 0.01515150466 | V4: 0.0007462810419 | W4: -3.539754487 | X4: 0.02539060704
F5: lognormal | Q5: -0.0001914607736 | R5: 0.02976673214 | S5: 0.062 | T5: 0.02462883261 | V5: 0.0005829984452 | W5: -3.51436388 | X5: 0.01939624177
B6: Frequency t= | F6: frequency | G6: Relative Frequency | H6: Relative Frequency | I6: Relative Fequency | J6: Relative Fequency | Q6: 9.30288662e-05 | R6: 0.03034973059 | S6: 0.062 | T6: 0.01863446734 | V6: 7.734200265e-05 | W6: -3.494967638 | X6: 0.002545117228
A7: central rt | B7: 24 | C7: 120 | D7: 300 | E7: 600 | G7: 600 | H7: 300 | I7: 120 | J7: 24 | Q7: 0.0003705151548 | R7: 0.03042707259 | S7: 0.062 | T7: 0.001783342794 | V7: 0.0004165926568 | W7: -3.492422521 | X7: 0.01359863097
A8: 0 | B8: 0 | C8: 0 | D8: 0 | E8: 0 | F8: =NORMDIST(LN(A8+0.0025),$G$2,$G$3,TRUE) -> 1.104040939e-12 | G8: =E8/Inputs!$B$1 -> 0 | H8: =D8/Inputs!$B$1 -> 0 | I8: =C8/Inputs!$B$1 -> 0 | J8: =B8/Inputs!$B$1 -> 0 | Q8: 0.0006410108233 | R8: 0.03084366525 | S8: 0.062 | T8: 0.01283685654 | V8: -0.0008228679407 | W8: -3.47882389 | X8: -0.02704100379 | Y8: -0.02704100379
A9: =A8+0.005 -> 0.005 | B9: 0 | C9: 0 | D9: 0 | E9: 0 | F9: =(NORMDIST(LN(A9+0.0025),$G$2,$G$3,TRUE)-NORMDIST(LN(A9-0.0025),$G$2,$G$3,TRUE)) -> 2.816986392e-06 | G9: =E9/Inputs!$B$1 -> 0 | H9: =D9/Inputs!$B$1 -> 0 | I9: =C9/Inputs!$B$1 -> 0 | J9: =B9/Inputs!$B$1 -> 0 | Q9: 0.0009045267537 | R9: 0.0300207973 | S9: 0.062 | T9: 0.02780277822 | V9: 0.000138585083 | W9: -3.505864894 | X9: 0.004605680098
A10: =A9+0.005 -> 0.01 | B10: 0 | C10: 2 | D10: 0 | E10: 1 | F10: 0.0003516697361 | G10: =E10/Inputs!$B$1 -> 0.001 | H10: =D10/Inputs!$B$1 -> 0 | I10: =C10/Inputs!$B$1 -> 0.002 | J10: =B10/Inputs!$B$1 -> 0 | Q10: 0.001161075426 | R10: 0.03015938239 | S10: 0.062 | T10: 0.003843905665 | V10: 0.0005681314586 | W10: -3.501259214 | X10: 0.01866240465 | Y10: 0.01866240465
A11: 0.015 | B11: 0 | C11: 5 | D11: 5 | E11: 9 | F11: 0.003962309663 | G11: =E11/Inputs!$B$1 -> 0.009 | H11: =D11/Inputs!$B$1 -> 0.005 | I11: =C11/Inputs!$B$1 -> 0.005 | J11: =B11/Inputs!$B$1 -> 0 | Q11: 0.001410673481 | R11: 0.03072751385 | S11: 0.062 | T11: 0.01790063022 | V11: 0.0004295552229 | W11: -3.482596809 | X11: 0.01388268618
A12: 0.02 | B12: 1 | C12: 14 | D12: 20 | E12: 16 | F12: 0.01544516432 | G12: =E12/Inputs!$B$1 -> 0.016 | H12: =D12/Inputs!$B$1 -> 0.02 | I12: =C12/Inputs!$B$1 -> 0.014 | J12: =B12/Inputs!$B$1 -> 0.001 | Q12: 0.001653343612 | R12: 0.03115706907 | S12: 0.062 | T12: 0.01312091174 | V12: 0.0001979995675 | W12: -3.468714123 | X12: 0.006334777114
A13: 0.025 | B13: 22 | C13: 45 | D13: 35 | E13: 30 | F13: 0.03442809507 | G13: =E13/Inputs!$B$1 -> 0.03 | H13: =D13/Inputs!$B$1 -> 0.035 | I13: =C13/Inputs!$B$1 -> 0.045 | J13: =B13/Inputs!$B$1 -> 0.022 | Q13: 0.001889115924 | R13: 0.03135506864 | S13: 0.062 | T13: 0.005573002681 | V13: -0.0004398293226 | W13: -3.462379346 | X13: -0.014126689
A14: 0.03 | B14: 248 | C14: 77 | D14: 54 | E14: 45 | F14: 0.05548470792 | G14: =E14/Inputs!$B$1 -> 0.045 | H14: =D14/Inputs!$B$1 -> 0.054 | I14: =C14/Inputs!$B$1 -> 0.077 | J14: =B14/Inputs!$B$1 -> 0.248 | Q14: 0.00211802888 | R14: 0.03091523931 | S14: 0.05758629097 | T14: 0.01488846343 | V14: -0.0001244853089 | W14: -3.476506035 | X14: -0.004034793739
A15: 0.035 | B15: 646 | C15: 94 | D15: 69 | E15: 75 | F15: 0.07303254231 | G15: =E15/Inputs!$B$1 -> 0.075 | H15: =D15/Inputs!$B$1 -> 0.069 | I15: =C15/Inputs!$B$1 -> 0.094 | J15: =B15/Inputs!$B$1 -> 0.646 | Q15: 0.002340129899 | R15: 0.03079075401 | S15: 0.03244121004 | T15: 0.004796568173 | V15: -0.0001945379081 | W15: -3.480540829 | X15: -0.006338105923
A16: 0.04 | B16: 70 | C16: 101 | D16: 111 | E16: 81 | F16: 0.08411876205 | G16: =E16/Inputs!$B$1 -> 0.081 | H16: =D16/Inputs!$B$1 -> 0.111 | I16: =C16/Inputs!$B$1 -> 0.101 | J16: =B16/Inputs!$B$1 -> 0.07 | Q16: 0.002555475699 | R16: 0.0305962161 | S16: 0.03244121004 | T16: 0.007099880356 | V16: -0.0008558641306 | W16: -3.486878935 | X16: -0.02837156861
A17: 0.045 | B17: 12 | C17: 126 | D17: 93 | E17: 93 | F17: 0.08839568642 | G17: =E17/Inputs!$B$1 -> 0.093 | H17: =D17/Inputs!$B$1 -> 0.093 | I17: =C17/Inputs!$B$1 -> 0.126 | J17: =B17/Inputs!$B$1 -> 0.012 | Q17: 0.002764132405 | R17: 0.02974035197 | S17: 0.03244121004 | T17: 0.02913334304 | V17: 0.0005517173263 | W17: -3.515250503 | X17: 0.018381163
A18: 0.05 | B18: 0 | C18: 142 | D18: 73 | E18: 105 | F18: 0.08703789472 | G18: =E18/Inputs!$B$1 -> 0.105 | H18: =D18/Inputs!$B$1 -> 0.073 | I18: =C18/Inputs!$B$1 -> 0.142 | J18: =B18/Inputs!$B$1 -> 0 | Q18: 0.002966175489 | R18: 0.03029206929 | S18: 0.03244121004 | T18: 0.01761938856 | V18: -0.00081070526 | W18: -3.49686934 | X18: -0.02712760272 | Y18: -0.02712760272
A19: 0.055 | B19: 1 | C19: 109 | D19: 83 | E19: 72 | F19: 0.08174152872 | G19: =E19/Inputs!$B$1 -> 0.072 | H19: =D19/Inputs!$B$1 -> 0.083 | I19: =C19/Inputs!$B$1 -> 0.109 | J19: =B19/Inputs!$B$1 -> 0.001 | Q19: 0.003161689572 | R19: 0.02948136403 | S19: 0.03244121004 | T19: 0.02788937716 | V19: 0.0001555114209 | W19: -3.523996943 | X19: 0.005261042309
A20: 0.06 | B20: 0 | C20: 86 | D20: 76 | E20: 67 | F20: 0.07412447601 | G20: =E20/Inputs!$B$1 -> 0.067 | H20: =D20/Inputs!$B$1 -> 0.076 | I20: =C20/Inputs!$B$1 -> 0.086 | J20: =B20/Inputs!$B$1 -> 0 | Q20: 0.003350768099 | R20: 0.02963687545 | S20: 0.03244121004 | T20: 0.004499267876 | V20: 0.000494955548 | W20: -3.518735901 | X20: 0.01656274302 | Y20: 0.01656274302
A21: 0.065 | B21: 0 | C21: 44 | D21: 62 | E21: 66 | F21: 0.06547102519 | G21: =E21/Inputs!$B$1 -> 0.066 | H21: =D21/Inputs!$B$1 -> 0.062 | I21: =C21/Inputs!$B$1 -> 0.044 | J21: =B21/Inputs!$B$1 -> 0 | Q21: 0.003533512943 | R21: 0.030131831 | S21: 0.03244121004 | T21: 0.01580096859 | V21: 0.0004702287633 | W21: -3.502173158 | X21: 0.01548519793
A22: 0.07 | B22: 0 | C22: 48 | D22: 64 | E22: 60 | F22: 0.05668367231 | G22: =E22/Inputs!$B$1 -> 0.06 | H22: =D22/Inputs!$B$1 -> 0.064 | I22: =C22/Inputs!$B$1 -> 0.048 | J22: =B22/Inputs!$B$1 -> 0 | Q22: 0.003710033929 | R22: 0.03060205977 | S22: 0.03244121004 | T22: 0.01472342349 | V22: -0.0004152963289 | W22: -3.48668796 | X22: -0.01366378779 | Y22: -0.01366378779
A23: 0.075 | B23: 0 | C23: 27 | D23: 39 | E23: 60 | F23: 0.04833159215 | G23: =E23/Inputs!$B$1 -> 0.06 | H23: =D23/Inputs!$B$1 -> 0.039 | I23: =C23/Inputs!$B$1 -> 0.027 | J23: =B23/Inputs!$B$1 -> 0 | Q23: 0.003880448314 | R23: 0.03018676344 | S23: 0.03244121004 | T23: 0.01442556223 | V23: -0.0002919308226 | W23: -3.500351747 | X23: -0.009717888314
A24: 0.08 | B24: 0 | C24: 24 | D24: 44 | E24: 37 | F24: 0.04072965301 | G24: =E24/Inputs!$B$1 -> 0.037 | H24: =D24/Inputs!$B$1 -> 0.044 | I24: =C24/Inputs!$B$1 -> 0.024 | J24: =B24/Inputs!$B$1 -> 0 | Q24: 0.004044880224 | R24: 0.02989483261 | S24: 0.03244121004 | T24: 0.01047966275 | V24: -0.0002141121442 | W24: -3.510069636 | X24: -0.007187950593
A25: 0.085 | B25: 0 | C25: 6 | D25: 35 | E25: 35 | F25: 0.03401559047 | G25: =E25/Inputs!$B$1 -> 0.035 | H25: =D25/Inputs!$B$1 -> 0.035 | I25: =C25/Inputs!$B$1 -> 0.006 | J25: =B25/Inputs!$B$1 -> 0 | Q25: 0.004203460075 | R25: 0.02968072047 | S25: 0.03244121004 | T25: 0.007949725027 | V25: -0.000461170306 | W25: -3.517257586 | X25: -0.01565968119
A26: 0.09 | B26: 0 | C26: 11 | D26: 13 | E26: 21 | F26: 0.02821298751 | G26: =E26/Inputs!$B$1 -> 0.021 | H26: =D26/Inputs!$B$1 -> 0.013 | I26: =C26/Inputs!$B$1 -> 0.011 | J26: =B26/Inputs!$B$1 -> 0 | Q26: 0.004356323966 | R26: 0.02921955016 | S26: 0.03244121004 | T26: 0.01642145563 | V26: 0.0001484402308 | W26: -3.532917268 | X26: 0.005067307727
A27: 0.095 | B27: 0 | C27: 6 | D27: 19 | E27: 24 | F27: 0.02327780292 | G27: =E27/Inputs!$B$1 -> 0.024 | H27: =D27/Inputs!$B$1 -> 0.019 | I27: =C27/Inputs!$B$1 -> 0.006 | J27: =B27/Inputs!$B$1 -> 0 | Q27: 0.004503613086 | R27: 0.02936799039 | S27: 0.03244121004 | T27: 0.004305533293 | V27: 0.0005624763978 | W27: -3.52784996 | X27: 0.01897159876
A28: 0.1 | B28: 0 | C28: 7 | D28: 22 | E28: 13 | F28: 0.01913043584 | G28: =E28/Inputs!$B$1 -> 0.013 | H28: =D28/Inputs!$B$1 -> 0.022 | I28: =C28/Inputs!$B$1 -> 0.007 | J28: =B28/Inputs!$B$1 -> 0 | Q28: 0.004645473099 | R28: 0.02993046679 | S28: 0.03244121004 | T28: 0.01820982432 | V28: 0.0003243254792 | W28: -3.508878361 | X28: 0.01077767625
A29: 0.105 | B29: 0 | C29: 9 | D29: 9 | E29: 15 | F29: 0.01567655959 | G29: =E29/Inputs!$B$1 -> 0.015 | H29: =D29/Inputs!$B$1 -> 0.009 | I29: =C29/Inputs!$B$1 -> 0.009 | J29: =B29/Inputs!$B$1 -> 0 | Q29: 0.004782053555 | R29: 0.03025479227 | S29: 0.03244121004 | T29: 0.01001590182 | V29: -2.804064931e-05 | W29: -3.498100685 | X29: -0.0009272465455
A30: 0.11 | B30: 0 | C30: 2 | D30: 16 | E30: 9 | F30: 0.01281986365 | G30: =E30/Inputs!$B$1 -> 0.009 | H30: =D30/Inputs!$B$1 -> 0.016 | I30: =C30/Inputs!$B$1 -> 0.002 | J30: =B30/Inputs!$B$1 -> 0 | Q30: 0.0049135073 | R30: 0.03022675162 | S30: 0.03244121004 | T30: 0.001689020979 | V30: -0.0005304802172 | W30: -3.499027931 | X30: -0.01770585157
A31: 0.115 | B31: 0 | C31: 4 | D31: 12 | E31: 12 | F31: 0.01046927302 | G31: =E31/Inputs!$B$1 -> 0.012 | H31: =D31/Inputs!$B$1 -> 0.012 | I31: =C31/Inputs!$B$1 -> 0.004 | J31: =B31/Inputs!$B$1 -> 0 | Q31: 0.005039989907 | R31: 0.0296962714 | S31: 0.03244121004 | T31: 0.01846762601 | V31: -0.0004166543881 | W31: -3.516733783 | X31: -0.01412988702
A32: 0.12 | B32: 0 | C32: 2 | D32: 7 | E32: 7 | F32: 0.008542567524 | G32: =E32/Inputs!$B$1 -> 0.007 | H32: =D32/Inputs!$B$1 -> 0.007 | I32: =C32/Inputs!$B$1 -> 0.002 | J32: =B32/Inputs!$B$1 -> 0 | Q32: 0.005161659126 | R32: 0.02927961702 | S32: 0.03244121004 | T32: 0.01489166146 | V32: 8.164231014e-05 | W32: -3.53086367 | X32: 0.002784486453
A33: 0.125 | B33: 0 | C33: 2 | D33: 7 | E33: 16 | F33: 0.006967760032 | G33: =E33/Inputs!$B$1 -> 0.016 | H33: =D33/Inputs!$B$1 -> 0.007 | I33: =C33/Inputs!$B$1 -> 0.002 | J33: =B33/Inputs!$B$1 -> 0 | Q33: 0.005278674354 | R33: 0.02936125933 | S33: 0.03244121004 | T33: 0.00202271202 | V33: -0.0005325394875 | W33: -3.528079184 | X33: -0.01830398853
A34: 0.13 | B34: 0 | C34: 1 | D34: 6 | E34: 4 | F34: 0.005683153398 | G34: =E34/Inputs!$B$1 -> 0.004 | H34: =D34/Inputs!$B$1 -> 0.006 | I34: =C34/Inputs!$B$1 -> 0.001 | J34: =B34/Inputs!$B$1 -> 0 | Q34: 0.005391196126 | R34: 0.02882871984 | S34: 0.03244121004 | T34: 0.01906576297 | V34: -0.0003388832265 | W34: -3.546383172 | X34: -0.0118246933
A35: 0.135 | B35: 0 | C35: 1 | D35: 5 | E35: 8 | F35: 0.004636676545 | G35: =E35/Inputs!$B$1 -> 0.008 | H35: =D35/Inputs!$B$1 -> 0.005 | I35: =C35/Inputs!$B$1 -> 0.001 | J35: =B35/Inputs!$B$1 -> 0 | Q35: 0.005499385632 | R35: 0.02848983661 | S35: 0.03244121004 | T35: 0.01258646773 | V35: -9.144642186e-06 | W35: -3.558207865 | X35: -0.0003210306273
A36: 0.14 | B36: 0 | C36: 1 | D36: 3 | E36: 2 | F36: 0.003784877588 | G36: =E36/Inputs!$B$1 -> 0.002 | H36: =D36/Inputs!$B$1 -> 0.003 | I36: =C36/Inputs!$B$1 -> 0.001 | J36: =B36/Inputs!$B$1 -> 0 | Q36: 0.005603404261 | R36: 0.02848069197 | S36: 0.03244121004 | T36: 0.001082805061 | V36: 0.0001975233303 | W36: -3.558528896 | X36: 0.006911402824
A37: 0.145 | B37: 0 | C37: 2 | D37: 3 | E37: 2 | F37: 0.003091802259 | G37: =E37/Inputs!$B$1 -> 0.002 | H37: =D37/Inputs!$B$1 -> 0.003 | I37: =C37/Inputs!$B$1 -> 0.002 | J37: =B37/Inputs!$B$1 -> 0 | Q37: 0.005703413172 | R37: 0.0286782153 | S37: 0.03244121004 | T37: 0.00614962839 | V37: -0.0006595213067 | W37: -3.551617493 | X37: -0.02326585574
A38: 0.15 | B38: 0 | C38: 0 | D38: 3 | E38: 2 | F38: 0.002527888226 | G38: =E38/Inputs!$B$1 -> 0.002 | H38: =D38/Inputs!$B$1 -> 0.003 | I38: =C38/Inputs!$B$1 -> 0 | J38: =B38/Inputs!$B$1 -> 0 | Q38: 0.005799572885 | R38: 0.02801869399 | S38: 0.03244121004 | T38: 0.02402763017 | V38: -0.0001509167744 | W38: -3.574883349 | X38: -0.005400847036
A39: 0.155 | B39: 0 | C39: 0 | D39: 1 | E39: 4 | F39: 0.00206894396 | G39: =E39/Inputs!$B$1 -> 0.004 | H39: =D39/Inputs!$B$1 -> 0.001 | I39: =C39/Inputs!$B$1 -> 0 | J39: =B39/Inputs!$B$1 -> 0 | Q39: 0.005892042904 | R39: 0.02786777722 | S39: 0.03244121004 | T39: 0.00616262147 | V39: -0.0005772300677 | W39: -3.580284196 | X39: -0.02093069895
A40: 0.16 | B40: 0 | C40: 1 | D40: 3 | E40: 1 | F40: 0.001695242756 | G40: =E40/Inputs!$B$1 -> 0.001 | H40: =D40/Inputs!$B$1 -> 0.003 | I40: =C40/Inputs!$B$1 -> 0.001 | J40: =B40/Inputs!$B$1 -> 0 | Q40: 0.005980981369 | R40: 0.02729054715 | S40: 0.03244121004 | T40: 0.02169247338 | V40: 0.000383468335 | W40: -3.601214895 | X40: 0.01395351981
A41: 0.165 | B41: 0 | C41: 0 | D41: 2 | E41: 0 | F41: 0.001390740109 | G41: =E41/Inputs!$B$1 -> 0 | H41: =D41/Inputs!$B$1 -> 0.002 | I41: =C41/Inputs!$B$1 -> 0 | J41: =B41/Inputs!$B$1 -> 0 | Q41: 0.006066544728 | R41: 0.02767401549 | S41: 0.03244121004 | T41: 0.01319174538 | V41: -0.0001280092695 | W41: -3.587261375 | X41: -0.004636343663
A42: 0.17 | B42: 0 | C42: 0 | D42: 1 | E42: 2 | F42: 0.001142410164 | G42: =E42/Inputs!$B$1 -> 0.002 | H42: =D42/Inputs!$B$1 -> 0.001 | I42: =C42/Inputs!$B$1 -> 0 | J42: =B42/Inputs!$B$1 -> 0 | Q42: 0.006148887435 | R42: 0.02754600622 | S42: 0.03244121004 | T42: 0.005398118096 | V42: 0.0003236199854 | W42: -3.591897719 | X42: 0.01167986903
A43: 0.175 | B43: 0 | C43: 0 | D43: 1 | E43: 1 | F43: 0.0009396906741 | G43: =E43/Inputs!$B$1 -> 0.001 | H43: =D43/Inputs!$B$1 -> 0.001 | I43: =C43/Inputs!$B$1 -> 0 | J43: =B43/Inputs!$B$1 -> 0 | Q43: 0.006228161682 | R43: 0.0278696262 | S43: 0.03244121004 | T43: 0.01091809459 | V43: 0.0002946449903 | W43: -3.58021785 | X43: 0.01051676645
A44: 0.18 | B44: 0 | C44: 0 | D44: 2 | E44: 2 | F44: 0.0007740233288 | G44: =E44/Inputs!$B$1 -> 0.002 | H44: =D44/Inputs!$B$1 -> 0.002 | I44: =C44/Inputs!$B$1 -> 0 | J44: =B44/Inputs!$B$1 -> 0 | Q44: 0.006304517142 | R44: 0.02816427119 | S44: 0.03244121004 | T44: 0.009754992012 | V44: -0.0001982569996 | W44: -3.569701083 | X44: -0.007064201535
A45: 0.185 | B45: 0 | C45: 0 | D45: 1 | E45: 1 | F45: 0.0006384758942 | G45: =E45/Inputs!$B$1 -> 0.001 | H45: =D45/Inputs!$B$1 -> 0.001 | I45: =C45/Inputs!$B$1 -> 0 | J45: =B45/Inputs!$B$1 -> 0 | Q45: 0.006378100747 | R45: 0.02796601419 | S45: 0.03244121004 | T45: 0.007825975968 | V45: 0.0005860755712 | W45: -3.576765285 | X45: 0.02074013594
A46: 0.19 | B46: 0 | C46: 0 | D46: 0 | E46: 0 | F46: 0.0005274333379 | G46: =E46/Inputs!$B$1 -> 0 | H46: =D46/Inputs!$B$1 -> 0 | I46: =C46/Inputs!$B$1 -> 0 | J46: =B46/Inputs!$B$1 -> 0 | Q46: 0.006449056484 | R46: 0.02855208976 | S46: 0.03244121004 | T46: 0.01997836151 | V46: -0.00023239477 | W46: -3.556025149 | X46: -0.008172631278 | Y46: -0.008172631278
A47: 0.195 | B47: 0 | C47: 1 | D47: 1 | E47: 0 | F47: 0.0004363464022 | G47: =E47/Inputs!$B$1 -> 0 | H47: =D47/Inputs!$B$1 -> 0.001 | I47: =C47/Inputs!$B$1 -> 0.001 | J47: =B47/Inputs!$B$1 -> 0 | Q47: 0.006517525213 | R47: 0.02831969499 | S47: 0.03244121004 | T47: 0.008934405711 | V47: 0.0008124263102 | W47: -3.56419778 | X47: 0.02828389151
A48: 0.2 | B48: 0 | C48: 0 | D48: 0 | E48: 1 | F48: 0.0003615275792 | G48: =E48/Inputs!$B$1 -> 0.001 | H48: =D48/Inputs!$B$1 -> 0 | I48: =C48/Inputs!$B$1 -> 0 | J48: =B48/Inputs!$B$1 -> 0 | Q48: 0.006583644505 | R48: 0.02913212131 | S48: 0.03244121004 | T48: 0.02752211708 | V48: -0.0006430722385 | W48: -3.535913889 | X48: -0.02232162017
A49: 0.205 | B49: 0 | C49: 0 | D49: 0 | E49: 0 | F49: 0.0002999859277 | G49: =E49/Inputs!$B$1 -> 0 | H49: =D49/Inputs!$B$1 -> 0 | I49: =C49/Inputs!$B$1 -> 0 | J49: =B49/Inputs!$B$1 -> 0 | Q49: 0.006647548504 | R49: 0.02848904907 | S49: 0.03244121004 | T49: 0.0230833946 | V49: 0.0001029302468 | W49: -3.558235509 | X49: 0.003606464749
A50: 0.21 | B50: 0 | C50: 0 | D50: 0 | E50: 0 | F50: 0.0002492935515 | G50: =E50/Inputs!$B$1 -> 0 | H50: =D50/Inputs!$B$1 -> 0 | I50: =C50/Inputs!$B$1 -> 0 | J50: =B50/Inputs!$B$1 -> 0 | Q50: 0.006709367805 | R50: 0.02859197931 | S50: 0.03244121004 | T50: 0.002844690315 | V50: -0.0006085255422 | W50: -3.554629044 | X50: -0.02151283615 | Y50: -0.02151283615
A51: 0.215 | B51: 0 | C51: 0 | D51: 0 | E51: 0 | F51: 0.0002074777868 | G51: =E51/Inputs!$B$1 -> 0 | H51: =D51/Inputs!$B$1 -> 0 | I51: =C51/Inputs!$B$1 -> 0 | J51: =B51/Inputs!$B$1 -> 0 | Q51: 0.006769229348 | R51: 0.02798345377 | S51: 0.03244121004 | T51: 0.02227461058 | V51: -0.000185782181 | W51: -3.57614188 | X51: -0.006661137322
A52: 0.22 | B52: 0 | C52: 0 | D52: 0 | E52: 0 | F52: 0.0001729342033 | G52: =E52/Inputs!$B$1 -> 0 | H52: =D52/Inputs!$B$1 -> 0 | I52: =C52/Inputs!$B$1 -> 0 | J52: =B52/Inputs!$B$1 -> 0 | Q52: 0.006827256338 | R52: 0.02779767159 | S52: 0.03244121004 | T52: 0.007422911755 | V52: -0.000346548664 | W52: -3.582803018 | X52: -0.01254518626
A53: 0.225 | B53: 0 | C53: 0 | D53: 0 | E53: 0 | F53: 0.0001443564194 | G53: =E53/Inputs!$B$1 -> 0 | H53: =D53/Inputs!$B$1 -> 0 | I53: =C53/Inputs!$B$1 -> 0 | J53: =B53/Inputs!$B$1 -> 0 | Q53: 0.00688356817 | R53: 0.02745112293 | S53: 0.03244121004 | T53: 0.0133069607 | V53: 6.934783116e-05 | W53: -3.595348204 | X53: 0.002523043751
A54: 0.23 | B54: 0 | C54: 0 | D54: 0 | E54: 0 | F54: 0.0001206794832 | G54: =E54/Inputs!$B$1 -> 0 | H54: =D54/Inputs!$B$1 -> 0 | I54: =C54/Inputs!$B$1 -> 0 | J54: =B54/Inputs!$B$1 -> 0 | Q54: 0.006938280375 | R54: 0.02752047076 | S54: 0.03244121004 | T54: 0.001761269317 | V54: 1.202793666e-05 | W54: -3.59282516 | X54: 0.0004369586952
A55: 0.235 | B55: 0 | C55: 0 | D55: 0 | E55: 0 | F55: 0.0001010341835 | G55: =E55/Inputs!$B$1 -> 0 | H55: =D55/Inputs!$B$1 -> 0 | I55: =C55/Inputs!$B$1 -> 0 | J55: =B55/Inputs!$B$1 -> 0 | Q55: 0.006991504582 | R55: 0.02753249869 | S55: 0.03244121004 | T55: 0.0003248157381 | V55: 0.0005372429146 | W55: -3.592388201 | X55: 0.01932510746
A56: 0.24 | B56: 0 | C56: 0 | D56: 0 | E56: 1 | F56: 8.47101656e-05 | G56: =E56/Inputs!$B$1 -> 0.001 | H56: =D56/Inputs!$B$1 -> 0 | I56: =C56/Inputs!$B$1 -> 0 | J56: =B56/Inputs!$B$1 -> 0 | Q56: 0.007043348488 | R56: 0.02806974161 | S56: 0.03244121004 | T56: 0.01856333303 | V56: -0.0001442819373 | W56: -3.573063094 | X56: -0.005153379335
A57: 0.245 | B57: 0 | C57: 0 | D57: 0 | E57: 0 | F57: 7.112613573e-05 | G57: =E57/Inputs!$B$1 -> 0 | H57: =D57/Inputs!$B$1 -> 0 | I57: =C57/Inputs!$B$1 -> 0 | J57: =B57/Inputs!$B$1 -> 0 | Q57: 0.007093915848 | R57: 0.02792545967 | S57: 0.03244121004 | T57: 0.005915153768 | V57: 0.0003672863777 | W57: -3.578216473 | X57: 0.01306664269
A58: 0.25 | B58: 0 | C58: 0 | D58: 0 | E58: 0 | F58: =(1-NORMDIST(LN(A58-0.0025),$G$2,$G$3,TRUE)) -> 0.0003947327667 | G58: =E58/Inputs!$B$1 -> 0 | H58: =D58/Inputs!$B$1 -> 0 | I58: =C58/Inputs!$B$1 -> 0 | J58: =B58/Inputs!$B$1 -> 0 | Q58: 0.007143306465 | R58: 0.02829274605 | S58: 0.03244121004 | T58: 0.01230486826 | V58: 0.0001877350216 | W58: -3.565149831 | X58: 0.006613529488 | Y58: 0.006613529488
Q59: 0.007191616206 | R59: 0.02848048107 | S59: 0.03244121004 | T59: 0.005851755055 | V59: 0.0001084421997 | W59: -3.558536301 | X59: 0.003800366641
Q60: 0.007238937013 | R60: 0.02858892327 | S60: 0.03244121004 | T60: 0.003038592208 | V60: 0.0003649593679 | W60: -3.554735934 | X60: 0.01268496577
Q61: 0.007285356934 | R61: 0.02895388264 | S61: 0.03244121004 | T61: 0.01192319134 | V61: -0.0004725810861 | W61: -3.542050969 | X61: -0.01645652427
Q62: 0.007330960154 | R62: 0.02848130155 | S62: 0.03244121004 | T62: 0.01721829871 | V62: -6.055630402e-05 | W62: -3.558507493 | X62: -0.002128441077 | Y62: -0.002128441077
Q63: 0.007375827045 | R63: 0.02842074525 | S63: 0.03244121004 | T63: 0.00289021551 | V63: 0.0003987029301 | W63: -3.560635934 | X63: 0.01393109822
Q64: 0.007420034207 | R64: 0.02881944818 | S64: 0.03244121004 | T64: 0.01316932378 | V64: 0.0001174783079 | W64: -3.546704836 | X64: 0.004068069389 | Y64: 0.004068069389
Q65: 0.007463654532 | R65: 0.02893692649 | S65: 0.0315206839 | T65: 0.003306294956 | V65: -0.0004907188949 | W65: -3.542636766 | X65: -0.01710366175 | Y65: -0.01710366175
Q66: 0.007506757261 | R66: 0.02844620759 | S66: 0.02914838854 | T66: 0.01786543618 | V66: 0.0001947941388 | W66: -3.559740428 | X66: 0.006824467236 | Y66: 0.006824467236
Q67: 0.007549408051 | R67: 0.02864100173 | S67: 0.02914838854 | T67: 0.006062692802 | V67: =(R68-R67) -> 0.0002354805202 | W67: =LN(R67) -> -3.552915961 | X67: =(W68-W67) -> 0.008188182777
Q68: 0.00759166905 | R68: 0.02887648225 | S68: 0.02914838854 | T68: 0.007426408344 | V68: -0.0001672590907 | W68: -3.544727778 | X68: -0.005809065285
Q69: 0.00763359897 | R69: 0.02870922316 | S69: 0.02914838854 | T69: 0.006570839718 | V69: 0.0002513080058 | W69: -3.550536843 | X69: 0.008715473112 | Y69: 0.008715473112
Q70: 0.007675253166 | R70: 0.02896053117 | S70: 0.02914838854 | T70: 0.007953698678 | V70: 0.0003929221835 | W70: -3.54182137 | X70: 0.01347629161
Q71: 0.007716683717 | R71: 0.02935345335 | S71: 0.02914838854 | T71: 0.01271451717 | V71: 0.0008200898155 | W71: -3.528345079 | X71: 0.02755528596
Q72: 0.007757939512 | R72: 0.03017354316 | S72: 0.02914838854 | T72: 0.02679351153 | V72: 0.0003239912668 | W72: -3.500789793 | X72: 0.01068035576
Q73: 0.007799066338 | R73: 0.03049753443 | S73: 0.02914838854 | T73: 0.00991858133 | V73: -0.0001327604095 | W73: -3.490109437 | X73: -0.004362654767
Q74: 0.007840106965 | R74: 0.03036477402 | S74: 0.02914838854 | T74: 0.0051244292 | V74: 5.997034906e-05 | W74: -3.494472092 | X74: 0.001973049634
Q75: 0.007881101238 | R75: 0.03042474437 | S75: 0.02914838854 | T75: 0.001211275201 | V75: 7.125914551e-05 | W75: -3.492499042 | X75: 0.002339405883
Q76: 0.007922086167 | R76: 0.03049600352 | S76: 0.02914838854 | T76: 0.00157763145 | V76: 3.546310796e-05 | W76: -3.490159636 | X76: 0.001162201608
Q77: 0.007963096019 | R77: 0.03053146662 | S77: 0.02914838854 | T77: 0.0004004271743 | V77: 0.0001427577861 | W77: -3.488997435 | X77: 0.0046648618
Q78: 0.00800416241 | R78: 0.03067422441 | S78: 0.02914838854 | T78: 0.003903087366 | V78: -0.0006339251983 | W78: -3.484332573 | X78: -0.02088291888
Q79: 0.008045314397 | R79: 0.03004029921 | S79: 0.02914838854 | T79: 0.02164469331 | V79: -0.0003465923431 | W79: -3.505215492 | X79: -0.01160465388 | Y79: -0.01160465388
Q80: 0.00808657857 | R80: 0.02969370687 | S80: 0.02914838854 | T80: 0.01236642831 | V80: -0.0001601960392 | W80: -3.516820146 | X80: -0.005409554461
Q81: 0.008127979144 | R81: 0.02953351083 | S81: 0.02914838854 | T81: 0.006171328895 | V81: 0.0006254813547 | W81: -3.5222297 | X81: 0.02095754798
Q82: 0.008169538051 | R82: 0.03015899218 | S82: 0.02914838854 | T82: 0.02019577355 | V82: -0.0003932395838 | W82: -3.501272152 | X82: -0.01312463591
Q83: 0.008211275028 | R83: 0.0297657526 | S83: 0.02914838854 | T83: 0.01388641034 | V83: -0.0004082987011 | W83: -3.514396788 | X83: -0.0138120111
Q84: 0.008253207711 | R84: 0.0293574539 | S84: 0.02914838854 | T84: 0.01457378553 | V84: -1.528652078e-05 | W84: -3.528208799 | X84: -0.000520838833
Q85: 0.008295351719 | R85: 0.02934216738 | S85: 0.02914838854 | T85: 0.001282613266 | V85: 5.93717102e-05 | W85: -3.528729638 | X85: 0.002021381829 | Y85: 0.002021381829
Q86: 0.008337720743 | R86: 0.02940153909 | S86: 0.02914838854 | T86: 0.001259607396 | V86: 0.0001160647267 | W86: -3.526708256 | X86: 0.003939801941
Q87: 0.008380326634 | R87: 0.02951760382 | S87: 0.02914838854 | T87: 0.003178027508 | V87: -5.52695008e-05 | W87: -3.522768454 | X87: -0.001874180229
Q88: 0.008423179485 | R88: 0.02946233431 | S88: 0.02914838854 | T88: 0.002635954663 | V88: 0.0005950651541 | W88: -3.524642634 | X88: 0.01999622458
Q89: 0.008466287716 | R89: 0.03005739947 | S89: 0.02914838854 | T89: 0.01923445015 | V89: -0.0003398966586 | W89: -3.50464641 | X89: -0.0113726768
Q90: 0.008509658154 | R90: 0.02971750281 | S90: 0.02914838854 | T90: 0.01213445123 | V90: -0.0006282241361 | W90: -3.516019087 | X90: -0.02136651659
Q91: 0.008553296112 | R91: 0.02908927867 | S91: 0.02914838854 | T91: 0.02212829102 | V91: 0.0003121925917 | W91: -3.537385603 | X91: 0.0106750403
Q92: 0.008597205471 | R92: 0.02940147127 | S92: 0.02914838854 | T92: 0.009913265868 | V92: =(R93-R92) -> -7.883563124e-05 | W92: -3.526710563 | X92: -0.00268495113
Q93: 0.00864138875 | R93: 0.02932263563 | S93: 0.02914838854 | T93: 0.003446725564 | V93: -2.943503632e-05 | W93: -3.529395514 | X93: -0.001004337418
Q94: 0.008685847186 | R94: 0.0292932006 | S94: 0.02914838854 | T94: 0.001766111851 | V94: 0.0004545866676 | W94: -3.530399851 | X94: 0.01539932401
Q95: 0.008730580801 | R95: 0.02974778727 | S95: 0.02914838854 | T95: 0.01463754957 | V95: -9.512032675e-05 | W95: -3.515000527 | X95: -0.003202682852
Q96: 0.008775588478 | R96: 0.02965266694 | S96: 0.02914838854 | T96: 0.003964457286 | V96: 8.038427873e-07 | W96: -3.51820321 | X96: 2.710824944e-05
Q97: 0.008820868023 | R97: 0.02965347078 | S97: 0.02914838854 | T97: 0.0007346661839 | V97: 0.0003067633459 | W97: -3.518176102 | X97: 0.01029179629
Q98: 0.008866416236 | R98: 0.02996023413 | S98: 0.02914838854 | T98: 0.00953002186 | V98: 0.0002208383438 | W98: -3.507884306 | X98: 0.00734401525
Q99: 0.008912228972 | R99: 0.03018107247 | S99: 0.02914838854 | T99: 0.006582240816 | V99: -0.0001493536736 | W99: -3.50054029 | X99: -0.00496087216
Q100: 0.008958301206 | R100: 0.0300317188 | S100: 0.02914838854 | T100: 0.005722646593 | V100: 0.0001365675449 | W100: -3.505501163 | X100: 0.004537135133
Q101: 0.009004627091 | R101: 0.03016828634 | S101: 0.02914838854 | T101: 0.0037753607 | V101: -0.0005292022995 | W101: -3.500964027 | X101: -0.01769735429 | Y101: -0.01769735429
Q102: 0.009051200017 | R102: 0.02963908404 | S102: 0.02914838854 | T102: 0.01845912872 | V102: -0.0005079102956 | W102: -3.518661382 | X102: -0.01728503363 | Y102: -0.01728503363
Q103: 0.009098012666 | R103: 0.02913117375 | S103: 0.02914838854 | T103: 0.01804680807 | V103: 0.0001592715685 | W103: -3.535946415 | X103: 0.005452500824 | Y103: 0.005452500824
Q104: 0.009145057069 | R104: 0.02929044532 | S104: 0.02914838854 | T104: 0.004690726391 | V104: 0.000364400792 | W104: -3.530493915 | X104: 0.01236419145
Q105: 0.009192324654 | R105: 0.02965484611 | S105: 0.02914838854 | T105: 0.01160241702 | V105: -0.000741307616 | W105: -3.518129723 | X105: -0.02531561051
Q106: 0.009239806298 | R106: 0.02891353849 | S106: 0.02914838854 | T106: 0.02607738494 | V106: 0.0001707578967 | W106: -3.543445334 | X106: 0.005888440162
Q107: 0.009287492377 | R107: 0.02908429639 | S107: 0.02914838854 | T107: 0.005126665729 | V107: -0.000856210278 | W107: -3.537556893 | X107: -0.02988094184
Q108: 0.009335372808 | R108: 0.02822808611 | S108: 0.02914838854 | T108: 0.03064271627 | V108: 0.0001519281038 | W108: -3.567437835 | X108: 0.005367728918 | Y108: 0.005367728918
Q109: 0.009383437098 | R109: 0.02838001421 | S109: 0.02914838854 | T109: 0.004605954484 | V109: -0.0005334996866 | W109: -3.562070106 | X109: -0.01897736565
Q110: 0.009431674384 | R110: 0.02784651453 | S110: 0.02914838854 | T110: 0.01973914009 | V110: -3.953479721e-05 | W110: -3.581047472 | X110: -0.001420748307
Q111: 0.009480073471 | R111: 0.02780697973 | S111: 0.02914838854 | T111: 0.00218252274 | V111: 0.0006068452345 | W111: -3.58246822 | X111: 0.02158876264
Q112: 0.009528622878 | R112: 0.02841382497 | S112: 0.02914838854 | T112: 0.0208269882 | V112: -4.25399439e-05 | W112: -3.560879458 | X112: -0.0014982784
Q113: 0.009577310868 | R113: 0.02837128502 | S113: 0.02914838854 | T113: 0.002260052833 | V113: 0.0001818176018 | W113: -3.562377736 | X113: 0.006388060639
Q114: 0.009626125487 | R114: 0.02855310262 | S114: 0.02914838854 | T114: 0.005626286205 | V114: 5.712401011e-05 | W114: -3.555989675 | X114: 0.001998624988
Q115: 0.009675054598 | R115: 0.02861022663 | S115: 0.02914838854 | T115: 0.001236850555 | V115: 0.000512120243 | W115: -3.55399105 | X115: 0.01774158486
Q116: 0.00972408591 | R116: 0.02912234688 | S116: 0.02914838854 | T116: 0.01697981042 | V116: 8.277538568e-05 | W116: -3.536249466 | X116: 0.00283830046
Q117: 0.009773207013 | R117: 0.02920512226 | S117: 0.02914838854 | T117: 0.002076526027 | V117: 0.001100559239 | W117: -3.533411165 | X117: 0.03699108939
Q118: 0.009822405403 | R118: 0.0303056815 | S118: 0.02914838854 | T118: 0.03622931495 | V118: 0.00021463435 | W118: -3.496420076 | X118: 0.007057352126
Q119: 0.009871668512 | R119: 0.03052031585 | S119: 0.02914838854 | T119: 0.006295577693 | V119: 0.000541965292 | W119: -3.489362724 | X119: 0.01760170279
Q120: 0.009920983733 | R120: 0.03106228114 | S120: 0.02914838854 | T120: 0.01683992835 | V120: -0.001329929381 | W120: -3.471761021 | X120: -0.04375852023
Q121: 0.009970338444 | R121: 0.02973235176 | S121: 0.02914838854 | T121: 0.04452029467 | V121: 0.0006389211297 | W121: -3.515519541 | X121: 0.02126145309
Q122: 0.01001972003 | R122: 0.03037127289 | S122: 0.02914838854 | T122: 0.02049967866 | V122: -0.0004341912729 | W122: -3.494258088 | X122: -0.01439929106
Q123: 0.01006911591 | R123: 0.02993708162 | S123: 0.02914838854 | T123: 0.01516106549 | V123: -8.305346789e-06 | W123: -3.508657379 | X123: -0.0002774652242
Q124: 0.01011851356 | R124: 0.02992877627 | S124: 0.02914838854 | T124: 0.001039239658 | V124: 0.0003219204144 | W124: -3.508934844 | X124: 0.01069878047
Q125: 0.01016790051 | R125: 0.03025069669 | S125: 0.02914838854 | T125: 0.009937006039 | V125: 0.0005940815701 | W125: -3.498236064 | X125: 0.01944825851
Q126: 0.01021726439 | R126: 0.03084477826 | S126: 0.02914838854 | T126: 0.01868648407 | V126: 0.0006865933386 | W126: -3.478787805 | X126: 0.02201550021
Q127: 0.01026659293 | R127: 0.0315313716 | S127: 0.02914838854 | T127: 0.02125372577 | V127: -0.0005292815803 | W127: -3.456772305 | X127: -0.01692835184 | Y127: -0.01692835184
Q128: 0.01031587399 | R128: 0.03100209001 | S128: 0.02914838854 | T128: 0.01769012627 | V128: 8.671345341e-05 | W128: -3.473700657 | X128: 0.002793115219
Q129: 0.01036509557 | R129: 0.03108880347 | S129: 0.02914838854 | T129: 0.002031340786 | V129: -2.590423675e-05 | W129: -3.470907542 | X129: -0.0008335809682
Q130: 0.01041424579 | R130: 0.03106289923 | S130: 0.02914838854 | T130: 0.001595355402 | V130: -0.0007638165157 | W130: -3.471741123 | X130: -0.02489671765
Q131: 0.01046331298 | R131: 0.03029908272 | S131: 0.02914838854 | T131: 0.02565849208 | V131: =(R132-R131) -> -0.0006011420484 | W131: =LN(R131) -> -3.49663784 | X131: =(W132-W131) -> -0.02003973305
Q132: 0.01051228559 | R132: 0.02969794067 | S132: 0.02914838854 | T132: 0.02080150748 | V132: 0.0002449321354 | W132: -3.516677573 | X132: 0.008213620778
Q133: 0.0105611523 | R133: 0.0299428728 | S133: 0.02914838854 | T133: 0.007451846344 | V133: 0.0004164429563 | W133: -3.508463953 | X133: 0.01381208831
Q134: 0.01060990196 | R134: 0.03035931576 | S134: 0.02914838854 | T134: 0.01305031388 | V134: -0.0003605447571 | W134: -3.494651864 | X134: -0.01194700047
Q135: 0.01065852364 | R135: 0.029998771 | S135: 0.02914838854 | T135: 0.01270877491 | V135: -0.0001487419942 | W135: -3.506598865 | X135: -0.004970602601
Q136: 0.01070700661 | R136: 0.02985002901 | S136: 0.02914838854 | T136: 0.005732377034 | V136: -0.0004265265932 | W136: -3.511569467 | X136: -0.01439205477
Q137: 0.01075534036 | R137: 0.02942350241 | S137: 0.02914838854 | T137: 0.01515382921 | V137: 0.0003148567001 | W137: -3.525961522 | X137: 0.0106440083
Q138: 0.01080351461 | R138: 0.02973835911 | S138: 0.02914838854 | T138: 0.009882233871 | V138: 0.0001990847702 | W138: -3.515317514 | X138: 0.006672235607
Q139: 0.01085151931 | R139: 0.02993744388 | S139: 0.02914838854 | T139: 0.005910461173 | V139: 0.0002108803028 | W139: -3.508645278 | X139: 0.007019338369
Q140: 0.01089934466 | R140: 0.03014832419 | S140: 0.02914838854 | T140: 0.006257563936 | V140: 0.0001722414071 | W140: -3.50162594 | X140: 0.00569687565
Q141: 0.01094698108 | R141: 0.03032056559 | S141: 0.02914838854 | T141: 0.004935101216 | V141: 0.0002906702626 | W141: -3.495929064 | X141: 0.009540911664 | Y141: 0.009540911664
Q142: 0.01099441925 | R142: 0.03061123586 | S142: 0.02914838854 | T142: 0.008779137231 | V142: -4.477857129e-05 | W142: -3.486388153 | X142: -0.001463885838
Q143: 0.01104165011 | R143: 0.03056645729 | S143: 0.02914838854 | T143: 0.002225660271 | V143: 9.974925539e-05 | W143: -3.487852038 | X143: 0.00325804358 | Y143: 0.00325804358
Q144: 0.01108866482 | R144: 0.03066620654 | S144: 0.02914838854 | T144: 0.002496269146 | V144: 0.0002652868507 | W144: -3.484593995 | X144: 0.008613584313
Q145: 0.01113545484 | R145: 0.03093149339 | S145: 0.02914838854 | T145: 0.00785180988 | V145: -0.0007706869501 | W145: -3.47598041 | X145: -0.02523158692
Q146: 0.01118201184 | R146: 0.03016080644 | S146: 0.02914838854 | T146: 0.02599336135 | V146: 7.271772293e-05 | W146: -3.501211997 | X146: 0.002408098818
Q147: 0.01122832779 | R147: 0.03023352416 | S147: 0.02914838854 | T147: 0.001646324384 | V147: 5.610656392e-05 | W147: -3.498803899 | X147: 0.001854053382
Q148: 0.01127439488 | R148: 0.03028963073 | S148: 0.02914838854 | T148: 0.001092278948 | V148: 0.0004614284081 | W148: -3.496949845 | X148: 0.01511900336
Q149: 0.01132020559 | R149: 0.03075105914 | S149: 0.02914838854 | T149: 0.01435722893 | V149: 0.0001823833469 | W149: -3.481830842 | X149: 0.005913442553
Q150: 0.01136575266 | R150: 0.03093344248 | S150: 0.02914838854 | T150: 0.005151668119 | V150: 0.0002478562869 | W150: -3.475917399 | X150: 0.00798063704
Q151: 0.01141102906 | R151: 0.03118129877 | S151: 0.02914838854 | T151: 0.007218862607 | V151: 5.629822058e-05 | W151: -3.467936762 | X151: 0.00180388439 | Y151: 0.00180388439
Q152: 0.01145602805 | R152: 0.03123759699 | S152: 0.02914838854 | T152: 0.001042109956 | V152: -0.0008463725174 | W152: -3.466132878 | X152: -0.027468503
Q153: 0.01150074314 | R153: 0.03039122447 | S153: 0.02914838854 | T153: 0.02823027743 | V153: 0.0001068615809 | W153: -3.493601381 | X153: 0.003510031226
Q154: 0.01154516807 | R154: 0.03049808605 | S154: 0.02914838854 | T154: 0.002748256792 | V154: -0.0003893829945 | W154: -3.49009135 | X154: -0.01284966116
Q155: 0.01158929689 | R155: 0.03010870306 | S155: 0.02914838854 | T155: 0.0136114356 | V155: -0.0004512209846 | W155: -3.502941011 | X155: -0.015099828
Q156: 0.01163312384 | R156: 0.02965748208 | S156: 0.02914838854 | T156: 0.01586160244 | V156: 0.00036215325 | W156: -3.518040839 | X156: 0.01213723824 | Y156: 0.01213723824
Q157: 0.01167664346 | R157: 0.03001963533 | S157: 0.02914838854 | T157: 0.01137546381 | V157: 9.126788071e-05 | W157: -3.505903601 | X157: 0.003035660515
Q158: 0.01171985052 | R158: 0.03011090321 | S158: 0.02914838854 | T158: 0.002273886082 | V158: 0.0007922797454 | W158: -3.50286794 | X158: 0.02597184781
Q159: 0.01176274003 | R159: 0.03090318295 | S159: 0.02914838854 | T159: 0.02521007338 | V159: 0.0003466737814 | W159: -3.476896092 | X159: 0.01115560489 | Y159: 0.01115560489
Q160: 0.01180530725 | R160: 0.03124985673 | S160: 0.02914838854 | T160: 0.01039383045 | V160: 0.0001175560995 | W160: -3.465740487 | X160: 0.00375475451
Q161: 0.01184754768 | R161: 0.03136741283 | S161: 0.02914838854 | T161: 0.002992980076 | V161: 0.0005042973174 | W161: -3.461985733 | X161: 0.01594924103 | Y161: 0.01594924103
Q162: 0.01188945707 | R162: 0.03187171015 | S162: 0.02914838854 | T162: 0.0151874666 | V162: -0.0006821891656 | W162: -3.446036492 | X162: -0.02163661465
Q163: 0.01193103138 | R163: 0.03118952098 | S163: 0.02914838854 | T163: 0.02239838909 | V163: 0.0002857303649 | W163: -3.467673106 | X163: 0.009119393065
Q164: 0.01197226681 | R164: 0.03147525135 | S164: 0.02914838854 | T164: 0.008357618632 | V164: 0.0002760083405 | W164: -3.458553713 | X164: 0.008730834242
Q165: 0.0120131598 | R165: 0.03175125969 | S165: 0.02914838854 | T165: 0.007969059809 | V165: -2.067337158e-05 | W165: -3.449822879 | X165: -0.0006513160411
Q166: 0.012053707 | R166: 0.03173058632 | S166: 0.02914838854 | T166: 0.001413090475 | V166: -1.737450732e-05 | W166: -3.450474195 | X166: -0.0005477133547
Q167: 0.01209390528 | R167: 0.03171321181 | S167: 0.02914838854 | T167: 0.001309487788 | V167: -0.001076874582 | W167: -3.451021909 | X167: -0.03454657484
Q168: 0.01213375172 | R168: 0.03063633723 | S168: 0.02914838854 | T168: 0.03530834928 | V168: -0.0003980561232 | W168: -3.485568483 | X168: -0.01307808764
Q169: 0.01217324363 | R169: 0.03023828111 | S169: 0.02914838854 | T169: 0.01383986207 | V169: -7.657981555e-05 | W169: -3.498646571 | X169: -0.00253575758 | Y169: -0.00253575758
Q170: 0.01221237851 | R170: 0.03016170129 | S170: 0.02914838854 | T170: 0.003297532013 | V170: 0.0007540851439 | W170: -3.501182329 | X170: 0.0246939909
Q171: 0.01225115407 | R171: 0.03091578643 | S171: 0.02914838854 | T171: 0.02393221647 | V171: -0.0001806548051 | W171: -3.476488338 | X171: -0.005860588224
Q172: 0.01228956822 | R172: 0.03073513163 | S172: 0.02914838854 | T172: 0.006622362658 | V172: 0.0006765119822 | W172: -3.482348926 | X172: 0.02177228677
Q173: 0.01232761907 | R173: 0.03141164361 | S173: 0.02914838854 | T173: 0.02101051233 | V173: -0.0001128743805 | W173: -3.460576639 | X173: -0.003599864751
Q174: 0.01236530491 | R174: 0.03129876923 | S174: 0.02914838854 | T174: 0.004361639185 | V174: 0.0002957599717 | W174: -3.464176504 | X174: 0.009405204027
Q175: 0.01240262421 | R175: 0.0315945292 | S175: 0.02914838854 | T175: 0.008643429593 | V175: 0.000884037863 | W175: -3.4547713 | X175: 0.02759641778
Q176: 0.01243957565 | R176: 0.03247856707 | S176: 0.02914838854 | T176: 0.02683464334 | V176: 0.0002989779202 | W176: -3.427174882 | X176: 0.009163279967
Q177: 0.01247615806 | R177: 0.03277754499 | S177: 0.02914838854 | T177: 0.008401505534 | V177: 0.0002290991097 | W177: -3.418011602 | X177: 0.006965200578
Q178: 0.01251237045 | R178: 0.0330066441 | S178: 0.02914838854 | T178: 0.006203426145 | V178: 7.926041741e-05 | W178: -3.411046402 | X178: 0.002398468725
Q179: 0.01254821201 | R179: 0.03308590451 | S179: 0.02914838854 | T179: 0.001636694292 | V179: 0.0006907602013 | W179: -3.408647933 | X179: 0.02066282483
Q180: 0.01258368209 | R180: 0.03377666471 | S180: 0.02914838854 | T180: 0.0199010504 | V180: 0.0005311382679 | W180: -3.387985108 | X180: 0.0156026495
Q181: 0.01261878019 | R181: 0.03430780298 | S181: 0.02914838854 | T181: 0.01484087507 | V181: -0.000269361126 | W181: -3.372382459 | X181: -0.007882291741
Q182: 0.01265350597 | R182: 0.03403844186 | S182: 0.02914838854 | T182: 0.008644066174 | V182: 0.001335294574 | W182: -3.38026475 | X182: 0.03847910728
Q183: 0.01268785924 | R183: 0.03537373643 | S183: 0.02914838854 | T183: 0.03771733284 | V183: -0.000456638118 | W183: -3.341785643 | X183: -0.01299300382
Q184: 0.01272183998 | R184: 0.03491709831 | S184: 0.02914838854 | T184: 0.01375477825 | V184: -0.0002716428818 | W184: -3.354778647 | X184: -0.007810071596
Q185: 0.01275544827 | R185: 0.03464545543 | S185: 0.02914838854 | T185: 0.00857184603 | V185: -0.0003754756473 | W185: -3.362588718 | X185: -0.01089681467
Q186: 0.01278868437 | R186: 0.03426997978 | S186: 0.02914838854 | T186: 0.0116585891 | V186: -6.833464854e-05 | W186: -3.373485533 | X186: -0.001995999695 | Y186: -0.001995999695
Q187: 0.01282154865 | R187: 0.03420164513 | S187: 0.02914838854 | T187: 0.002757774128 | V187: 0.0003755113165 | W187: -3.375481533 | X187: 0.01091949959
Q188: 0.01285404162 | R188: 0.03457715645 | S188: 0.02914838854 | T188: 0.01015772515 | V188: 0.0004091460199 | W188: -3.364562033 | X188: 0.01176338107
Q189: 0.01288616391 | R189: 0.03498630247 | S189: 0.02914838854 | T189: 0.01100160664 | V189: -0.00041058794 | W189: -3.352798652 | X189: -0.01180508346
Q190: 0.01291791627 | R190: 0.03457571453 | S190: 0.04103136358 | T190: 0.0125668579 | V190: 0.0007180111958 | W190: -3.364603736 | X190: 0.02055366324
Q191: 0.01294929958 | R191: 0.03529372573 | S191: 0.04549082166 | T191: 0.0197918888 | V191: 0.000172294561 | W191: -3.344050072 | X191: 0.004869856414
Q192: 0.01298031483 | R192: 0.03546602029 | S192: 0.04549082166 | T192: 0.004108081981 | V192: -0.0005328652687 | W192: -3.339180216 | X192: -0.01513868431
Q193: 0.01301096311 | R193: 0.03493315502 | S193: 0.04549082166 | T193: 0.01590045875 | V193: 7.552585362e-06 | W193: -3.3543189 | X193: 0.0002161776982
Q194: 0.01304124562 | R194: 0.0349407076 | S194: 0.04549082166 | T194: 0.0005455967352 | V194: -0.0008857898238 | W194: -3.354102723 | X194: -0.02567810611 | Y194: -0.02567810611
Q195: 0.01307116368 | R195: 0.03405491778 | S195: 0.04549082166 | T195: 0.02643988054 | V195: =(R196-R195) -> -0.0003725873856 | W195: =LN(R195) -> -3.379780829 | X195: =(W196-W195) -> -0.01100107115
Q196: 0.01310071867 | R196: 0.03368233039 | S196: 0.04549082166 | T196: 0.01176284558 | V196: 0.0001652573704 | W196: -3.3907819 | X196: 0.004894355119
Q197: 0.01312991211 | R197: 0.03384758776 | S197: 0.04549082166 | T197: 0.004132580686 | V197: 0.0003609542675 | W197: -3.385887545 | X197: 0.01060764558
Q198: 0.01315874558 | R198: 0.03420854203 | S198: 0.04549082166 | T198: 0.009845871143 | V198: 0.0001043475272 | W198: -3.375279899 | X198: 0.003045692579
Q199: 0.01318722076 | R199: 0.03431288956 | S199: 0.04549082166 | T199: 0.002283918146 | V199: -0.0005624560838 | W199: -3.372234206 | X199: -0.01652781153
Q200: 0.0132153394 | R200: 0.03375043348 | S200: 0.04549082166 | T200: 0.01728958596 | V200: 0.001158361023 | W200: -3.388762018 | X200: 0.03374552787
... 512 more rows

Sheet Worst Scenario
A1: Scenario No. 1 | B1: Month | C1: Rates | D1: Targets
B2: 1 | C2: 0.0283 | D2: 0.062
B3: 2 | C3: 0.02835039111 | D3: 0.062
B4: 3 | C4: 0.02871888086 | D4: 0.062
B5: 4 | C5: 0.0286770231 | D5: 0.062
B6: 5 | C6: 0.02878165483 | D6: 0.062
B7: 6 | C7: 0.02928849342 | D7: 0.062
B8: 7 | C8: 0.03004924517 | D8: 0.062
B9: 8 | C9: 0.03050562694 | D9: 0.062
B10: 9 | C10: 0.03051491398 | D10: 0.062
B11: 10 | C11: 0.03039582056 | D11: 0.062
B12: 11 | C12: 0.03029557782 | D12: 0.062
B13: 12 | C13: 0.0301467077 | D13: 0.062
B14: 13 | C14: 0.03014031368 | D14: 0.062
B15: 14 | C15: 0.0313299106 | D15: 0.062
B16: 15 | C16: 0.03205047012 | D16: 0.062
B17: 16 | C17: 0.03334384176 | D17: 0.062
B18: 17 | C18: 0.03367606248 | D18: 0.062
B19: 18 | C19: 0.0332667105 | D19: 0.062
B20: 19 | C20: 0.03392947188 | D20: 0.062
B21: 20 | C21: 0.03359572189 | D21: 0.062
B22: 21 | C22: 0.03341531824 | D22: 0.062
B23: 22 | C23: 0.03332608842 | D23: 0.062
B24: 23 | C24: 0.03290691961 | D24: 0.062
B25: 24 | C25: 0.03323048432 | D25: 0.062
B26: 25 | C26: 0.03292004056 | D26: 0.06057305084
B27: 26 | C27: 0.03294466677 | D27: 0.04320725834
B28: 27 | C28: 0.03246221986 | D28: 0.04320725834
B29: 28 | C29: 0.03257683383 | D29: 0.04320725834
B30: 29 | C30: 0.03246551052 | D30: 0.04320725834
B31: 30 | C31: 0.03207169265 | D31: 0.04320725834
B32: 31 | C32: 0.03207874174 | D32: 0.04320725834
B33: 32 | C33: 0.03231751523 | D33: 0.04320725834
B34: 33 | C34: 0.03215386502 | D34: 0.04320725834
B35: 34 | C35: 0.03198394798 | D35: 0.04320725834
B36: 35 | C36: 0.03113007715 | D36: 0.04320725834
B37: 36 | C37: 0.0315675471 | D37: 0.04320725834
B38: 37 | C38: 0.03142824734 | D38: 0.04320725834
B39: 38 | C39: 0.03180274713 | D39: 0.04320725834
B40: 39 | C40: 0.03267501678 | D40: 0.04320725834
B41: 40 | C41: 0.0324403489 | D41: 0.04320725834
B42: 41 | C42: 0.03308148449 | D42: 0.04320725834
B43: 42 | C43: 0.03280505855 | D43: 0.04320725834
B44: 43 | C44: 0.03362517946 | D44: 0.04320725834
B45: 44 | C45: 0.03260659986 | D45: 0.04320725834
B46: 45 | C46: 0.03273722168 | D46: 0.04320725834
B47: 46 | C47: 0.03258468159 | D47: 0.04320725834
B48: 47 | C48: 0.03236333498 | D48: 0.04320725834
B49: 48 | C49: 0.03192804625 | D49: 0.04320725834
B50: 49 | C50: 0.03201542605 | D50: 0.04320725834
B51: 50 | C51: 0.03203535121 | D51: 0.04320725834
B52: 51 | C52: 0.03263144912 | D52: 0.04320725834
B53: 52 | C53: 0.03246307185 | D53: 0.04320725834
B54: 53 | C54: 0.03288531269 | D54: 0.04320725834
B55: 54 | C55: 0.03350101893 | D55: 0.04320725834
B56: 55 | C56: 0.03398462852 | D56: 0.04320725834
B57: 56 | C57: 0.03242837843 | D57: 0.04320725834
B58: 57 | C58: 0.03184721527 | D58: 0.04320725834
B59: 58 | C59: 0.03179817008 | D59: 0.04320725834
B60: 59 | C60: 0.03225106526 | D60: 0.04320725834
B61: 60 | C61: 0.03274856292 | D61: 0.04320725834
B62: 61 | C62: 0.03349605485 | D62: 0.04320725834
B63: 62 | C63: 0.03299364701 | D63: 0.04320725834
B64: 63 | C64: 0.03436852975 | D64: 0.04320725834
B65: 64 | C65: 0.03455664902 | D65: 0.04320725834
B66: 65 | C66: 0.03521273367 | D66: 0.04320725834
B67: 66 | C67: 0.03493703244 | D67: 0.04320725834
B68: 67 | C68: 0.0351855794 | D68: 0.04320725834
B69: 68 | C69: 0.03634726256 | D69: 0.04320725834
B70: 69 | C70: 0.03703618813 | D70: 0.04320725834
B71: 70 | C71: 0.03735677581 | D71: 0.04320725834
B72: 71 | C72: 0.03712870367 | D72: 0.04320725834
B73: 72 | C73: 0.03715163025 | D73: 0.04320725834
B74: 73 | C74: 0.03718872289 | D74: 0.04320725834
B75: 74 | C75: 0.03718249682 | D75: 0.04320725834
B76: 75 | C76: 0.03730502258 | D76: 0.04320725834
B77: 76 | C77: 0.03701262264 | D77: 0.04320725834
B78: 77 | C78: 0.03643722109 | D78: 0.04320725834
B79: 78 | C79: 0.03616841608 | D79: 0.04320725834
B80: 79 | C80: 0.03675242543 | D80: 0.04320725834
B81: 80 | C81: 0.03609356511 | D81: 0.04320725834
B82: 81 | C82: 0.0353963937 | D82: 0.04320725834
B83: 82 | C83: 0.03533304282 | D83: 0.04320725834
B84: 83 | C84: 0.03536276914 | D84: 0.04320725834
B85: 84 | C85: 0.03546025173 | D85: 0.04320725834
B86: 85 | C86: 0.03534728044 | D86: 0.04320725834
B87: 86 | C87: 0.03590761558 | D87: 0.04320725834
B88: 87 | C88: 0.03537426233 | D88: 0.04320725834
B89: 88 | C89: 0.03639860611 | D89: 0.04320725834
B90: 89 | C90: 0.03670810208 | D90: 0.04320725834
B91: 90 | C91: 0.03654230591 | D91: 0.04320725834
B92: 91 | C92: 0.036444211 | D92: 0.04320725834
B93: 92 | C93: 0.0368945409 | D93: 0.04320725834
B94: 93 | C94: 0.03671015101 | D94: 0.04320725834
B95: 94 | C95: 0.0366544226 | D95: 0.04320725834
B96: 95 | C96: 0.03695811818 | D96: 0.04320725834
B97: 96 | C97: 0.03760918677 | D97: 0.04320725834
B98: 97 | C98: 0.03734538612 | D98: 0.04320725834
B99: 98 | C99: 0.03745527108 | D99: 0.04320725834
B100: 99 | C100: 0.03721621092 | D100: 0.04320725834
B101: 100 | C101: 0.03599535296 | D101: 0.04320725834
B102: 101 | C102: 0.03613607332 | D102: 0.04320725834
B103: 102 | C103: 0.03714968417 | D103: 0.04320725834
B104: 103 | C104: 0.0380569701 | D104: 0.04320725834
B105: 104 | C105: 0.0381087364 | D105: 0.04320725834
B106: 105 | C106: 0.03755658312 | D106: 0.04320725834
B107: 106 | C107: 0.0375848682 | D107: 0.04320725834
B108: 107 | C108: 0.03719254014 | D108: 0.04320725834
B109: 108 | C109: 0.03694877868 | D109: 0.04320725834
B110: 109 | C110: 0.03741996973 | D110: 0.04320725834
B111: 110 | C111: 0.03717895565 | D111: 0.04320725834
B112: 111 | C112: 0.0372494344 | D112: 0.04320725834
B113: 112 | C113: 0.03715934773 | D113: 0.04320725834
B114: 113 | C114: 0.03756075125 | D114: 0.04320725834
B115: 114 | C115: 0.03787382884 | D115: 0.04320725834
B116: 115 | C116: 0.03726815567 | D116: 0.04320725834
B117: 116 | C117: 0.03738675992 | D117: 0.04320725834
B118: 117 | C118: 0.03877298901 | D118: 0.04320725834
B119: 118 | C119: 0.03940616279 | D119: 0.04320725834
B120: 119 | C120: 0.03988810215 | D120: 0.04320725834
B121: 120 | C121: 0.04127906608 | D121: 0.04320725834
B122: 121 | C122: 0.0410529355 | D122: 0.04320725834
B123: 122 | C123: 0.04126016833 | D123: 0.04320725834
B124: 123 | C124: 0.04001898928 | D124: 0.04320725834
B125: 124 | C125: 0.04052235668 | D125: 0.04320725834
B126: 125 | C126: 0.04159065348 | D126: 0.04320725834
B127: 126 | C127: 0.04151194182 | D127: 0.04320725834
B128: 127 | C128: 0.04127614559 | D128: 0.04320725834
B129: 128 | C129: 0.04202538596 | D129: 0.04320725834
B130: 129 | C130: 0.04290244856 | D130: 0.04320725834
B131: 130 | C131: 0.04300450464 | D131: 0.04320725834
B132: 131 | C132: 0.04394703595 | D132: 0.04320725834
B133: 132 | C133: 0.04282480717 | D133: 0.04320725834
B134: 133 | C134: 0.04232758559 | D134: 0.04320725834
B135: 134 | C135: 0.04370174176 | D135: 0.04320725834
B136: 135 | C136: 0.04388224627 | D136: 0.04320725834
B137: 136 | C137: 0.04437222197 | D137: 0.04320725834
B138: 137 | C138: 0.04488475207 | D138: 0.04320725834
B139: 138 | C139: 0.04533033985 | D139: 0.04320725834
B140: 139 | C140: 0.04599851343 | D140: 0.04320725834
B141: 140 | C141: 0.04564057439 | D141: 0.04320725834
B142: 141 | C142: 0.04551917141 | D142: 0.04320725834
B143: 142 | C143: 0.04562693738 | D143: 0.04320725834
B144: 143 | C144: 0.04494411909 | D144: 0.04320725834
B145: 144 | C145: 0.04478683715 | D145: 0.06630440271
B146: 145 | C146: 0.04547974257 | D146: 0.06883457909
B147: 146 | C147: 0.04631567669 | D147: 0.06883457909
B148: 147 | C148: 0.0468267856 | D148: 0.06883457909
B149: 148 | C149: 0.04632907 | D149: 0.06883457909
B150: 149 | C150: 0.04645503959 | D150: 0.06883457909
B151: 150 | C151: 0.04632260181 | D151: 0.06883457909
B152: 151 | C152: 0.04788776945 | D152: 0.06883457909
B153: 152 | C153: 0.04835439412 | D153: 0.06883457909
B154: 153 | C154: 0.04890548465 | D154: 0.06883457909
B155: 154 | C155: 0.04810098171 | D155: 0.06883457909
B156: 155 | C156: 0.04854828883 | D156: 0.06883457909
B157: 156 | C157: 0.04916328313 | D157: 0.06883457909
B158: 157 | C158: 0.05074503691 | D158: 0.06883457909
B159: 158 | C159: 0.05192756668 | D159: 0.06883457909
B160: 159 | C160: 0.05228267347 | D160: 0.06883457909
B161: 160 | C161: 0.05322272685 | D161: 0.06883457909
B162: 161 | C162: 0.05307733053 | D162: 0.06883457909
B163: 162 | C163: 0.05293964912 | D163: 0.06883457909
B164: 163 | C164: 0.05393058745 | D164: 0.06883457909
B165: 164 | C165: 0.05237083616 | D165: 0.06883457909
B166: 165 | C166: 0.05208862695 | D166: 0.06883457909
B167: 166 | C167: 0.05291996769 | D167: 0.06883457909
B168: 167 | C168: 0.0524161121 | D168: 0.06883457909
B169: 168 | C169: 0.05319412084 | D169: 0.06883457909
B170: 169 | C170: 0.05285690219 | D170: 0.06883457909
B171: 170 | C171: 0.05322230447 | D171: 0.06883457909
B172: 171 | C172: 0.05235733044 | D172: 0.06883457909
B173: 172 | C173: 0.05273317954 | D173: 0.06883457909
B174: 173 | C174: 0.05358630674 | D174: 0.06883457909
B175: 174 | C175: 0.0541596373 | D175: 0.06883457909
B176: 175 | C176: 0.05296821759 | D176: 0.06883457909
B177: 176 | C177: 0.05360684891 | D177: 0.06883457909
B178: 177 | C178: 0.05302359422 | D178: 0.06883457909
B179: 178 | C179: 0.05398380737 | D179: 0.06883457909
B180: 179 | C180: 0.05287275431 | D180: 0.06883457909
B181: 180 | C181: 0.05232730807 | D181: 0.06883457909
B182: 181 | C182: 0.05150874189 | D182: 0.06883457909
B183: 182 | C183: 0.05136034958 | D183: 0.06883457909
B184: 183 | C184: 0.05183718117 | D184: 0.06883457909
B185: 184 | C185: 0.05309841653 | D185: 0.06883457909
B186: 185 | C186: 0.05216534503 | D186: 0.06883457909
B187: 186 | C187: 0.05140172805 | D187: 0.06883457909
B188: 187 | C188: 0.05118703061 | D188: 0.06883457909
B189: 188 | C189: 0.05186444312 | D189: 0.06883457909
B190: 189 | C190: 0.05233290998 | D190: 0.06883457909
B191: 190 | C191: 0.05191193338 | D191: 0.06883457909
B192: 191 | C192: 0.05159091424 | D192: 0.06883457909
B193: 192 | C193: 0.05261136512 | D193: 0.06883457909
B194: 193 | C194: 0.05437200786 | D194: 0.06883457909
B195: 194 | C195: 0.05427501894 | D195: 0.06883457909
B196: 195 | C196: 0.05449048389 | D196: 0.06883457909
B197: 196 | C197: 0.05429126325 | D197: 0.06883457909
B198: 197 | C198: 0.05555110338 | D198: 0.06883457909
B199: 198 | C199: 0.05647524139 | D199: 0.06883457909
B200: 199 | C200: 0.05743768696 | D200: 0.06883457909
... 512 more rows

Sheet Random Scenario
A1: Month | B1: No. 62 | C1: No. 489 | D1: No. 211 | E1: No. 220 | F1: No. 103 | G1: No. 404 | H1: No. 578 | I1: No. 991 | J1: No. 352 | K1: No. 151
A2: 1 | B2: 0.0283 | C2: 0.0283 | D2: 0.0283 | E2: 0.0283 | F2: 0.0283 | G2: 0.0283 | H2: 0.0283 | I2: 0.0283 | J2: 0.0283 | K2: 0.0283
A3: 2 | B3: 0.02844574907 | C3: 0.02861316213 | D3: 0.02801392892 | E3: 0.02856229561 | F3: 0.02901669153 | G3: 0.02925741959 | H3: 0.02813498553 | I3: 0.02880317895 | J3: 0.02838379648 | K3: 0.02870199114
A4: 3 | B4: 0.02760634564 | C4: 0.02866577534 | D4: 0.02855506148 | E4: 0.0290204511 | F4: 0.02859623053 | G4: 0.03029146029 | H4: 0.02848063589 | I4: 0.02984624187 | J4: 0.02930256045 | K4: 0.02999613523
A5: 4 | B5: 0.0274976743 | C5: 0.02824355702 | D5: 0.02796069367 | E5: 0.02976673214 | F5: 0.02885829725 | G5: 0.0312066385 | H5: 0.02776933238 | I5: 0.0301091772 | J5: 0.03000305039 | K5: 0.03091074394
A6: 5 | B6: 0.02740713794 | C6: 0.028574104 | D6: 0.02822508215 | E6: 0.03034973059 | F6: 0.02901534936 | G6: 0.03199713127 | H6: 0.02800817911 | I6: 0.03089289498 | J6: 0.03073359755 | K6: 0.03101673498
A7: 6 | B7: 0.02726942948 | C7: 0.02764144732 | D7: 0.0284921851 | E7: 0.03042707259 | F7: 0.03008307012 | G7: 0.03129423829 | H7: 0.02836270283 | I7: 0.03113034258 | J7: 0.03141256922 | K7: 0.03163456502
A8: 7 | B8: 0.02726808346 | C8: 0.02871158019 | D8: 0.02800365585 | E8: 0.03084366525 | F8: 0.02932141589 | G8: 0.03142177051 | H8: 0.02864060629 | I8: 0.03213611958 | J8: 0.03232949504 | K8: 0.03160041582
A9: 8 | B9: 0.02824034278 | C9: 0.02898826969 | D9: 0.02792139068 | E9: 0.0300207973 | F9: 0.02972307635 | G9: 0.03221121718 | H9: 0.0291698244 | I9: 0.03213691908 | J9: 0.03274216347 | K9: 0.03171077647
A10: 9 | B10: 0.02888768538 | C10: 0.02883685267 | D10: 0.02811956212 | E10: 0.03015938239 | F10: 0.03027694685 | G10: 0.03298353175 | H10: 0.0297904384 | I10: 0.03241787241 | J10: 0.03299294632 | K10: 0.03172852525
A11: 10 | B11: 0.02992147646 | C11: 0.02909229283 | D11: 0.0292174864 | E11: 0.03072751385 | F11: 0.03003646853 | G11: 0.03279938113 | H11: 0.0294760481 | I11: 0.03242219283 | J11: 0.03341284827 | K11: 0.03201208922
A12: 11 | B12: 0.03023232363 | C12: 0.02903738527 | D12: 0.02932208709 | E12: 0.03115706907 | F12: 0.03004417712 | G12: 0.03389029737 | H12: 0.02973575954 | I12: 0.03235880677 | J12: 0.0332992058 | K12: 0.03236755323
A13: 12 | B13: 0.03085676827 | C13: 0.02908384476 | D13: 0.0303183046 | E13: 0.03135506864 | F13: 0.02969705728 | G13: 0.03569917531 | H13: 0.03002540336 | I13: 0.03209582047 | J13: 0.03385703576 | K13: 0.03315721076
A14: 13 | B14: 0.03146415211 | C14: 0.02970206728 | D14: 0.03048777483 | E14: 0.03091523931 | F14: 0.03016537694 | G14: 0.03653167899 | H14: 0.03052460684 | I14: 0.03233004798 | J14: 0.03405380566 | K14: 0.03313772068
A15: 14 | B15: 0.03113014302 | C15: 0.02974784982 | D15: 0.03106329089 | E15: 0.03079075401 | F15: 0.03052816741 | G15: 0.03660487602 | H15: 0.03135213974 | I15: 0.03281961102 | J15: 0.03466325445 | K15: 0.03315704697
A16: 15 | B16: 0.03095329792 | C16: 0.03003358088 | D16: 0.0310367696 | E16: 0.0305962161 | F16: 0.03090382394 | G16: 0.03754136746 | H16: 0.03198966382 | I16: 0.03359903587 | J16: 0.03540840771 | K16: 0.03340129837
A17: 16 | B17: 0.03086616594 | C17: 0.03019118758 | D17: 0.03162325316 | E17: 0.02974035197 | F17: 0.03124345233 | G17: 0.03781678438 | H17: 0.03208610406 | I17: 0.03460328935 | J17: 0.03629290193 | K17: 0.03388318577
A18: 17 | B18: 0.0304369931 | C18: 0.03075815011 | D18: 0.03289075954 | E18: 0.03029206929 | F18: 0.03169796728 | G18: 0.03803654521 | H18: 0.03254059026 | I18: 0.03547076176 | J18: 0.0368568697 | K18: 0.03423571533
A19: 18 | B19: 0.03073925419 | C19: 0.03125163441 | D19: 0.03367355988 | E19: 0.02948136403 | F19: 0.03181599199 | G19: 0.03759288813 | H19: 0.03192050307 | I19: 0.03491209545 | J19: 0.03667588708 | K19: 0.03398068754
A20: 19 | B20: 0.03142614737 | C20: 0.03102678573 | D20: 0.03355015651 | E20: 0.02963687545 | F20: 0.03208530932 | G20: 0.03850077607 | H20: 0.03207791992 | I20: 0.03516620213 | J20: 0.03730811362 | K20: 0.03417126403
A21: 20 | B21: 0.03190641039 | C21: 0.03135288737 | D21: 0.03441571257 | E21: 0.030131831 | F21: 0.0325198392 | G21: 0.03845484742 | H21: 0.03270016775 | I21: 0.03544512245 | J21: 0.03735539552 | K21: 0.03486089525
A22: 21 | B22: 0.03202583968 | C22: 0.0307950531 | D22: 0.03445128708 | E22: 0.03060205977 | F22: 0.03366281657 | G22: 0.03796218409 | H22: 0.03316881026 | I22: 0.03629476517 | J22: 0.0367639136 | K22: 0.0346895517
A23: 22 | B23: 0.0314584417 | C23: 0.03158253249 | D23: 0.03371318973 | E23: 0.03018676344 | F23: 0.03389324361 | G23: 0.03896346666 | H23: 0.03338837896 | I23: 0.03720757214 | J23: 0.03807460761 | K23: 0.03502485826
A24: 23 | B24: 0.03108805975 | C24: 0.03223523685 | D24: 0.03360410799 | E24: 0.02989483261 | F24: 0.03410504576 | G24: 0.03872479642 | H24: 0.03298012454 | I24: 0.03895559864 | J24: 0.03868529924 | K24: 0.03522132083
A25: 24 | B25: 0.03131995159 | C25: 0.03163672864 | D25: 0.03365823003 | E25: 0.02968072047 | F25: 0.03473338796 | G25: 0.03760828949 | H25: 0.03292352164 | I25: 0.03933234962 | J25: 0.03834477251 | K25: 0.03514017864
A26: 25 | B26: 0.03070463426 | C26: 0.03172932651 | D26: 0.03360944816 | E26: 0.02921955016 | F26: 0.03508624017 | G26: 0.03761613907 | H26: 0.03288348822 | I26: 0.03899809665 | J26: 0.03959769615 | K26: 0.0359545986
A27: 26 | B27: 0.03043454807 | C27: 0.03215401748 | D27: 0.03385014705 | E27: 0.02936799039 | F27: 0.03550961262 | G27: 0.03762901754 | H27: 0.0327972353 | I27: 0.03966408393 | J27: 0.0402773892 | K27: 0.03531663298
A28: 27 | B28: 0.030562935 | C28: 0.03167982325 | D28: 0.03454642509 | E28: 0.02993046679 | F28: 0.03572450308 | G28: 0.03695822443 | H28: 0.03284617792 | I28: 0.04106174278 | J28: 0.03958884925 | K28: 0.03475075093
A29: 28 | B29: 0.03091247234 | C29: 0.03235371785 | D29: 0.03441756413 | E29: 0.03025479227 | F29: 0.03687099029 | G29: 0.03653318873 | H29: 0.03229880082 | I29: 0.04162700284 | J29: 0.03943806017 | K29: 0.03399910428
A30: 29 | B30: 0.03211919187 | C30: 0.03407773331 | D30: 0.03436297244 | E30: 0.03022675162 | F30: 0.03713021905 | G30: 0.03644499487 | H30: 0.03317863655 | I30: 0.04239010195 | J30: 0.04048078569 | K30: 0.03347746939
A31: 30 | B31: 0.0320534985 | C31: 0.03427149896 | D31: 0.03503858276 | E31: 0.0296962714 | F31: 0.03671390752 | G31: 0.03572767147 | H31: 0.03264257188 | I31: 0.04193248408 | J31: 0.04151227814 | K31: 0.03408220638
A32: 31 | B32: 0.0335255481 | C32: 0.0343371469 | D32: 0.03547764646 | E32: 0.02927961702 | F32: 0.03617653566 | G32: 0.03553749721 | H32: 0.03305528074 | I32: 0.04192676008 | J32: 0.04209668576 | K32: 0.03449799177
A33: 32 | B33: 0.03407835352 | C33: 0.03528766665 | D33: 0.03530820844 | E33: 0.02936125933 | F33: 0.03672192305 | G33: 0.034814415 | H33: 0.03387340715 | I33: 0.0411474652 | J33: 0.04225995915 | K33: 0.03511636825
A34: 33 | B34: 0.03400902104 | C34: 0.03641028419 | D34: 0.0351887713 | E34: 0.02882871984 | F34: 0.0369604407 | G34: 0.03472651273 | H34: 0.03466734986 | I34: 0.04179757622 | J34: 0.0440490212 | K34: 0.03517461751
A35: 34 | B35: 0.03449747825 | C35: 0.03675981968 | D35: 0.03432684004 | E35: 0.02848983661 | F35: 0.03786979318 | G35: 0.03350829818 | H35: 0.03447280178 | I35: 0.04230772749 | J35: 0.04412303776 | K35: 0.03555453232
A36: 35 | B36: 0.03495435769 | C36: 0.03800149283 | D36: 0.03385074084 | E36: 0.02848069197 | F36: 0.03840425489 | G36: 0.03290959667 | H36: 0.03393598659 | I36: 0.04283494108 | J36: 0.04458919208 | K36: 0.03591492147
A37: 36 | B37: 0.03478606718 | C37: 0.03745238231 | D37: 0.03389646263 | E37: 0.0286782153 | F37: 0.03867910767 | G37: 0.03179902441 | H37: 0.03408285316 | I37: 0.04331307513 | J37: 0.04579219096 | K37: 0.03682260934
A38: 37 | B38: 0.03554765991 | C38: 0.03729321249 | D38: 0.03414172614 | E38: 0.02801869399 | F38: 0.03937648248 | G38: 0.0325605315 | H38: 0.03474514789 | I38: 0.04394439694 | J38: 0.04611506966 | K38: 0.03806732492
A39: 38 | B39: 0.03533066812 | C39: 0.03651267106 | D39: 0.03412783022 | E39: 0.02786777722 | F39: 0.0412506747 | G39: 0.03280096031 | H39: 0.03510208527 | I39: 0.04410814637 | J39: 0.04723273185 | K39: 0.03722612948
A40: 39 | B40: 0.03626400962 | C40: 0.03693681866 | D40: 0.03350178796 | E40: 0.02729054715 | F40: 0.04172092381 | G40: 0.03216124345 | H40: 0.03504243042 | I40: 0.0440027319 | J40: 0.04695369863 | K40: 0.03805296676
A41: 40 | B41: 0.03771042316 | C41: 0.03764372546 | D41: 0.03229001687 | E41: 0.02767401549 | F41: 0.04218038056 | G41: 0.03144708117 | H41: 0.0344348949 | I41: 0.04417377166 | J41: 0.04915214706 | K41: 0.03806730168
A42: 41 | B42: 0.03792797062 | C42: 0.03837792325 | D42: 0.03133118496 | E42: 0.02754600622 | F42: 0.04225892567 | G42: 0.03130347909 | H42: 0.03394514327 | I42: 0.04549042232 | J42: 0.05057307073 | K42: 0.03849173057
A43: 42 | B43: 0.03951151482 | C43: 0.03905329313 | D43: 0.03233037299 | E43: 0.0278696262 | F43: 0.04234100856 | G43: 0.03080137175 | H43: 0.03401339072 | I43: 0.04582072372 | J43: 0.05152340918 | K43: 0.03871400088
A44: 43 | B44: 0.0392808158 | C44: 0.03995810443 | D44: 0.03170882863 | E44: 0.02816427119 | F44: 0.04350614692 | G44: 0.03055024644 | H44: 0.0334087164 | I44: 0.04558041629 | J44: 0.05110615553 | K44: 0.03845474151
A45: 44 | B45: 0.03876440856 | C45: 0.03993077427 | D45: 0.03210691997 | E45: 0.02796601419 | F45: 0.04293121116 | G45: 0.03042898008 | H45: 0.03300399958 | I45: 0.0459598677 | J45: 0.05052144674 | K45: 0.03923761803
A46: 45 | B46: 0.03891687072 | C46: 0.0400988517 | D46: 0.03278837686 | E46: 0.02855208976 | F46: 0.04289371414 | G46: 0.03022733398 | H46: 0.03296787647 | I46: 0.04645586975 | J46: 0.05089077894 | K46: 0.04014539811
A47: 46 | B47: 0.03898625464 | C47: 0.0404680024 | D47: 0.03208906922 | E47: 0.02831969499 | F47: 0.0438503175 | G47: 0.03029474383 | H47: 0.03317279623 | I47: 0.04704228546 | J47: 0.05273401587 | K47: 0.04003338143
A48: 47 | B48: 0.03974125734 | C48: 0.04016844958 | D48: 0.0319732929 | E48: 0.02913212131 | F48: 0.04365644989 | G48: 0.02947946489 | H48: 0.03246139537 | I48: 0.04735549531 | J48: 0.05289076691 | K48: 0.04080523282
A49: 48 | B49: 0.03957539763 | C49: 0.04038507333 | D49: 0.03257480339 | E49: 0.02848904907 | F49: 0.04293850987 | G49: 0.02874058209 | H49: 0.03226451767 | I49: 0.0486861858 | J49: 0.05326297565 | K49: 0.04184082087
A50: 49 | B50: 0.04013067411 | C50: 0.04057917135 | D50: 0.03314441465 | E50: 0.02859197931 | F50: 0.04319436964 | G50: 0.02855184074 | H50: 0.03162859998 | I50: 0.0490601297 | J50: 0.05348982355 | K50: 0.04151585936
A51: 50 | B51: 0.04044964031 | C51: 0.04127325395 | D51: 0.03274433268 | E51: 0.02798345377 | F51: 0.0441220686 | G51: 0.02839515488 | H51: 0.03205856856 | I51: 0.04835119143 | J51: 0.0541720585 | K51: 0.041553392
A52: 51 | B52: 0.04065832497 | C52: 0.04213763387 | D52: 0.03395846425 | E52: 0.02779767159 | F52: 0.04354831373 | G52: 0.028439344 | H52: 0.03188775582 | I52: 0.04925820474 | J52: 0.05500752226 | K52: 0.04224293562
A53: 52 | B53: 0.04121206977 | C53: 0.04318433732 | D53: 0.03316426254 | E53: 0.02745112293 | F53: 0.04449259422 | G53: 0.02787607115 | H53: 0.03224389637 | I53: 0.05000039818 | J53: 0.05405430733 | K53: 0.04143607097
A54: 53 | B54: 0.04042065214 | C54: 0.043226196 | D54: 0.03375769931 | E54: 0.02752047076 | F54: 0.04530452211 | G54: 0.02804491225 | H54: 0.03256469211 | I54: 0.05045120857 | J54: 0.05424271919 | K54: 0.04215329804
A55: 54 | B55: 0.04038359795 | C55: 0.04291753344 | D55: 0.03360387061 | E55: 0.02753249869 | F55: 0.04586278133 | G55: 0.02773352512 | H55: 0.03231566861 | I55: 0.05182515375 | J55: 0.05448439834 | K55: 0.04241987818
A56: 55 | B56: 0.0408733313 | C56: 0.04193905899 | D56: 0.03431461835 | E56: 0.02806974161 | F56: 0.04507167102 | G56: 0.027735572 | H56: 0.03300894972 | I56: 0.05268532654 | J56: 0.05509592668 | K56: 0.04169111296
A57: 56 | B57: 0.04100404833 | C57: 0.04219728903 | D57: 0.03433832617 | E57: 0.02792545967 | F57: 0.04375850167 | G57: 0.02735480605 | H57: 0.03272157332 | I57: 0.05318996957 | J57: 0.05624451449 | K57: 0.0418902707
A58: 57 | B58: 0.04140498358 | C58: 0.04254141604 | D58: 0.03431261327 | E58: 0.02829274605 | F58: 0.04387666439 | G58: 0.0271083729 | H58: 0.03383353703 | I58: 0.05427924469 | J58: 0.05707762963 | K58: 0.04205213609
A59: 58 | B59: 0.04077956825 | C59: 0.04185183751 | D59: 0.0337654816 | E59: 0.02848048107 | F59: 0.04338399866 | G59: 0.02726084308 | H59: 0.03312689948 | I59: 0.05182801684 | J59: 0.05695787459 | K59: 0.04076902608
A60: 59 | B60: 0.04216970316 | C60: 0.04209183216 | D60: 0.03442238208 | E60: 0.02858892327 | F60: 0.04333313722 | G60: 0.02775997301 | H60: 0.03321853716 | I60: 0.05259798879 | J60: 0.05747214755 | K60: 0.04121570458
A61: 60 | B61: 0.04244620319 | C61: 0.0425045731 | D61: 0.03417271726 | E61: 0.02895388264 | F61: 0.04346596378 | G61: 0.02784589966 | H61: 0.03254583109 | I61: 0.0533566468 | J61: 0.05562530516 | K61: 0.04272828046
A62: 61 | B62: 0.04277727812 | C62: 0.04152448642 | D62: 0.03393163793 | E62: 0.02848130155 | F62: 0.04347856087 | G62: 0.02758398323 | H62: 0.03230709678 | I62: 0.05363381894 | J62: 0.05562969971 | K62: 0.04328429973
A63: 62 | B63: 0.0424820804 | C63: 0.04001965164 | D63: 0.03438722792 | E63: 0.02842074525 | F63: 0.04384632961 | G63: 0.02723324917 | H63: 0.03189389964 | I63: 0.05328969783 | J63: 0.05642292498 | K63: 0.0439982911
A64: 63 | B64: 0.04283413123 | C64: 0.04020013387 | D64: 0.0342520883 | E64: 0.02881944818 | F64: 0.04498626552 | G64: 0.02690223299 | H64: 0.03194742402 | I64: 0.054082152 | J64: 0.05695715953 | K64: 0.04385218995
A65: 64 | B65: 0.04335837219 | C65: 0.04099541846 | D65: 0.03409562149 | E65: 0.02893692649 | F65: 0.04624606408 | G65: 0.02654550615 | H65: 0.03193479155 | I65: 0.05356018261 | J65: 0.05706631279 | K65: 0.04457820428
A66: 65 | B66: 0.04421721199 | C66: 0.04078960984 | D66: 0.03513031194 | E66: 0.02844620759 | F66: 0.04619682336 | G66: 0.02629407759 | H66: 0.03256173527 | I66: 0.05369963218 | J66: 0.05601329079 | K66: 0.0433643227
A67: 66 | B67: 0.04465966036 | C67: 0.040591163 | D67: 0.03618922481 | E67: 0.02864100173 | F67: 0.04619700595 | G67: 0.02570056023 | H67: 0.03237076372 | I67: 0.05438179914 | J67: 0.05564906468 | K67: 0.04435638169
A68: 67 | B68: 0.04444176061 | C68: 0.04146647567 | D68: 0.03656949623 | E68: 0.02887648225 | F68: 0.04650137776 | G68: 0.02636486983 | H68: 0.03277935065 | I68: 0.05433386182 | J68: 0.05531881532 | K68: 0.04412387555
A69: 68 | B69: 0.04452980459 | C69: 0.04066229995 | D69: 0.03717218255 | E69: 0.02870922316 | F69: 0.04541068144 | G69: 0.0257764467 | H69: 0.03297149434 | I69: 0.05497322771 | J69: 0.05491107904 | K69: 0.04377319725
A70: 69 | B70: 0.0446344273 | C70: 0.04036002892 | D70: 0.03813344118 | E70: 0.02896053117 | F70: 0.04587271347 | G70: 0.0258264055 | H70: 0.03307055484 | I70: 0.0550634171 | J70: 0.05474416029 | K70: 0.04418214749
A71: 70 | B71: 0.0446860699 | C71: 0.04100803354 | D71: 0.03842945388 | E71: 0.02935345335 | F71: 0.04557112259 | G71: 0.02539738255 | H71: 0.03347569168 | I71: 0.05531767876 | J71: 0.05336687132 | K71: 0.04334456119
A72: 71 | B72: 0.04489266927 | C72: 0.04056633372 | D72: 0.03927342068 | E72: 0.03017354316 | F72: 0.04580859391 | G72: 0.02582974384 | H72: 0.03293312962 | I72: 0.05681777775 | J72: 0.05452839275 | K72: 0.04358442791
A73: 72 | B73: 0.04419073226 | C73: 0.04115016107 | D73: 0.03952958741 | E73: 0.03049753443 | F73: 0.04533504517 | G73: 0.02543531102 | H73: 0.03283789978 | I73: 0.0576278193 | J73: 0.05322072921 | K73: 0.04358136894
A74: 73 | B74: 0.04437545647 | C74: 0.04081189753 | D74: 0.04049234231 | E74: 0.03036477402 | F74: 0.04514344355 | G74: 0.02512578885 | H74: 0.03328470169 | I74: 0.05832835848 | J74: 0.05366777072 | K74: 0.04345023901
A75: 74 | B75: 0.04302072918 | C75: 0.04099910357 | D75: 0.04028474616 | E75: 0.03042474437 | F75: 0.04558068948 | G75: 0.02487477045 | H75: 0.0333946179 | I75: 0.05877681444 | J75: 0.05472913156 | K75: 0.04368585392
A76: 75 | B76: 0.04163262724 | C76: 0.04037794553 | D76: 0.04060348454 | E76: 0.03049600352 | F76: 0.04632986072 | G76: 0.0244647519 | H76: 0.03374848394 | I76: 0.0601366401 | J76: 0.05574907919 | K76: 0.04453294587
A77: 76 | B77: 0.04109913663 | C77: 0.04057503367 | D77: 0.04040942856 | E77: 0.03053146662 | F77: 0.04668281324 | G77: 0.02451672853 | H77: 0.03338278648 | I77: 0.06130651987 | J77: 0.05515398152 | K77: 0.04401899805
A78: 77 | B78: 0.04068611713 | C78: 0.04124725039 | D78: 0.03997557561 | E78: 0.03067422441 | F78: 0.04632537776 | G78: 0.02416007589 | H78: 0.03379111234 | I78: 0.06111203037 | J78: 0.05477947878 | K78: 0.04428954574
A79: 78 | B79: 0.04035984302 | C79: 0.04161913994 | D79: 0.04139315956 | E79: 0.03004029921 | F79: 0.04572459388 | G79: 0.02439081273 | H79: 0.03389865017 | I79: 0.06189996879 | J79: 0.05454333868 | K79: 0.04416819016
A80: 79 | B80: 0.03980077412 | C80: 0.04087911403 | D80: 0.04163424622 | E80: 0.02969370687 | F80: 0.0451727622 | G80: 0.02429994709 | H80: 0.03450309915 | I80: 0.06134851762 | J80: 0.05384556486 | K80: 0.04434918551
A81: 80 | B81: 0.03999464013 | C81: 0.04131443505 | D81: 0.04176423647 | E81: 0.02953351083 | F81: 0.04452532072 | G81: 0.02413877947 | H81: 0.03529273727 | I81: 0.0611722941 | J81: 0.05427040341 | K81: 0.0455590682
A82: 81 | B82: 0.03895468736 | C82: 0.04082923192 | D82: 0.04260634578 | E82: 0.03015899218 | F82: 0.0441700162 | G82: 0.02377359948 | H82: 0.03687176813 | I82: 0.06077513105 | J82: 0.05545932084 | K82: 0.04640976278
A83: 82 | B83: 0.03958384016 | C83: 0.04165167757 | D83: 0.04295742922 | E83: 0.0297657526 | F83: 0.04519941895 | G83: 0.02377258139 | H83: 0.03759292025 | I83: 0.06097061232 | J83: 0.05621190208 | K83: 0.04644132745
A84: 83 | B84: 0.03951501789 | C84: 0.04093221516 | D84: 0.04363670754 | E84: 0.0293574539 | F84: 0.04587037515 | G84: 0.02361204932 | H84: 0.03774282637 | I84: 0.06130143362 | J84: 0.05631013443 | K84: 0.04653381512
A85: 84 | B85: 0.03893960219 | C85: 0.0404681416 | D85: 0.0445059515 | E85: 0.02934216738 | F85: 0.04693518771 | G85: 0.02329420547 | H85: 0.03812959982 | I85: 0.06230170128 | J85: 0.05546409613 | K85: 0.04574567747
A86: 85 | B86: 0.03844946875 | C86: 0.03987104907 | D86: 0.04525498024 | E86: 0.02940153909 | F86: 0.04710072139 | G86: 0.02321684909 | H86: 0.03853094485 | I86: 0.06182432782 | J86: 0.05482606307 | K86: 0.04586701708
A87: 86 | B87: 0.03853852345 | C87: 0.03966511401 | D87: 0.04644291324 | E87: 0.02951760382 | F87: 0.04556870027 | G87: 0.02331906886 | H87: 0.03888669428 | I87: 0.06145180266 | J87: 0.05512001882 | K87: 0.04615969796
A88: 87 | B88: 0.03797161303 | C88: 0.03995093273 | D88: 0.04632544041 | E88: 0.02946233431 | F88: 0.04615346103 | G88: 0.02313106926 | H88: 0.03938163273 | I88: 0.06156899849 | J88: 0.05425290629 | K88: 0.04673087401
A89: 88 | B89: 0.0375512568 | C89: 0.03873515324 | D89: 0.0462642066 | E89: 0.03005739947 | F89: 0.04515432304 | G89: 0.02294119353 | H89: 0.03892304376 | I89: 0.0621109454 | J89: 0.05374750129 | K89: 0.04694029365
A90: 89 | B90: 0.03750380017 | C90: 0.03814707872 | D90: 0.04699281662 | E90: 0.02971750281 | F90: 0.04454753505 | G90: 0.02250748444 | H90: 0.03878442759 | I90: 0.0609212163 | J90: 0.05386252632 | K90: 0.0463513226
A91: 90 | B91: 0.03736481035 | C91: 0.0376315973 | D91: 0.04777329222 | E91: 0.02908927867 | F91: 0.04411457646 | G91: 0.02282899755 | H91: 0.03887345442 | I91: 0.06038203307 | J91: 0.05436766339 | K91: 0.04618666225
A92: 91 | B92: 0.0367592144 | C92: 0.03741836301 | D92: 0.04891930588 | E92: 0.02940147127 | F92: 0.04619768178 | G92: 0.02257151947 | H92: 0.04006870939 | I92: 0.05822829258 | J92: 0.05323492351 | K92: 0.04604475753
A93: 92 | B93: 0.0365368712 | C93: 0.03789326752 | D93: 0.04902348575 | E93: 0.02932263563 | F93: 0.04635251594 | G93: 0.02264545157 | H93: 0.03985781587 | I93: 0.0572279122 | J93: 0.05307309766 | K93: 0.04584391678
A94: 93 | B94: 0.03744876608 | C94: 0.03818054395 | D94: 0.0504339492 | E94: 0.0292932006 | F94: 0.04536905228 | G94: 0.02197055535 | H94: 0.03961980105 | I94: 0.05602686132 | J94: 0.05208821013 | K94: 0.04582179372
A95: 94 | B95: 0.03841002253 | C95: 0.0378414291 | D95: 0.05093084281 | E95: 0.02974778727 | F95: 0.04577887784 | G95: 0.0220313907 | H95: 0.03988794546 | I95: 0.05432709068 | J95: 0.0529409665 | K95: 0.0466134979
A96: 95 | B96: 0.03817887079 | C96: 0.03756362476 | D96: 0.05201376933 | E96: 0.02965266694 | F96: 0.04567153912 | G96: 0.02175448405 | H96: 0.04025698584 | I96: 0.05403970867 | J96: 0.05281571222 | K96: 0.04790096454
A97: 96 | B97: 0.03818355864 | C97: 0.03847478622 | D97: 0.05236752859 | E97: 0.02965347078 | F97: 0.04540578039 | G97: 0.02162028375 | H97: 0.04070499787 | I97: 0.05431468284 | J97: 0.05355568 | K97: 0.04715563621
A98: 97 | B98: 0.03869551628 | C98: 0.03766524309 | D98: 0.05098988377 | E98: 0.02996023413 | F98: 0.04427965741 | G98: 0.02192904345 | H98: 0.04091519067 | I98: 0.05464408818 | J98: 0.05424147823 | K98: 0.04763830723
A99: 98 | B99: 0.03838628127 | C99: 0.03755518714 | D99: 0.05204798894 | E99: 0.03018107247 | F99: 0.04434799912 | G99: 0.02205468463 | H99: 0.04209441699 | I99: 0.05481708142 | J99: 0.05397702103 | K99: 0.04878793325
A100: 99 | B100: 0.03867479471 | C100: 0.03765860151 | D100: 0.05230605814 | E100: 0.0300317188 | F100: 0.04366283707 | G100: 0.02213899782 | H100: 0.04191619119 | I100: 0.0558267972 | J100: 0.05522392821 | K100: 0.04988543167
A101: 100 | B101: 0.03833667284 | C101: 0.03748512294 | D101: 0.05237898638 | E101: 0.03016828634 | F101: 0.04327225213 | G101: 0.02211632082 | H101: 0.04205489281 | I101: 0.055420457 | J101: 0.05489070275 | K101: 0.04948808627
A102: 101 | B102: 0.03879179121 | C102: 0.03629382907 | D102: 0.05247354898 | E102: 0.02963908404 | F102: 0.04232132794 | G102: 0.02239065031 | H102: 0.04158309767 | I102: 0.05473957381 | J102: 0.05657286924 | K102: 0.04925516318
A103: 102 | B103: 0.03815977274 | C103: 0.03700867514 | D103: 0.05249981253 | E103: 0.02913117375 | F103: 0.04138729389 | G103: 0.02261788966 | H103: 0.0422777942 | I103: 0.05436296003 | J103: 0.05543093504 | K103: 0.0491319362
A104: 103 | B104: 0.03827170037 | C104: 0.03777114255 | D104: 0.05272203385 | E104: 0.02929044532 | F104: 0.04190862153 | G104: 0.02350178152 | H104: 0.04307068743 | I104: 0.05315510453 | J104: 0.05574595139 | K104: 0.04865924136
A105: 104 | B105: 0.03766123019 | C105: 0.03842414669 | D105: 0.05221059209 | E105: 0.02965484611 | F105: 0.04179127033 | G105: 0.02360658646 | H105: 0.04281771044 | I105: 0.05247491232 | J105: 0.05466298305 | K105: 0.04912025729
A106: 105 | B106: 0.03738186124 | C106: 0.03991710794 | D106: 0.05409557364 | E106: 0.02891353849 | F106: 0.04090732214 | G106: 0.02418838152 | H106: 0.04349779876 | I106: 0.05178396145 | J106: 0.05440891631 | K106: 0.05047677631
A107: 106 | B107: 0.03694696373 | C107: 0.0401567103 | D107: 0.05357183172 | E107: 0.02908429639 | F107: 0.04073114177 | G107: 0.02517960172 | H107: 0.04437710641 | I107: 0.05177663344 | J107: 0.05383569628 | K107: 0.05127189184
A108: 107 | B108: 0.03700267713 | C108: 0.04065113461 | D108: 0.05438410568 | E108: 0.02822808611 | F108: 0.0410179835 | G108: 0.02585991809 | H108: 0.04383923085 | I108: 0.05201938944 | J108: 0.05407789142 | K108: 0.05143059086
A109: 108 | B109: 0.03661789865 | C109: 0.0417549968 | D109: 0.05417295348 | E109: 0.02838001421 | F109: 0.04003709643 | G109: 0.02563720557 | H109: 0.04299061205 | I109: 0.05257204007 | J109: 0.05420668856 | K109: 0.05084040753
A110: 109 | B110: 0.03687123089 | C110: 0.04133938766 | D110: 0.05575013113 | E110: 0.02784651453 | F110: 0.04014376348 | G110: 0.02550831828 | H110: 0.04359196953 | I110: 0.0524545217 | J110: 0.05536794918 | K110: 0.05020300979
A111: 110 | B111: 0.03665474508 | C111: 0.0417698516 | D111: 0.05559614701 | E111: 0.02780697973 | F111: 0.03913744436 | G111: 0.02567400124 | H111: 0.04500201124 | I111: 0.05128852969 | J111: 0.05518759628 | K111: 0.04981408533
A112: 111 | B112: 0.03672618887 | C112: 0.04216784392 | D112: 0.05561304108 | E112: 0.02841382497 | F112: 0.03938862145 | G112: 0.0263235202 | H112: 0.04518161832 | I112: 0.05071314954 | J112: 0.05601754208 | K112: 0.04994988317
A113: 112 | B113: 0.03699261855 | C113: 0.04132338851 | D113: 0.05574630038 | E113: 0.02837128502 | F113: 0.03988058079 | G113: 0.02704897189 | H113: 0.04483090227 | I113: 0.04989392674 | J113: 0.05649376188 | K113: 0.0499648194
A114: 113 | B114: 0.03712252655 | C114: 0.04203406125 | D114: 0.05549671958 | E114: 0.02855310262 | F114: 0.03943647018 | G114: 0.02674200018 | H114: 0.04542279427 | I114: 0.04841305426 | J114: 0.05681288123 | K114: 0.04920000906
A115: 114 | B115: 0.03789872338 | C115: 0.04303167301 | D115: 0.05629250063 | E115: 0.02861022663 | F115: 0.03863471711 | G115: 0.02671160138 | H115: 0.04717171101 | I115: 0.04829517574 | J115: 0.05764160389 | K115: 0.04909218911
A116: 115 | B116: 0.03737951516 | C116: 0.0434454295 | D116: 0.05613853437 | E116: 0.02912234688 | F116: 0.03775365758 | G116: 0.02655985041 | H116: 0.04761605242 | I116: 0.04828943778 | J116: 0.05679889273 | K116: 0.04996782115
A117: 116 | B117: 0.03726413009 | C117: 0.04297540077 | D117: 0.05733552117 | E117: 0.02920512226 | F117: 0.03646764477 | G117: 0.02700877364 | H117: 0.04932541189 | I117: 0.04712475397 | J117: 0.05677850508 | K117: 0.05085699759
A118: 117 | B118: 0.03736418815 | C118: 0.04348261176 | D118: 0.05779810497 | E118: 0.0303056815 | F118: 0.03604257041 | G118: 0.02659694298 | H118: 0.04988991545 | I118: 0.04700173939 | J118: 0.05767484041 | K118: 0.05075505374
A119: 118 | B119: 0.03750981718 | C119: 0.04326010811 | D119: 0.05821642295 | E119: 0.03052031585 | F119: 0.0355488804 | G119: 0.02669981791 | H119: 0.05110473986 | I119: 0.04709811912 | J119: 0.05801029999 | K119: 0.05095707122
A120: 119 | B120: 0.03810721569 | C120: 0.04297826595 | D120: 0.05814971281 | E120: 0.03106228114 | F120: 0.0356577866 | G120: 0.02721574735 | H120: 0.05132515777 | I120: 0.04571852868 | J120: 0.05875802082 | K120: 0.05165435197
A121: 120 | B121: 0.03772438154 | C121: 0.04184957545 | D121: 0.0589490123 | E121: 0.02973235176 | F121: 0.03494995832 | G121: 0.02703478038 | H121: 0.0525670842 | I121: 0.04484651363 | J121: 0.05824446863 | K121: 0.05143601658
A122: 121 | B122: 0.0372042125 | C122: 0.04231500039 | D122: 0.05934020443 | E122: 0.03037127289 | F122: 0.0349074492 | G122: 0.0266462606 | H122: 0.05453894535 | I122: 0.04467142283 | J122: 0.05736794612 | K122: 0.05194712177
A123: 122 | B123: 0.03755493098 | C123: 0.04175116805 | D123: 0.05933749019 | E123: 0.02993708162 | F123: 0.03503300568 | G123: 0.02725436947 | H123: 0.05607931988 | I123: 0.04542655751 | J123: 0.05792754845 | K123: 0.05168001095
A124: 123 | B124: 0.03800097531 | C124: 0.04059837713 | D124: 0.05992015613 | E124: 0.02992877627 | F124: 0.03504349928 | G124: 0.02740537265 | H124: 0.05613485883 | I124: 0.04526861204 | J124: 0.05857036887 | K124: 0.05233661399
A125: 124 | B125: 0.03779571629 | C125: 0.04114292203 | D125: 0.06099760631 | E125: 0.03025069669 | F125: 0.03550227574 | G125: 0.02773084131 | H125: 0.05779763942 | I125: 0.04466670831 | J125: 0.05839537384 | K125: 0.05153702263
A126: 125 | B126: 0.0377620401 | C126: 0.04038799252 | D126: 0.06128525737 | E126: 0.03084477826 | F126: 0.0363078435 | G126: 0.02806809084 | H126: 0.05815630411 | I126: 0.04571656903 | J126: 0.05907067019 | K126: 0.05186029513
A127: 126 | B127: 0.03633805977 | C127: 0.04004941897 | D127: 0.06155644973 | E127: 0.0315313716 | F127: 0.03571971637 | G127: 0.02837070024 | H127: 0.06058586892 | I127: 0.04502784589 | J127: 0.06003610655 | K127: 0.05108940816
A128: 127 | B128: 0.035641635 | C128: 0.04140827648 | D128: 0.06120879008 | E128: 0.03100209001 | F128: 0.03569810619 | G128: 0.02878345629 | H128: 0.0606202518 | I128: 0.04431849149 | J128: 0.0618674932 | K128: 0.05089474404
A129: 128 | B129: 0.03637756453 | C129: 0.04264242374 | D129: 0.06296963532 | E129: 0.03108880347 | F129: 0.03571743885 | G129: 0.0288835525 | H129: 0.06098060279 | I129: 0.04476987559 | J129: 0.06269993563 | K129: 0.05044445321
A130: 129 | B130: 0.03626978574 | C130: 0.04292848054 | D130: 0.06326279403 | E130: 0.03106289923 | F130: 0.03608069549 | G130: 0.02883470215 | H130: 0.06113353485 | I130: 0.04436179271 | J130: 0.06259371091 | K130: 0.05069487099
A131: 130 | B131: 0.03604425482 | C131: 0.04321824407 | D131: 0.06477379063 | E131: 0.03029908272 | F131: 0.03509742049 | G131: 0.0289388524 | H131: 0.0618447039 | I131: 0.04471202021 | J131: 0.0628830644 | K131: 0.05031937204
A132: 131 | B132: 0.03583654354 | C132: 0.04272162603 | D132: 0.06411997675 | E132: 0.02969794067 | F132: 0.03585853909 | G132: 0.02829932707 | H132: 0.06334586484 | I132: 0.04441178248 | J132: 0.06319501015 | K132: 0.05079044881
A133: 132 | B133: 0.03559165479 | C133: 0.04250785395 | D133: 0.06428119121 | E133: 0.0299428728 | F133: 0.03565564423 | G133: 0.02822541458 | H133: 0.0627113861 | I133: 0.04425785058 | J133: 0.0634319446 | K133: 0.05067203698
A134: 133 | B134: 0.03547344673 | C134: 0.04267420676 | D134: 0.06317335137 | E134: 0.03035931576 | F134: 0.03591751098 | G134: 0.02813467494 | H134: 0.06279487075 | I134: 0.04325916915 | J134: 0.06389116117 | K134: 0.05093671421
A135: 134 | B135: 0.03497545975 | C135: 0.04208700802 | D135: 0.06329354215 | E135: 0.029998771 | F135: 0.03524260013 | G135: 0.02837510553 | H135: 0.06296473981 | I135: 0.04313016613 | J135: 0.06272287256 | K135: 0.05142060629
A136: 135 | B136: 0.03466899164 | C136: 0.04212657358 | D136: 0.06259713162 | E136: 0.02985002901 | F136: 0.03511349749 | G136: 0.02869009642 | H136: 0.06360245929 | I136: 0.04362062818 | J136: 0.06215282061 | K136: 0.05175436588
A137: 136 | B137: 0.03454137586 | C137: 0.04150856394 | D137: 0.06221267102 | E137: 0.02942350241 | F137: 0.03576478879 | G137: 0.02906594737 | H137: 0.06546577854 | I137: 0.04369613934 | J137: 0.06196993146 | K137: 0.05260398713
A138: 137 | B138: 0.0348932896 | C138: 0.04165487997 | D138: 0.06305016939 | E138: 0.02973835911 | F138: 0.03604449904 | G138: 0.02926554788 | H138: 0.06699988401 | I138: 0.04262482203 | J138: 0.06343151513 | K138: 0.05198349287
A139: 138 | B139: 0.03455274884 | C139: 0.04371778509 | D139: 0.06335095125 | E139: 0.02993744388 | F139: 0.03598109336 | G139: 0.02852177118 | H139: 0.06742876324 | I139: 0.04144662721 | J139: 0.06275396818 | K139: 0.05200552509
A140: 139 | B140: 0.03420038619 | C140: 0.04314380455 | D140: 0.0635363036 | E140: 0.03014832419 | F140: 0.03539350684 | G140: 0.02848351113 | H140: 0.06795049497 | I140: 0.04107511696 | J140: 0.06203904782 | K140: 0.05230357786
A141: 140 | B141: 0.03424312116 | C141: 0.04142536079 | D141: 0.06343298555 | E141: 0.03032056559 | F141: 0.03505987045 | G141: 0.02825415374 | H141: 0.07114321174 | I141: 0.04186458797 | J141: 0.06215316644 | K141: 0.05265477512
A142: 141 | B142: 0.03404124148 | C142: 0.04234524907 | D142: 0.06416510301 | E142: 0.03061123586 | F142: 0.03474674729 | G142: 0.02886153944 | H142: 0.07076656134 | I142: 0.04132617472 | J142: 0.06242431885 | K142: 0.05341666331
A143: 142 | B143: 0.03390774321 | C143: 0.04283994035 | D143: 0.06475742437 | E143: 0.03056645729 | F143: 0.03439998498 | G143: 0.02903774937 | H143: 0.07158233422 | I143: 0.04056701101 | J143: 0.06281531553 | K143: 0.05303283201
A144: 143 | B144: 0.03358014024 | C144: 0.04219871634 | D144: 0.06341686573 | E144: 0.03066620654 | F144: 0.03417898503 | G144: 0.02926065965 | H144: 0.0728111722 | I144: 0.03970065522 | J144: 0.06284072474 | K144: 0.05239117192
A145: 144 | B145: 0.03391205185 | C145: 0.0414341185 | D145: 0.0636862249 | E145: 0.03093149339 | F145: 0.03357921814 | G145: 0.03012358349 | H145: 0.07350308631 | I145: 0.03921087734 | J145: 0.06424990947 | K145: 0.05295844779
A146: 145 | B146: 0.03363322168 | C146: 0.04144983522 | D146: 0.06538843109 | E146: 0.03016080644 | F146: 0.03271391935 | G146: 0.03028131762 | H146: 0.07257570832 | I146: 0.03922796976 | J146: 0.0636638413 | K146: 0.05361088221
A147: 146 | B147: 0.03470805962 | C147: 0.04097651984 | D147: 0.06410858634 | E147: 0.03023352416 | F147: 0.03216261954 | G147: 0.03053491024 | H147: 0.07520095831 | I147: 0.03798228293 | J147: 0.06364641057 | K147: 0.05349847255
A148: 147 | B148: 0.03537594762 | C148: 0.04084071424 | D148: 0.06614756504 | E148: 0.03028963073 | F148: 0.0323695594 | G148: 0.03115619922 | H148: 0.07801987369 | I148: 0.03756559105 | J148: 0.06375345808 | K148: 0.05362339979
A149: 148 | B149: 0.0353266702 | C149: 0.04087334041 | D149: 0.06567469122 | E149: 0.03075105914 | F149: 0.03145410678 | G149: 0.03059414151 | H149: 0.08056463353 | I149: 0.03681496661 | J149: 0.06491270978 | K149: 0.05463140186
A150: 149 | B150: 0.03499774461 | C150: 0.04079584085 | D150: 0.06540627596 | E150: 0.03093344248 | F150: 0.03138229812 | G150: 0.0307022618 | H150: 0.07920747126 | I150: 0.03635093003 | J150: 0.0648750606 | K150: 0.05332171291
A151: 150 | B151: 0.03520697969 | C151: 0.04106760036 | D151: 0.06585398856 | E151: 0.03118129877 | F151: 0.03146701152 | G151: 0.03110928835 | H151: 0.0808026659 | I151: 0.0365989026 | J151: 0.06504532326 | K151: 0.05416886116
A152: 151 | B152: 0.03514640529 | C152: 0.04005184229 | D152: 0.06775282867 | E152: 0.03123759699 | F152: 0.03136272836 | G152: 0.03122833351 | H152: 0.08298158078 | I152: 0.03663772166 | J152: 0.06588610367 | K152: 0.05415580037
A153: 152 | B153: 0.03486280691 | C153: 0.03915819691 | D153: 0.070014396 | E153: 0.03039122447 | F153: 0.03184878344 | G153: 0.0310163791 | H153: 0.08098741413 | I153: 0.0360715362 | J153: 0.06653979191 | K153: 0.05395797712
A154: 153 | B154: 0.03492636209 | C154: 0.03907965156 | D154: 0.06934448216 | E154: 0.03049808605 | F154: 0.03134652036 | G154: 0.03144393236 | H154: 0.0813240541 | I154: 0.03556956125 | J154: 0.0665311207 | K154: 0.05378540417
A155: 154 | B155: 0.03534664004 | C155: 0.0390413914 | D155: 0.06929465096 | E155: 0.03010870306 | F155: 0.03218506569 | G155: 0.03114948742 | H155: 0.08336540279 | I155: 0.03393270037 | J155: 0.06715771569 | K155: 0.05341074369
A156: 155 | B156: 0.03522989295 | C156: 0.03926960241 | D156: 0.06895764153 | E156: 0.02965748208 | F156: 0.03245666086 | G156: 0.03081550505 | H156: 0.08536200936 | I156: 0.03350093848 | J156: 0.06641172753 | K156: 0.05266552112
A157: 156 | B157: 0.03510660231 | C157: 0.03863458303 | D157: 0.07018298052 | E157: 0.03001963533 | F157: 0.03230647752 | G157: 0.03117415482 | H157: 0.08487861118 | I157: 0.03320484643 | J157: 0.06569249952 | K157: 0.05182082685
A158: 157 | B158: 0.03466771936 | C158: 0.03901922824 | D158: 0.06931318076 | E158: 0.03011090321 | F158: 0.0322176045 | G158: 0.03111915246 | H158: 0.08767101731 | I158: 0.03318663085 | J158: 0.06636073564 | K158: 0.05159883558
A159: 158 | B159: 0.03424304792 | C159: 0.03875077546 | D159: 0.0695932273 | E159: 0.03090318295 | F159: 0.03261034617 | G159: 0.03145165097 | H159: 0.09178131214 | I159: 0.03291542654 | J159: 0.06756488142 | K159: 0.0504025458
A160: 159 | B160: 0.03453826723 | C160: 0.0390223826 | D160: 0.07102555232 | E160: 0.03124985673 | F160: 0.03244346885 | G160: 0.03147074067 | H160: 0.09391943467 | I160: 0.03209387628 | J160: 0.0664993624 | K160: 0.04920613486
A161: 160 | B161: 0.03553430681 | C161: 0.03874815676 | D161: 0.07061320132 | E161: 0.03136741283 | F161: 0.03239287466 | G161: 0.03158046128 | H161: 0.0941110151 | I161: 0.03158564081 | J161: 0.06702683757 | K161: 0.04868588697
A162: 161 | B162: 0.0349815511 | C162: 0.03865230423 | D162: 0.06977528722 | E162: 0.03187171015 | F162: 0.03265946812 | G162: 0.03253800221 | H162: 0.09650883209 | I162: 0.03110494616 | J162: 0.06515369579 | K162: 0.04781951558
A163: 162 | B163: 0.0351787967 | C163: 0.03914802942 | D163: 0.07152333743 | E163: 0.03118952098 | F163: 0.03321997324 | G163: 0.03264384874 | H163: 0.09721932521 | I163: 0.03059604386 | J163: 0.06563362161 | K163: 0.04708148229
A164: 163 | B164: 0.03448704789 | C164: 0.04049379767 | D164: 0.07192490451 | E164: 0.03147525135 | F164: 0.03298107454 | G164: 0.03301136796 | H164: 0.09778519075 | I164: 0.03021746946 | J164: 0.06452024691 | K164: 0.04602221239
A165: 164 | B165: 0.03465328569 | C165: 0.04088918024 | D165: 0.07279825576 | E165: 0.03175125969 | F165: 0.03307808165 | G165: 0.03323097678 | H165: 0.096619064 | I165: 0.03037642376 | J165: 0.06455292816 | K165: 0.0458700138
A166: 165 | B166: 0.03409634784 | C166: 0.0406625342 | D166: 0.0737047534 | E166: 0.03173058632 | F166: 0.03286188887 | G166: 0.0340401182 | H166: 0.09893982051 | I166: 0.03084272349 | J166: 0.06608201596 | K166: 0.04494418051
A167: 166 | B167: 0.03400730428 | C167: 0.04029666078 | D167: 0.07451484478 | E167: 0.03171321181 | F167: 0.034035976 | G167: 0.03470612788 | H167: 0.09881592103 | I167: 0.0300085283 | J167: 0.06610742431 | K167: 0.04509881339
A168: 167 | B168: 0.03424191037 | C168: 0.03995557646 | D168: 0.07563756516 | E168: 0.03063633723 | F168: 0.03414200762 | G168: 0.03457328172 | H168: 0.09751622799 | I168: 0.02997129396 | J168: 0.06665478428 | K168: 0.04516524397
A169: 168 | B169: 0.03415603253 | C169: 0.03956943351 | D169: 0.07590534755 | E169: 0.03023828111 | F169: 0.03500488971 | G169: 0.03499184512 | H169: 0.1000673795 | I169: 0.03003348406 | J169: 0.06691105886 | K169: 0.04463596317
A170: 169 | B170: 0.03401105669 | C170: 0.03934018465 | D170: 0.07579505984 | E170: 0.03016170129 | F170: 0.03578875026 | G170: 0.0347886411 | H170: 0.09943962291 | I170: 0.03028546292 | J170: 0.06822940663 | K170: 0.04371050795
A171: 170 | B171: 0.03372500127 | C171: 0.03855025047 | D171: 0.0760730761 | E171: 0.03091578643 | F171: 0.03574309627 | G171: 0.03428974007 | H171: 0.09973137787 | I171: 0.03060288998 | J171: 0.06854628166 | K171: 0.04348832579
A172: 171 | B172: 0.0338931397 | C172: 0.03946823036 | D172: 0.07481276938 | E172: 0.03073513163 | F172: 0.0350943297 | G172: 0.03348936687 | H172: 0.0977187506 | I172: 0.03069669041 | J172: 0.07118141516 | K172: 0.0429809645
A173: 172 | B173: 0.03397727764 | C173: 0.03868768852 | D173: 0.07463559457 | E173: 0.03141164361 | F173: 0.03564104997 | G173: 0.03330821756 | H173: 0.09557245738 | I173: 0.03138152533 | J173: 0.07512535758 | K173: 0.04217644964
A174: 173 | B174: 0.03327789842 | C174: 0.03889953994 | D174: 0.0744171353 | E174: 0.03129876923 | F174: 0.03537527461 | G174: 0.03354311519 | H174: 0.09743529319 | I174: 0.0326421984 | J174: 0.07709513526 | K174: 0.04183473234
A175: 174 | B175: 0.03355799421 | C175: 0.03837751492 | D175: 0.0750548987 | E175: 0.0315945292 | F175: 0.03593698152 | G175: 0.03421110965 | H175: 0.09932475427 | I175: 0.0335667868 | J175: 0.07634489734 | K175: 0.04180718169
A176: 175 | B176: 0.03246305767 | C176: 0.03909444572 | D176: 0.07589861817 | E176: 0.03247856707 | F176: 0.03522081981 | G176: 0.03405364469 | H176: 0.09939202005 | I176: 0.03408449393 | J176: 0.07667562222 | K176: 0.04127243507
A177: 176 | B177: 0.03182593064 | C177: 0.03862400922 | D177: 0.076915112 | E177: 0.03277754499 | F177: 0.03404608182 | G177: 0.03333246261 | H177: 0.1000797292 | I177: 0.03409977385 | J177: 0.07785241213 | K177: 0.04074031755
A178: 177 | B178: 0.03101015564 | C178: 0.03828378998 | D178: 0.07744210344 | E178: 0.0330066441 | F178: 0.03375686301 | G178: 0.03310517226 | H178: 0.1016736985 | I178: 0.03420111067 | J178: 0.07973331759 | K178: 0.03972285574
A179: 178 | B179: 0.03064972441 | C179: 0.03803129107 | D179: 0.07681569436 | E179: 0.03308590451 | F179: 0.03339880345 | G179: 0.03346285989 | H179: 0.1014811422 | I179: 0.03483699901 | J179: 0.08186226661 | K179: 0.03875010402
A180: 179 | B180: 0.03066849558 | C180: 0.03751828197 | D180: 0.07776691218 | E180: 0.03377666471 | F180: 0.03360263447 | G180: 0.03369269356 | H180: 0.1027539356 | I180: 0.03482101661 | J180: 0.08083825518 | K180: 0.03867283788
A181: 180 | B181: 0.03063810257 | C181: 0.03772190091 | D181: 0.07741105868 | E181: 0.03430780298 | F181: 0.03303074509 | G181: 0.03331448906 | H181: 0.1024449764 | I181: 0.03497137594 | J181: 0.0814167351 | K181: 0.03886702137
A182: 181 | B182: 0.03145331534 | C182: 0.03813611533 | D182: 0.07718884111 | E182: 0.03403844186 | F182: 0.03309090026 | G182: 0.03301532655 | H182: 0.1039766045 | I182: 0.03548945195 | J182: 0.08169838092 | K182: 0.03762410924
A183: 182 | B183: 0.03030169535 | C183: 0.03846408204 | D183: 0.080087975 | E183: 0.03537373643 | F183: 0.03296675654 | G183: 0.03356395029 | H183: 0.1019951134 | I183: 0.03592295516 | J183: 0.08001348937 | K183: 0.0374879712
A184: 183 | B184: 0.02982687044 | C184: 0.03844409235 | D184: 0.07966442785 | E184: 0.03491709831 | F184: 0.03275620201 | G184: 0.03328362632 | H184: 0.1018852138 | I184: 0.03578406244 | J184: 0.07874830505 | K184: 0.03815868688
A185: 184 | B185: 0.0298931009 | C185: 0.03901693375 | D185: 0.07950553457 | E185: 0.03464545543 | F185: 0.03281604206 | G185: 0.03316798358 | H185: 0.100050288 | I185: 0.03612091585 | J185: 0.07972657616 | K185: 0.03798520665
A186: 185 | B186: 0.02955268966 | C186: 0.03932714799 | D186: 0.08043206243 | E186: 0.03426997978 | F186: 0.03358989618 | G186: 0.03325115875 | H186: 0.1040016376 | I186: 0.03718493175 | J186: 0.08116468194 | K186: 0.03663026595
A187: 186 | B187: 0.02989618484 | C187: 0.03935669736 | D187: 0.07843007337 | E187: 0.03420164513 | F187: 0.0331521483 | G187: 0.03306936661 | H187: 0.1064892719 | I187: 0.03827357536 | J187: 0.08052388883 | K187: 0.03622725955
A188: 187 | B188: 0.02936144316 | C188: 0.03979378059 | D188: 0.07791552459 | E188: 0.03457715645 | F188: 0.03323918069 | G188: 0.03372041908 | H188: 0.1061141767 | I188: 0.0386258027 | J188: 0.08044506386 | K188: 0.03613726373
A189: 188 | B189: 0.02959156132 | C189: 0.04053322093 | D189: 0.07819460016 | E189: 0.03498630247 | F189: 0.03303705843 | G189: 0.03296011476 | H189: 0.1054244207 | I189: 0.03921015881 | J189: 0.07960639167 | K189: 0.03575095272
A190: 189 | B190: 0.03003661382 | C190: 0.04077350331 | D190: 0.07772160419 | E190: 0.03457571453 | F190: 0.03305466545 | G190: 0.0322895662 | H190: 0.106617972 | I190: 0.04018120534 | J190: 0.08077170017 | K190: 0.03530540849
A191: 190 | B191: 0.02967456544 | C191: 0.04100227618 | D191: 0.07648517372 | E191: 0.03529372573 | F191: 0.03223819382 | G191: 0.031348288 | H191: 0.1065601072 | I191: 0.04044477248 | J191: 0.08162612777 | K191: 0.03468841112
A192: 191 | B192: 0.02950097656 | C192: 0.04075063053 | D192: 0.07682945171 | E192: 0.03546602029 | F192: 0.03297959647 | G192: 0.03094412325 | H192: 0.1066740924 | I192: 0.04128377382 | J192: 0.08251439646 | K192: 0.03456613231
A193: 192 | B193: 0.02908928944 | C193: 0.04181862273 | D193: 0.07545206881 | E193: 0.03493315502 | F193: 0.03290355508 | G193: 0.03115887162 | H193: 0.1071324117 | I193: 0.04150582946 | J193: 0.08329847689 | K193: 0.03437489032
A194: 193 | B194: 0.02940127162 | C194: 0.04206453901 | D194: 0.07402356306 | E194: 0.0349407076 | F194: 0.03287138816 | G194: 0.03152717406 | H194: 0.1044409068 | I194: 0.04247172136 | J194: 0.08440946196 | K194: 0.03493127658
A195: 194 | B195: 0.02957965703 | C195: 0.04303311284 | D195: 0.07420612329 | E195: 0.03405491778 | F195: 0.03235857009 | G195: 0.03209851098 | H195: 0.1020133148 | I195: 0.04224956915 | J195: 0.08459626268 | K195: 0.03489078284
A196: 195 | B196: 0.02977113449 | C196: 0.04248438184 | D196: 0.07340281332 | E196: 0.03368233039 | F196: 0.03234894892 | G196: 0.03213725624 | H196: 0.1015489015 | I196: 0.04294917986 | J196: 0.08518098215 | K196: 0.03516832015
A197: 196 | B197: 0.02992024028 | C197: 0.04263964236 | D197: 0.07352535481 | E197: 0.03384758776 | F197: 0.0324679725 | G197: 0.03247003909 | H197: 0.1011937114 | I197: 0.04273259486 | J197: 0.08622591288 | K197: 0.03575545823
A198: 197 | B198: 0.03020322686 | C198: 0.04428996126 | D198: 0.07290999856 | E198: 0.03420854203 | F198: 0.03282765982 | G198: 0.03278392353 | H198: 0.1015484772 | I198: 0.0429944579 | J198: 0.08435992512 | K198: 0.03611379358
A199: 198 | B199: 0.03012924952 | C199: 0.04439291667 | D199: 0.07251190744 | E199: 0.03431288956 | F199: 0.03288291272 | G199: 0.03370410978 | H199: 0.09972363736 | I199: 0.04303272248 | J199: 0.08486018217 | K199: 0.03521943198
A200: 199 | B200: 0.02991014962 | C200: 0.04370350421 | D200: 0.06971924822 | E200: 0.03375043348 | F200: 0.03245374765 | G200: 0.03285621901 | H200: 0.1005135246 | I200: 0.04366820093 | J200: 0.08531256575 | K200: 0.03491825749
... 512 more rows

Sheet Monthly Index
A1: Months | B1: Skewness Index | C1: Kurt Index | D1: 6th Moment Index
A2: 1 | B2: 0 | C2: 0 | D2: 0
A3: 2 | B3: 5.036694408e-05 | C3: 0.002572647483 | D3: 0.0003987193817
A4: 3 | B4: 0.001136215608 | C4: 0.004075348755 | D4: 0.0007360887338
A5: 4 | B5: 0.0005834377091 | C5: 0.005917645274 | D5: 0.001498639115
A6: 5 | B6: -0.0002165115952 | C6: 0.007004699688 | D6: 0.001967529633
A7: 6 | B7: 0.0001102961257 | C7: 0.007505261159 | D7: 0.001923645735
A8: 7 | B8: 0.0005619651793 | C8: 0.008764962748 | D8: 0.002496173985
A9: 8 | B9: 0.001200843233 | C9: 0.00900677446 | D9: 0.002491713435
A10: 9 | B10: 0.002704011021 | C10: 0.01106407698 | D10: 0.004437896052
A11: 10 | B11: 0.0015840561 | C11: 0.01093102686 | D11: 0.003788643665
A12: 11 | B12: 0.002077784515 | C12: 0.01190606038 | D12: 0.004987313225
A13: 12 | B13: 0.00264708618 | C13: 0.01297687804 | D13: 0.006147945567
A14: 13 | B14: 0.003129749601 | C14: 0.01559705105 | D14: 0.009573903273
A15: 14 | B15: 0.003112327257 | C15: 0.01828937993 | D15: 0.01510256028
A16: 15 | B16: 0.005119329821 | C16: 0.02158789654 | D16: 0.02238218531
A17: 16 | B17: 0.005181098557 | C17: 0.02291865221 | D17: 0.02046510809
A18: 17 | B18: 0.005106562809 | C18: 0.02350918775 | D18: 0.02165859863
A19: 18 | B19: 0.004908518064 | C19: 0.02624953619 | D19: 0.02749440039
A20: 19 | B20: 0.005816438282 | C20: 0.02881346485 | D20: 0.03523579306
A21: 20 | B21: 0.00540291736 | C21: 0.03179179598 | D21: 0.04872968131
A22: 21 | B22: 0.004681588205 | C22: 0.03066574464 | D22: 0.03936559351
A23: 22 | B23: 0.004621579332 | C23: 0.03227531089 | D23: 0.04303387271
A24: 23 | B24: 0.005766934079 | C24: 0.03462138267 | D24: 0.04621387478
A25: 24 | B25: 0.007093897278 | C25: 0.03892100559 | D25: 0.06345503014
A26: 25 | B26: 0.009901961349 | C26: 0.04604467864 | D26: 0.1019925434
A27: 26 | B27: 0.01087951923 | C27: 0.04870566736 | D27: 0.1121438079
A28: 27 | B28: 0.01108539334 | C28: 0.05152635308 | D28: 0.1313115931
A29: 28 | B29: 0.01015342296 | C29: 0.04959426958 | D29: 0.1120397271
A30: 29 | B30: 0.01015952746 | C30: 0.04938063739 | D30: 0.1054742953
A31: 30 | B31: 0.00815935007 | C31: 0.04735277373 | D31: 0.08851452657
A32: 31 | B32: 0.01016728061 | C32: 0.04930514585 | D32: 0.09553049147
A33: 32 | B33: 0.009704903928 | C33: 0.04971598698 | D33: 0.09738877216
A34: 33 | B34: 0.01183244701 | C34: 0.05272466146 | D34: 0.1096769798
A35: 34 | B35: 0.01189074472 | C35: 0.05362166917 | D35: 0.1145236474
A36: 35 | B36: 0.01066294442 | C36: 0.05455150962 | D36: 0.1238991305
A37: 36 | B37: 0.01153689723 | C37: 0.05495212547 | D37: 0.1194646832
A38: 37 | B38: 0.01234925503 | C38: 0.05628092491 | D38: 0.123546522
A39: 38 | B39: 0.01385516753 | C39: 0.05913041211 | D39: 0.1347481551
A40: 39 | B40: 0.01263439753 | C40: 0.05580586507 | D40: 0.10966882
A41: 40 | B41: 0.01305544215 | C41: 0.05756790317 | D41: 0.1164328352
A42: 41 | B42: 0.01350400052 | C42: 0.05870164161 | D42: 0.1199185438
A43: 42 | B43: 0.01484265693 | C43: 0.06148135451 | D43: 0.1365238263
A44: 43 | B44: 0.01570570626 | C44: 0.06438599192 | D44: 0.1500072723
A45: 44 | B45: 0.01642562947 | C45: 0.06644385198 | D45: 0.1626934843
A46: 45 | B46: 0.01735936886 | C46: 0.06735406026 | D46: 0.1634794857
A47: 46 | B47: 0.01622939792 | C47: 0.06207045637 | D47: 0.120665633
A48: 47 | B48: 0.01786418867 | C48: 0.06425331222 | D48: 0.1285017508
A49: 48 | B49: 0.01805477841 | C49: 0.06381643641 | D49: 0.1167233742
A50: 49 | B50: 0.01908007207 | C50: 0.06427137559 | D50: 0.1079329527
A51: 50 | B51: 0.01955645858 | C51: 0.0660235043 | D51: 0.1157834074
A52: 51 | B52: 0.02126438082 | C52: 0.06803193301 | D52: 0.1179600166
A53: 52 | B53: 0.02276389422 | C53: 0.072002622 | D53: 0.1389549003
A54: 53 | B54: 0.02647936811 | C54: 0.0783545939 | D54: 0.159617676
A55: 54 | B55: 0.0271772917 | C55: 0.0788699211 | D55: 0.15693322
A56: 55 | B56: 0.02857866403 | C56: 0.081537737 | D56: 0.1692979185
A57: 56 | B57: 0.02796304698 | C57: 0.07890591023 | D57: 0.1446557736
A58: 57 | B58: 0.03027085873 | C58: 0.08212309169 | D58: 0.1450877002
A59: 58 | B59: 0.03212118183 | C59: 0.085033629 | D59: 0.146122038
A60: 59 | B60: 0.03310088367 | C60: 0.08669146477 | D60: 0.1426500354
A61: 60 | B61: 0.03518285862 | C61: 0.09025839822 | D61: 0.1399777863
A62: 61 | B62: 0.03799030062 | C62: 0.09734860049 | D62: 0.1572294589
A63: 62 | B63: 0.0368554083 | C63: 0.0934564457 | D63: 0.1344465013
A64: 63 | B64: 0.0359398402 | C64: 0.09187332177 | D64: 0.125482289
A65: 64 | B65: 0.03790392471 | C65: 0.09778911225 | D65: 0.135619965
A66: 65 | B66: 0.0385398484 | C66: 0.09769945409 | D66: 0.1217851566
A67: 66 | B67: 0.04063437439 | C67: 0.1033039329 | D67: 0.1241376396
A68: 67 | B68: 0.04177255074 | C68: 0.1043128596 | D68: 0.1143661479
A69: 68 | B69: 0.04262865036 | C69: 0.1072753626 | D69: 0.1147240366
A70: 69 | B70: 0.04538010903 | C70: 0.1159565352 | D70: 0.1238890035
A71: 70 | B71: 0.0459142519 | C71: 0.1166314692 | D71: 0.1167517992
A72: 71 | B72: 0.04743562096 | C72: 0.1196527709 | D72: 0.1082151222
A73: 72 | B73: 0.04823041118 | C73: 0.1216480003 | D73: 0.1003381613
A74: 73 | B74: 0.05071534369 | C74: 0.1283272874 | D74: 0.100616245
A75: 74 | B75: 0.05254763048 | C75: 0.133327043 | D75: 0.0969191826
A76: 75 | B76: 0.05363388308 | C76: 0.134743379 | D76: 0.08734409258
A77: 76 | B77: 0.05627490067 | C77: 0.1433141552 | D77: 0.08958686526
A78: 77 | B78: 0.05536341569 | C78: 0.1386956605 | D78: 0.0763095518
A79: 78 | B79: 0.05648085001 | C79: 0.1381559462 | D79: 0.06216625967
A80: 79 | B80: 0.05554317907 | C80: 0.134052831 | D80: 0.05350563847
A81: 80 | B81: 0.05643081742 | C81: 0.1368685792 | D81: 0.05065170755
A82: 81 | B82: 0.05760362736 | C82: 0.1406388911 | D82: 0.05012972514
A83: 82 | B83: 0.05989810641 | C83: 0.1457310739 | D83: 0.04574735179
A84: 83 | B84: 0.06091490247 | C84: 0.1458658649 | D84: 0.03939373694
A85: 84 | B85: 0.06144180674 | C85: 0.1446074876 | D85: 0.03441065142
A86: 85 | B86: 0.06212563356 | C86: 0.1453650575 | D86: 0.03143780663
A87: 86 | B87: 0.0644024276 | C87: 0.1511501333 | D87: 0.02936536613
A88: 87 | B88: 0.06592613291 | C88: 0.1558818146 | D88: 0.02879112722
A89: 88 | B89: 0.0659976993 | C89: 0.1524899569 | D89: 0.02427442502
A90: 89 | B90: 0.06644291456 | C90: 0.1517548896 | D90: 0.02145743944
A91: 90 | B91: 0.07306075263 | C91: 0.1729728613 | D91: 0.02353345144
A92: 91 | B92: 0.07142515027 | C92: 0.1661087617 | D92: 0.0208912175
A93: 92 | B93: 0.07170313375 | C93: 0.1656333133 | D93: 0.01922091727
A94: 93 | B94: 0.0690430814 | C94: 0.153793557 | D94: 0.01495087503
A95: 94 | B95: 0.07026038855 | C95: 0.1547433824 | D95: 0.01352047761
A96: 95 | B96: 0.07157664279 | C96: 0.1583330824 | D96: 0.01264950225
A97: 96 | B97: 0.07313165639 | C97: 0.1612778189 | D97: 0.01161885787
A98: 97 | B98: 0.06914916091 | C98: 0.1471438218 | D98: 0.009001598414
A99: 98 | B99: 0.06896300628 | C99: 0.1440101957 | D99: 0.007651338314
A100: 99 | B100: 0.06914248789 | C100: 0.1416969128 | D100: 0.006574474389
A101: 100 | B101: 0.070142091 | C101: 0.1429293866 | D101: 0.005890604475
A102: 101 | B102: 0.06921609162 | C102: 0.1382301286 | D102: 0.004992180684
A103: 102 | B103: 0.06889885543 | C103: 0.1360991185 | D103: 0.00454398064
A104: 103 | B104: 0.06835606924 | C104: 0.1335412405 | D104: 0.004044423499
A105: 104 | B105: 0.07027976431 | C105: 0.1388193466 | D105: 0.004016103359
A106: 105 | B106: 0.06965907731 | C106: 0.1358976264 | D106: 0.003554106371
A107: 106 | B107: 0.06760616195 | C107: 0.1287473463 | D107: 0.002974435267
A108: 107 | B108: 0.06780102567 | C108: 0.1298349066 | D108: 0.002918405986
A109: 108 | B109: 0.06816624038 | C109: 0.1289539871 | D109: 0.002545243355
A110: 109 | B110: 0.0679333495 | C110: 0.1260681099 | D110: 0.002140623897
A111: 110 | B111: 0.07062687437 | C111: 0.1313393567 | D111: 0.002034742806
A112: 111 | B112: 0.07089620049 | C112: 0.133267231 | D112: 0.002091014379
A113: 112 | B113: 0.07122456236 | C113: 0.134640121 | D113: 0.002042490479
A114: 113 | B114: 0.07090492366 | C114: 0.1303935869 | D114: 0.001650082048
A115: 114 | B115: 0.07157468426 | C115: 0.1314160547 | D115: 0.001555263732
A116: 115 | B116: 0.07143483457 | C116: 0.1310119165 | D116: 0.00149286423
A117: 116 | B117: 0.07273797373 | C117: 0.1343876363 | D117: 0.001461949048
A118: 117 | B118: 0.07136598509 | C118: 0.1310721785 | D118: 0.001394902037
A119: 118 | B119: 0.07336606439 | C119: 0.1358229421 | D119: 0.001399335848
A120: 119 | B120: 0.07476130152 | C120: 0.1392036462 | D120: 0.001391316853
A121: 120 | B121: 0.07605880415 | C121: 0.1429230319 | D121: 0.001421474588
A122: 121 | B122: 0.07788607111 | C122: 0.1488447387 | D122: 0.00146612165
A123: 122 | B123: 0.08033404737 | C123: 0.1563647055 | D123: 0.001534878718
A124: 123 | B124: 0.0812440283 | C124: 0.1605834538 | D124: 0.001621412621
A125: 124 | B125: 0.08024018761 | C125: 0.1581871382 | D125: 0.00160925189
A126: 125 | B126: 0.08159281828 | C126: 0.1630377303 | D126: 0.001645322395
A127: 126 | B127: 0.08254412387 | C127: 0.1643933636 | D127: 0.001558737562
A128: 127 | B128: 0.08215408139 | C128: 0.1609644776 | D128: 0.001380007588
A129: 128 | B129: 0.08193142431 | C129: 0.1580868633 | D129: 0.001223659455
A130: 129 | B130: 0.0837140932 | C130: 0.1639694986 | D130: 0.00127401754
A131: 130 | B131: 0.08336205535 | C131: 0.1611637623 | D131: 0.001142172183
A132: 131 | B132: 0.08204136645 | C132: 0.1569957734 | D132: 0.001088518592
A133: 132 | B133: 0.08313016556 | C133: 0.1623132456 | D133: 0.001180804369
A134: 133 | B134: 0.08284895742 | C134: 0.1607035487 | D134: 0.001096996266
A135: 134 | B135: 0.08407826097 | C135: 0.1639610496 | D135: 0.00106711161
A136: 135 | B136: 0.08243603331 | C136: 0.159062269 | D136: 0.001010788354
A137: 136 | B137: 0.08253065198 | C137: 0.1580510647 | D137: 0.0009196308546
A138: 137 | B138: 0.08326308277 | C138: 0.1603174861 | D138: 0.0009163135272
A139: 138 | B139: 0.08314587712 | C139: 0.1593515594 | D139: 0.0008677337044
A140: 139 | B140: 0.08253739651 | C140: 0.1569106212 | D140: 0.0008141514598
A141: 140 | B141: 0.08324605837 | C141: 0.157983075 | D141: 0.0007551450771
A142: 141 | B142: 0.08445484962 | C142: 0.1610238712 | D142: 0.0007419502533
A143: 142 | B143: 0.08627597232 | C143: 0.166616794 | D143: 0.0007567627714
A144: 143 | B144: 0.08714896696 | C144: 0.1695937851 | D144: 0.0007466164347
A145: 144 | B145: 0.08643611698 | C145: 0.1674800225 | D145: 0.0007134908854
A146: 145 | B146: 0.08521569051 | C146: 0.1629731904 | D146: 0.0006651892402
A147: 146 | B147: 0.08307910138 | C147: 0.1566891579 | D147: 0.0006264078746
A148: 147 | B148: 0.08284231418 | C148: 0.1553453242 | D148: 0.0005911455476
A149: 148 | B149: 0.0842106426 | C149: 0.1604834257 | D149: 0.000637023573
A150: 149 | B150: 0.08285222887 | C150: 0.1557502464 | D150: 0.0005928691691
A151: 150 | B151: 0.08269827503 | C151: 0.1568901397 | D151: 0.0006232441687
A152: 151 | B152: 0.08172868873 | C152: 0.1543792286 | D152: 0.0006046868628
A153: 152 | B153: 0.08104854749 | C153: 0.1515618856 | D153: 0.0005723856546
A154: 153 | B154: 0.08032786921 | C154: 0.1490249846 | D154: 0.0005525251278
A155: 154 | B155: 0.07922945585 | C155: 0.1464708903 | D155: 0.0005408301025
A156: 155 | B156: 0.07896966 | C156: 0.146109164 | D156: 0.0005460403783
A157: 156 | B157: 0.07755726182 | C157: 0.1423324604 | D157: 0.0005182103998
A158: 157 | B158: 0.07647021717 | C158: 0.1379180341 | D158: 0.0004785998824
A159: 158 | B159: 0.07595225883 | C159: 0.1358140026 | D159: 0.0004486800319
A160: 159 | B160: 0.07581044841 | C160: 0.1365350444 | D160: 0.0004655930452
A161: 160 | B161: 0.07498594165 | C161: 0.1345975363 | D161: 0.0004630350167
A162: 161 | B162: 0.07690803072 | C162: 0.1416818499 | D162: 0.000521325312
A163: 162 | B163: 0.07783648476 | C163: 0.1424359748 | D163: 0.0004940178703
A164: 163 | B164: 0.07757338403 | C164: 0.141503606 | D164: 0.0004763469515
A165: 164 | B165: 0.07762105362 | C165: 0.1421652701 | D165: 0.0004793671346
A166: 165 | B166: 0.07680407078 | C166: 0.1399447707 | D166: 0.0004629481003
A167: 166 | B167: 0.07618889898 | C167: 0.140288653 | D167: 0.0004966255041
A168: 167 | B168: 0.07609381055 | C168: 0.140178213 | D168: 0.0004980848851
A169: 168 | B169: 0.07848481433 | C169: 0.1477526991 | D169: 0.0005368915934
A170: 169 | B170: 0.07846242328 | C170: 0.1478211327 | D170: 0.0005329823737
A171: 170 | B171: 0.07955175101 | C171: 0.1506943331 | D171: 0.0005458113367
A172: 171 | B172: 0.07890105341 | C172: 0.148441696 | D172: 0.0005321589697
A173: 172 | B173: 0.07956443688 | C173: 0.1520448345 | D173: 0.0005763800107
A174: 173 | B174: 0.07897209979 | C174: 0.1522231683 | D174: 0.0006105397237
A175: 174 | B175: 0.07858789551 | C175: 0.1509921334 | D175: 0.0006004494709
A176: 175 | B176: 0.07940984201 | C176: 0.1528882967 | D176: 0.0005995581758
A177: 176 | B177: 0.07834424732 | C177: 0.1479134349 | D177: 0.0005484898085
A178: 177 | B178: 0.07664111418 | C178: 0.1412900545 | D178: 0.0004842812038
A179: 178 | B179: 0.07701314397 | C179: 0.1431985251 | D179: 0.0005044177222
A180: 179 | B180: 0.07645823301 | C180: 0.1405089499 | D180: 0.0004695286378
A181: 180 | B181: 0.07706366253 | C181: 0.1429540959 | D181: 0.0004896401222
A182: 181 | B182: 0.07614225865 | C182: 0.1371315483 | D182: 0.0004099157093
A183: 182 | B183: 0.07586222803 | C183: 0.1350853304 | D183: 0.0003819728227
A184: 183 | B184: 0.0734456266 | C184: 0.1269611942 | D184: 0.00032807311
A185: 184 | B185: 0.07221628164 | C185: 0.1232102355 | D185: 0.0003069040262
A186: 185 | B186: 0.07173577045 | C186: 0.1202530939 | D186: 0.000276404657
A187: 186 | B187: 0.07116436169 | C187: 0.1178405546 | D187: 0.0002569434332
A188: 187 | B188: 0.07096244782 | C188: 0.1177707039 | D188: 0.000257039925
A189: 188 | B189: 0.07096024502 | C189: 0.1177934932 | D189: 0.0002564761774
A190: 189 | B190: 0.07024541947 | C190: 0.115292723 | D190: 0.0002361067842
A191: 190 | B191: 0.06996621207 | C191: 0.1134487341 | D191: 0.0002185473041
A192: 191 | B192: 0.07002300047 | C192: 0.113584635 | D192: 0.0002205114309
A193: 192 | B193: 0.06972708092 | C193: 0.1129340144 | D193: 0.0002175946758
A194: 193 | B194: 0.068681729 | C194: 0.1101240715 | D194: 0.0002030008264
A195: 194 | B195: 0.06906454963 | C195: 0.1101918192 | D195: 0.0001910167492
A196: 195 | B196: 0.07006075101 | C196: 0.1124787668 | D196: 0.0001964052122
A197: 196 | B197: 0.07017413726 | C197: 0.1119648049 | D197: 0.0001869049079
A198: 197 | B198: 0.07142543777 | C198: 0.1156164839 | D198: 0.0001969952707
A199: 198 | B199: 0.07108196428 | C199: 0.1152317249 | D199: 0.0001987180701
A200: 199 | B200: 0.07121440657 | C200: 0.1158391301 | D200: 0.0002011893928
... 512 more rows

Sheet Stats of stats
B1: AveMon | C1: StdMon | D1: SkeMon | E1: KurMon | F1: MomMon | I1: AveSce | J1: StdSce | K1: SkeSce | L1: KurSce | M1: MonSce | N1: Ave Dln_rt | O1: Std Dln_rt
A2: Average | B2: 0.05724789666 | C2: 0.008160424995 | D2: -1.918218162 | E2: 5.7072509 | F2: 49.49840212 | H2: Average Scenario | I2: 0.05724789666 | J2: 0.01522514025 | K2: 0.824735737 | L2: 3.75595814 | M2: 30.85431161 | N2: 0.0009593149502 | O2: 0.01528447262
A3: Std deviation | B3: 0.02510619736 | C3: 0.007770113024 | D3: -4.097482098 | E3: 12.28001539 | F3: 106.768016 | H3: Std deviation Scenario | I3: 0.02003748717 | J3: 0.0111347452 | K3: 3.972604202 | L3: 22.7221288 | M3: 543.3976856
A4: Skewness | B4: 1.514949384 | C4: 0.4997704044 | D4: 0.1292240129 | E4: 5.559614045 | F4: 37.73117438 | H4: Skewness Scenario | I4: 0.4077564987 | J4: 0.6145862511 | K4: 0.06160342913 | L4: 3.081253458 | M4: 15.46645819
A5: Kurtosis | B5: 8.339746733 | C5: 4.22111125 | D5: 2.425383127 | E5: 8.804596779 | F5: 109.5931121 | H5: Kurtosis Scenario | I5: 2.696002381 | J5: 1.021151408 | K5: 1.954572935 | L5: 10.4525042 | M5: 364.0750353
A6: 6th Moment | B6: 306.2653967 | C6: 479.5338759 | D6: 3.134552385 | E6: 12.21979297 | F6: 197.0237549 | H6: 6th Moment Scenario | I6: 12.28686846 | J6: 13.0724346 | K6: 5.432219297 | L6: 56.60052045 | M6: 8413.732545
